Workbook

Sheet Sheet1
G3: Australian Open 2018
AB5: 2018-11-14T01:40:22
A6: Grp | B6: No. | C6: Rank | D6: Name | F6: Betfair | H6: P1 | I6: True P1 | J6: P2 | K6: True P2 | L6: P3 | M6: True P3 | N6: P4 | O6: True P4 | P6: P5 | Q6: True P5 | R6: EV | S6: Buddy EV | T6: Total EV | U6: 40000 | X6: 45000 | AA6: 50000 | AD6: 55000
I7: 0.45 | K7: 0.225 | M7: 0.175 | O7: 0.1 | Q7: 0.05
A8: 1 | B8: 1 | D8: C. Smith | G8: 2.78 | H8: =IF(G8<>"Scr",1/G8,"") -> 0.3597122302 | I8: =IF(H8<>"",+H8/$H$153,0) -> 0.3382372088 | J8: =(1-I8)*I8/(1-I8/92) -> 0.2246587554 | K8: =IF(J8<>"",+J8/$J$153,0) -> 0.2599548554 | L8: =(1-I8-K8)*(I8+K8)/(1-(I8+K8)/92) -> 0.2419313776 | M8: =IF(L8<>"",+L8/$L$153,0) -> 0.1562195596 | N8: =(1-I8-K8-M8)*(I8+K8+M8)/(1-(I8+K8+M8)/92) -> 0.1868065631 | O8: =IF(N8<>"",+N8/$N$153,0) -> 0.08473929106 | P8: =(1-I8-K8-M8-O8)*(I8+K8+M8+O8)/(1-(I8+K8+M8+O8)/92) -> 0.1362191398 | Q8: =IF(P8<>"",+P8/$P$153,0) -> 0.04730710008 | R8: =(+I$7*I8+K$7*K8+M$7*M8+O$7*O8+Q$7*Q8) -> 0.2488742934 | S8: =INDEX(Group4,44-ROW(),18) -> 0.00143060096 | T8: =+R8+S8 -> 0.2503048944 | U8: =ROUND(+$R8*U$6,0) -> 9955 | V8: =INDEX(Group4,44-ROW(),21) -> 57 | W8: =+U8+V8 -> 10012 | X8: =ROUND(+$R8*X$6,0) -> 11199 | Y8: =INDEX(Group4,44-ROW(),24) -> 64 | Z8: =+X8+Y8 -> 11263 | AA8: =ROUND(+$R8*AA$6,0) -> 12444 | AB8: =INDEX(Group4,44-ROW(),27) -> 72 | AC8: =+AA8+AB8 -> 12516 | AD8: =ROUND(+$R8*AD$6,0) -> 13688 | AE8: =INDEX(Group4,44-ROW(),30) -> 79 | AF8: =+AD8+AE8 -> 13767
A9: 1 | B9: 2 | D9: K. Bradley | G9: 8.3 | H9: 0.1204819277 | I9: =IF(H9<>"",+H9/$H$153,0) -> 0.1132890892 | J9: 0.1005785242 | K9: =IF(J9<>"",+J9/$J$153,0) -> 0.1163803995 | L9: 0.177364188 | M9: =IF(L9<>"",+L9/$L$153,0) -> 0.1145273325 | N9: 0.2265730404 | O9: =IF(N9<>"",+N9/$N$153,0) -> 0.1027781813 | P9: 0.2483951586 | Q9: =IF(P9<>"",+P9/$P$153,0) -> 0.08626434324 | R9: =+I$7*I9+K$7*K9+M$7*M9+O$7*O9+Q$7*Q9 -> 0.1117989985 | S9: =INDEX(Group4,44-ROW(),18) -> 0.001432409901 | T9: 0.1132314084 | U9: =ROUND(+$R9*U$6,0) -> 4472 | V9: =INDEX(Group4,44-ROW(),21) -> 57 | W9: =+U9+V9 -> 4529 | X9: =ROUND(+$R9*X$6,0) -> 5031 | Y9: =INDEX(Group4,44-ROW(),24) -> 64 | Z9: =+X9+Y9 -> 5095 | AA9: =ROUND(+$R9*AA$6,0) -> 5590 | AB9: =INDEX(Group4,44-ROW(),27) -> 72 | AC9: =+AA9+AB9 -> 5662 | AD9: =ROUND(+$R9*AD$6,0) -> 6149 | AE9: =INDEX(Group4,44-ROW(),30) -> 79 | AF9: =+AD9+AE9 -> 6228
A10: 1 | B10: 3 | D10: M. Kuchar | G10: 19.2 | H10: 0.05208333333 | I10: =IF(H10<>"",+H10/$H$153,0) -> 0.04897392919 | J10: 0.04660028996 | K10: =IF(J10<>"",+J10/$J$153,0) -> 0.05392165384 | L10: 0.09241143777 | M10: =IF(L10<>"",+L10/$L$153,0) -> 0.05967177243 | N10: 0.1363801992 | O10: =IF(N10<>"",+N10/$N$153,0) -> 0.06186485742 | P10: 0.1744880549 | Q10: =IF(P10<>"",+P10/$P$153,0) -> 0.06059738662 | R10: 0.0538295555 | S10: =INDEX(Group4,44-ROW(),18) -> 0.001437864275 | T10: 0.05526741977 | U10: 2153 | V10: =INDEX(Group4,44-ROW(),21) -> 58 | W10: 2211 | X10: 2422 | Y10: =INDEX(Group4,44-ROW(),24) -> 65 | Z10: 2487 | AA10: 2691 | AB10: =INDEX(Group4,44-ROW(),27) -> 72 | AC10: 2763 | AD10: 2961 | AE10: =INDEX(Group4,44-ROW(),30) -> 79 | AF10: 3040
A11: 1 | B11: 4 | D11: B. Snedeker | G11: 25.2 | H11: 0.03968253968 | I11: =IF(H11<>"",+H11/$H$153,0) -> 0.03731346986 | J11: 0.03593574969 | K11: =IF(J11<>"",+J11/$J$153,0) -> 0.0415816094 | L11: 0.07273301831 | M11: =IF(L11<>"",+L11/$L$153,0) -> 0.04696505348 | N11: 0.1101700773 | O11: =IF(N11<>"",+N11/$N$153,0) -> 0.04997540822 | P11: 0.1451949081 | Q11: =IF(P11<>"",+P11/$P$153,0) -> 0.05042426535 | R11: 0.041884562 | S11: =INDEX(Group4,44-ROW(),18) -> 0.001447047796 | T11: 0.04333160979 | U11: 1675 | V11: =INDEX(Group4,44-ROW(),21) -> 58 | W11: 1733 | X11: 1885 | Y11: =INDEX(Group4,44-ROW(),24) -> 65 | Z11: 1950 | AA11: 2094 | AB11: =INDEX(Group4,44-ROW(),27) -> 72 | AC11: 2166 | AD11: 2304 | AE11: =INDEX(Group4,44-ROW(),30) -> 80 | AF11: 2384
A12: 1 | B12: 5 | D12: B. Hun An | G12: 29.1 | H12: 0.03436426117 | I12: =IF(H12<>"",+H12/$H$153,0) -> 0.03231269555 | J12: 0.03127957142 | K12: =IF(J12<>"",+J12/$J$153,0) -> 0.03619389973 | L12: 0.06386099493 | M12: =IF(L12<>"",+L12/$L$153,0) -> 0.0412362241 | N12: 0.09781601346 | O12: =IF(N12<>"",+N12/$N$153,0) -> 0.04437135129 | P12: 0.1305817376 | Q12: =IF(P12<>"",+P12/$P$153,0) -> 0.04534930509 | R12: 0.03660528004 | S12: =INDEX(Group4,44-ROW(),18) -> 0.001448898596 | T12: 0.03805417863 | U12: 1464 | V12: =INDEX(Group4,44-ROW(),21) -> 58 | W12: 1522 | X12: 1647 | Y12: =INDEX(Group4,44-ROW(),24) -> 65 | Z12: 1712 | AA12: 1830 | AB12: =INDEX(Group4,44-ROW(),27) -> 72 | AC12: 1902 | AD12: 2013 | AE12: =INDEX(Group4,44-ROW(),30) -> 80 | AF12: 2093
A13: 1 | B13: 6 | D13: A. Ancer | G13: 32.6 | H13: 0.03067484663 | I13: =IF(H13<>"",+H13/$H$153,0) -> 0.02884354112 | J13: 0.02802037611 | K13: =IF(J13<>"",+J13/$J$153,0) -> 0.03242265278 | L13: 0.0575509727 | M13: =IF(L13<>"",+L13/$L$153,0) -> 0.03716172618 | N13: 0.08883490631 | O13: =IF(N13<>"",+N13/$N$153,0) -> 0.04029733676 | P13: 0.1196609948 | Q13: =IF(P13<>"",+P13/$P$153,0) -> 0.04155667599 | R13: 0.03288555994 | S13: =INDEX(Group4,44-ROW(),18) -> 0.001463877191 | T13: 0.03434943713 | U13: 1315 | V13: =INDEX(Group4,44-ROW(),21) -> 59 | W13: 1374 | X13: 1480 | Y13: =INDEX(Group4,44-ROW(),24) -> 66 | Z13: 1546 | AA13: 1644 | AB13: =INDEX(Group4,44-ROW(),27) -> 73 | AC13: 1717 | AD13: 1809 | AE13: =INDEX(Group4,44-ROW(),30) -> 81 | AF13: 1890
A14: 1 | B14: 7 | D14: C. Davis | G14: 62.5 | H14: 0.016 | I14: =IF(H14<>"",+H14/$H$153,0) -> 0.01504479105 | J14: 0.01482086897 | K14: =IF(J14<>"",+J14/$J$153,0) -> 0.01714937325 | L14: 0.03116860712 | M14: =IF(L14<>"",+L14/$L$153,0) -> 0.02012614538 | N14: 0.04961110866 | O14: =IF(N14<>"",+N14/$N$153,0) -> 0.02250461711 | P14: 0.06928250558 | Q14: =IF(P14<>"",+P14/$P$153,0) -> 0.02406089505 | R14: 0.01760434686 | S14: =INDEX(Group4,44-ROW(),18) -> 0.001467670355 | T14: 0.01907201721 | U14: 704 | V14: =INDEX(Group4,44-ROW(),21) -> 59 | W14: 763 | X14: 792 | Y14: =INDEX(Group4,44-ROW(),24) -> 66 | Z14: 858 | AA14: 880 | AB14: =INDEX(Group4,44-ROW(),27) -> 73 | AC14: 953 | AD14: 968 | AE14: =INDEX(Group4,44-ROW(),30) -> 81 | AF14: 1049
A15: 1 | B15: 8 | D15: A. Lahiri | G15: 50.9 | H15: 0.01964636542 | I15: =IF(H15<>"",+H15/$H$153,0) -> 0.01847346641 | J15: 0.0181358391 | K15: =IF(J15<>"",+J15/$J$153,0) -> 0.0209851578 | L15: 0.0379179041 | M15: =IF(L15<>"",+L15/$L$153,0) -> 0.02448429111 | N15: 0.05989584841 | O15: =IF(N15<>"",+N15/$N$153,0) -> 0.02716998615 | P15: 0.0828934348 | Q15: =IF(P15<>"",+P15/$P$153,0) -> 0.02878779019 | R15: 0.02147585946 | S15: =INDEX(Group4,44-ROW(),18) -> 0.001467670355 | T15: 0.02294352981 | U15: 859 | V15: =INDEX(Group4,44-ROW(),21) -> 59 | W15: 918 | X15: 966 | Y15: =INDEX(Group4,44-ROW(),24) -> 66 | Z15: 1032 | AA15: 1074 | AB15: =INDEX(Group4,44-ROW(),27) -> 73 | AC15: 1147 | AD15: 1181 | AE15: =INDEX(Group4,44-ROW(),30) -> 81 | AF15: 1262
A16: 1 | B16: 9 | D16: B. Steele | G16: 89 | H16: 0.01123595506 | I16: =IF(H16<>"",+H16/$H$153,0) -> 0.01056516225 | J16: 0.01045474021 | K16: =IF(J16<>"",+J16/$J$153,0) -> 0.01209728272 | L16: 0.02215431585 | M16: =IF(L16<>"",+L16/$L$153,0) -> 0.01430545099 | N16: 0.03561558186 | O16: =IF(N16<>"",+N16/$N$153,0) -> 0.01615595891 | P16: 0.05033077357 | Q16: =IF(P16<>"",+P16/$P$153,0) -> 0.01747920994 | R16: 0.01246922194 | S16: =INDEX(Group4,44-ROW(),18) -> 0.001477239828 | T16: 0.01394646176 | U16: 499 | V16: =INDEX(Group4,44-ROW(),21) -> 59 | W16: 558 | X16: 561 | Y16: =INDEX(Group4,44-ROW(),24) -> 66 | Z16: 627 | AA16: 623 | AB16: =INDEX(Group4,44-ROW(),27) -> 74 | AC16: 697 | AD16: 686 | AE16: =INDEX(Group4,44-ROW(),30) -> 81 | AF16: 767
A17: 1 | B17: 10 | D17: N. Colsaerts | G17: 38 | H17: 0.02631578947 | I17: =IF(H17<>"",+H17/$H$153,0) -> 0.02474472211 | J17: 0.02413891335 | K17: =IF(J17<>"",+J17/$J$153,0) -> 0.02793137405 | L17: 0.04992991324 | M17: =IF(L17<>"",+L17/$L$153,0) -> 0.03224066731 | N17: 0.07777769621 | O17: =IF(N17<>"",+N17/$N$153,0) -> 0.03528155932 | P17: 0.1058890304 | Q17: =IF(P17<>"",+P17/$P$153,0) -> 0.03677385547 | R17: 0.0284286496 | S17: =INDEX(Group4,44-ROW(),18) -> 0.001477239828 | T17: 0.02990588942 | U17: 1137 | V17: =INDEX(Group4,44-ROW(),21) -> 59 | W17: 1196 | X17: 1279 | Y17: =INDEX(Group4,44-ROW(),24) -> 66 | Z17: 1345 | AA17: 1421 | AB17: =INDEX(Group4,44-ROW(),27) -> 74 | AC17: 1495 | AD17: 1564 | AE17: =INDEX(Group4,44-ROW(),30) -> 81 | AF17: 1645
A18: 1 | B18: 11 | D18: D. Papadatos | G18: 40.7 | H18: 0.02457002457 | I18: =IF(H18<>"",+H18/$H$153,0) -> 0.02310318035 | J18: 0.0225750925 | K18: =IF(J18<>"",+J18/$J$153,0) -> 0.02612186157 | L18: 0.04682699218 | M18: =IF(L18<>"",+L18/$L$153,0) -> 0.03023705386 | N18: 0.07321110489 | O18: =IF(N18<>"",+N18/$N$153,0) -> 0.03321005977 | P18: 0.1000997328 | Q18: =IF(P18<>"",+P18/$P$153,0) -> 0.03476330922 | R18: 0.02662450587 | S18: =INDEX(Group4,44-ROW(),18) -> 0.001486934909 | T18: 0.02811144078 | U18: 1065 | V18: =INDEX(Group4,44-ROW(),21) -> 59 | W18: 1124 | X18: 1198 | Y18: =INDEX(Group4,44-ROW(),24) -> 67 | Z18: 1265 | AA18: 1331 | AB18: =INDEX(Group4,44-ROW(),27) -> 74 | AC18: 1405 | AD18: 1464 | AE18: =INDEX(Group4,44-ROW(),30) -> 82 | AF18: 1546
A19: 1 | B19: 12 | D19: M. Fraser | G19: 81.5 | H19: 0.01226993865 | I19: =IF(H19<>"",+H19/$H$153,0) -> 0.01153741645 | J19: 0.01140573482 | K19: =IF(J19<>"",+J19/$J$153,0) -> 0.01319768794 | L19: 0.02412976653 | M19: =IF(L19<>"",+L19/$L$153,0) -> 0.01558103598 | N19: 0.03870771165 | O19: =IF(N19<>"",+N19/$N$153,0) -> 0.01755861244 | P19: 0.05455958779 | Q19: =IF(P19<>"",+P19/$P$153,0) -> 0.01894782102 | R19: 0.01359125078 | S19: =INDEX(Group4,44-ROW(),18) -> 0.001496758087 | T19: 0.01508800887 | U19: 544 | V19: =INDEX(Group4,44-ROW(),21) -> 60 | W19: 604 | X19: 612 | Y19: =INDEX(Group4,44-ROW(),24) -> 67 | Z19: 679 | AA19: 680 | AB19: =INDEX(Group4,44-ROW(),27) -> 75 | AC19: 755 | AD19: 748 | AE19: =INDEX(Group4,44-ROW(),30) -> 82 | AF19: 830
A20: 2 | B20: 13 | D20: R. Pampling | G20: 55 | H20: 0.01818181818 | I20: =IF(H20<>"",+H20/$H$153,0) -> 0.01709635346 | J20: 0.01680719144 | K20: =IF(J20<>"",+J20/$J$153,0) -> 0.01944776652 | L20: 0.03522263836 | M20: =IF(L20<>"",+L20/$L$153,0) -> 0.02274390824 | N20: 0.05580892316 | O20: =IF(N20<>"",+N20/$N$153,0) -> 0.02531607297 | P20: 0.07751753313 | Q20: =IF(P20<>"",+P20/$P$153,0) -> 0.02692081087 | R20: 0.01992693831 | S20: =INDEX(Group4,44-ROW(),18) -> 0.001527022111 | T20: 0.02145396042 | U20: 797 | V20: =INDEX(Group4,44-ROW(),21) -> 61 | W20: 858 | X20: 897 | Y20: =INDEX(Group4,44-ROW(),24) -> 69 | Z20: 966 | AA20: 996 | AB20: =INDEX(Group4,44-ROW(),27) -> 76 | AC20: 1072 | AD20: 1096 | AE20: =INDEX(Group4,44-ROW(),30) -> 84 | AF20: 1180
A21: 2 | B21: 14 | D21: J. Senden | G21: 74 | H21: 0.01351351351 | I21: =IF(H21<>"",+H21/$H$153,0) -> 0.01270674919 | J21: 0.01254702067 | K21: =IF(J21<>"",+J21/$J$153,0) -> 0.01451828103 | L21: 0.02649166748 | M21: =IF(L21<>"",+L21/$L$153,0) -> 0.01710615906 | N21: 0.04238635926 | O21: =IF(N21<>"",+N21/$N$153,0) -> 0.0192273225 | P21: 0.05955997456 | Q21: =IF(P21<>"",+P21/$P$153,0) -> 0.02068438901 | R21: 0.0149351799 | S21: =INDEX(Group4,44-ROW(),18) -> 0.001537383933 | T21: 0.01647256384 | U21: 597 | V21: =INDEX(Group4,44-ROW(),21) -> 61 | W21: 658 | X21: 672 | Y21: =INDEX(Group4,44-ROW(),24) -> 69 | Z21: 741 | AA21: 747 | AB21: =INDEX(Group4,44-ROW(),27) -> 77 | AC21: 824 | AD21: 821 | AE21: =INDEX(Group4,44-ROW(),30) -> 85 | AF21: 906
A22: 2 | B22: 15 | D22: M. Griffin | G22: 72.3 | H22: 0.01383125864 | I22: =IF(H22<>"",+H22/$H$153,0) -> 0.01300552476 | J22: 0.01283819595 | K22: =IF(J22<>"",+J22/$J$153,0) -> 0.0148552028 | L22: 0.02709271202 | M22: =IF(L22<>"",+L22/$L$153,0) -> 0.01749426462 | N22: 0.0433192728 | O22: =IF(N22<>"",+N22/$N$153,0) -> 0.01965051123 | P22: 0.06082276419 | Q22: =IF(P22<>"",+P22/$P$153,0) -> 0.02112293909 | R22: 0.01527760116 | S22: =INDEX(Group4,44-ROW(),18) -> 0.001569330672 | T22: 0.01684693183 | U22: 611 | V22: =INDEX(Group4,44-ROW(),21) -> 63 | W22: 674 | X22: 687 | Y22: =INDEX(Group4,44-ROW(),24) -> 71 | Z22: 758 | AA22: 764 | AB22: =INDEX(Group4,44-ROW(),27) -> 78 | AC22: 842 | AD22: 840 | AE22: =INDEX(Group4,44-ROW(),30) -> 86 | AF22: 926
A23: 2 | B23: 16 | D23: N. Voke | G23: 68.7 | H23: 0.01455604076 | I23: =IF(H23<>"",+H23/$H$153,0) -> 0.01368703698 | J23: 0.01350171067 | K23: =IF(J23<>"",+J23/$J$153,0) -> 0.01562296222 | L23: 0.02845999012 | M23: =IF(L23<>"",+L23/$L$153,0) -> 0.01837714135 | N23: 0.04543662872 | O23: =IF(N23<>"",+N23/$N$153,0) -> 0.02061098733 | P23: 0.06368076835 | Q23: =IF(P23<>"",+P23/$P$153,0) -> 0.02211548602 | R23: 0.01605720591 | S23: =INDEX(Group4,44-ROW(),18) -> 0.001569330672 | T23: 0.01762653658 | U23: 642 | V23: =INDEX(Group4,44-ROW(),21) -> 63 | W23: 705 | X23: 723 | Y23: =INDEX(Group4,44-ROW(),24) -> 71 | Z23: 794 | AA23: 803 | AB23: =INDEX(Group4,44-ROW(),27) -> 78 | AC23: 881 | AD23: 883 | AE23: =INDEX(Group4,44-ROW(),30) -> 86 | AF23: 969
A24: 2 | B24: 17 | D24: R. Gibson | G24: 66.5 | H24: 0.01503759398 | I24: =IF(H24<>"",+H24/$H$153,0) -> 0.01413984121 | J24: 0.01394204891 | K24: =IF(J24<>"",+J24/$J$153,0) -> 0.01613248192 | L24: 0.02936557223 | M24: =IF(L24<>"",+L24/$L$153,0) -> 0.01896189244 | N24: 0.04683527169 | O24: =IF(N24<>"",+N24/$N$153,0) -> 0.02124544049 | P24: 0.06556250047 | Q24: =IF(P24<>"",+P24/$P$153,0) -> 0.02276898662 | R24: 0.01657406153 | S24: =INDEX(Group4,44-ROW(),18) -> 0.001569330672 | T24: 0.0181433922 | U24: 663 | V24: =INDEX(Group4,44-ROW(),21) -> 63 | W24: 726 | X24: 746 | Y24: =INDEX(Group4,44-ROW(),24) -> 71 | Z24: 817 | AA24: 829 | AB24: =INDEX(Group4,44-ROW(),27) -> 78 | AC24: 907 | AD24: 912 | AE24: =INDEX(Group4,44-ROW(),30) -> 86 | AF24: 998
A25: 2 | B25: 18 | D25: A. Quayle | G25: 84.1 | H25: 0.01189060642 | I25: =IF(H25<>"",+H25/$H$153,0) -> 0.01118073056 | J25: 0.01105706559 | K25: =IF(J25<>"",+J25/$J$153,0) -> 0.01279423934 | L25: 0.02340627034 | M25: =IF(L25<>"",+L25/$L$153,0) -> 0.01511386113 | N25: 0.03757685993 | O25: =IF(N25<>"",+N25/$N$153,0) -> 0.01704563489 | P25: 0.0530157356 | Q25: =IF(P25<>"",+P25/$P$153,0) -> 0.01841166164 | R25: 0.01318010487 | S25: =INDEX(Group4,44-ROW(),18) -> 0.001580276688 | T25: 0.01476038156 | U25: 527 | V25: =INDEX(Group4,44-ROW(),21) -> 63 | W25: 590 | X25: 593 | Y25: =INDEX(Group4,44-ROW(),24) -> 71 | Z25: 664 | AA25: 659 | AB25: =INDEX(Group4,44-ROW(),27) -> 79 | AC25: 738 | AD25: 725 | AE25: =INDEX(Group4,44-ROW(),30) -> 87 | AF25: 812
A26: 2 | B26: 19 | D26: C. Percy | G26: 98.7 | H26: 0.01013171226 | I26: =IF(H26<>"",+H26/$H$153,0) -> 0.009526843367 | J26: 0.009437059855 | K26: =IF(J26<>"",+J26/$J$153,0) -> 0.01091971478 | L26: 0.02003294863 | M26: =IF(L26<>"",+L26/$L$153,0) -> 0.01293564499 | N26: 0.03227954428 | O26: =IF(N26<>"",+N26/$N$153,0) -> 0.01464266379 | P26: 0.04574235702 | Q26: =IF(P26<>"",+P26/$P$153,0) -> 0.01588571375 | R26: 0.01126630528 | S26: =INDEX(Group4,44-ROW(),18) -> 0.001591376473 | T26: 0.01285768175 | U26: 451 | V26: =INDEX(Group4,44-ROW(),21) -> 64 | W26: 515 | X26: 507 | Y26: =INDEX(Group4,44-ROW(),24) -> 72 | Z26: 579 | AA26: 563 | AB26: =INDEX(Group4,44-ROW(),27) -> 80 | AC26: 643 | AD26: 620 | AE26: =INDEX(Group4,44-ROW(),30) -> 88 | AF26: 708
A27: 2 | B27: 20 | D27: Z. Murray | G27: 143 | H27: 0.006993006993 | I27: =IF(H27<>"",+H27/$H$153,0) -> 0.006575520562 | J27: 0.006532750007 | K27: =IF(J27<>"",+J27/$J$153,0) -> 0.007559109285 | L27: 0.01393698333 | M27: =IF(L27<>"",+L27/$L$153,0) -> 0.008999367584 | N27: 0.02260449964 | O27: =IF(N27<>"",+N27/$N$153,0) -> 0.01025386497 | P27: 0.03228482959 | Q27: =IF(P27<>"",+P27/$P$153,0) -> 0.01121209301 | R27: 0.007820664317 | S27: =INDEX(Group4,44-ROW(),18) -> 0.001614050493 | T27: 0.00943471481 | U27: 313 | V27: =INDEX(Group4,44-ROW(),21) -> 65 | W27: 378 | X27: 352 | Y27: =INDEX(Group4,44-ROW(),24) -> 73 | Z27: 425 | AA27: 391 | AB27: =INDEX(Group4,44-ROW(),27) -> 81 | AC27: 472 | AD27: 430 | AE27: =INDEX(Group4,44-ROW(),30) -> 89 | AF27: 519
A28: 2 | B28: 21 | D28: B. Coletta | G28: 101 | H28: 0.009900990099 | I28: =IF(H28<>"",+H28/$H$153,0) -> 0.009309895449 | J28: 0.00922415473 | K28: =IF(J28<>"",+J28/$J$153,0) -> 0.01067336016 | L28: 0.01958817984 | M28: =IF(L28<>"",+L28/$L$153,0) -> 0.01264844956 | N28: 0.0315780775 | O28: =IF(N28<>"",+N28/$N$153,0) -> 0.01432446406 | P28: 0.04477413982 | Q28: =IF(P28<>"",+P28/$P$153,0) -> 0.01554946476 | R28: 0.01101435731 | S28: =INDEX(Group4,44-ROW(),18) -> 0.001614050493 | T28: 0.0126284078 | U28: 441 | V28: =INDEX(Group4,44-ROW(),21) -> 65 | W28: 506 | X28: 496 | Y28: =INDEX(Group4,44-ROW(),24) -> 73 | Z28: 569 | AA28: 551 | AB28: =INDEX(Group4,44-ROW(),27) -> 81 | AC28: 632 | AD28: 606 | AE28: =INDEX(Group4,44-ROW(),30) -> 89 | AF28: 695
A29: 2 | B29: 22 | D29: C. John | G29: 113 | H29: 0.008849557522 | I29: =IF(H29<>"",+H29/$H$153,0) -> 0.008321233986 | J29: 0.008252737496 | K29: =IF(J29<>"",+J29/$J$153,0) -> 0.009549323725 | L29: 0.01755461078 | M29: =IF(L29<>"",+L29/$L$153,0) -> 0.01133533645 | N29: 0.02836191355 | O29: =IF(N29<>"",+N29/$N$153,0) -> 0.01286554609 | P29: 0.04031987238 | Q29: =IF(P29<>"",+P29/$P$153,0) -> 0.01400255677 | R29: 0.009863519458 | S29: =INDEX(Group4,44-ROW(),18) -> 0.00163266028 | T29: 0.01149617974 | U29: 395 | V29: =INDEX(Group4,44-ROW(),21) -> 65 | W29: 460 | X29: 444 | Y29: =INDEX(Group4,44-ROW(),24) -> 73 | Z29: 517 | AA29: 493 | AB29: =INDEX(Group4,44-ROW(),27) -> 82 | AC29: 575 | AD29: 542 | AE29: =INDEX(Group4,44-ROW(),30) -> 90 | AF29: 632
A30: 2 | B30: 23 | D30: G. Chalmers | G30: 93 | H30: 0.01075268817 | I30: =IF(H30<>"",+H30/$H$153,0) -> 0.01011074667 | J30: 0.01000961952 | K30: =IF(J30<>"",+J30/$J$153,0) -> 0.0115822292 | L30: 0.02122739594 | M30: =IF(L30<>"",+L30/$L$153,0) -> 0.01370692168 | N30: 0.0341598889 | O30: =IF(N30<>"",+N30/$N$153,0) -> 0.0154956267 | P30: 0.04833190767 | Q30: =IF(P30<>"",+P30/$P$153,0) -> 0.01678503033 | R30: 0.01194336305 | S30: =INDEX(Group4,44-ROW(),18) -> 0.001673666734 | T30: 0.01361702979 | U30: 478 | V30: =INDEX(Group4,44-ROW(),21) -> 67 | W30: 545 | X30: 537 | Y30: =INDEX(Group4,44-ROW(),24) -> 75 | Z30: 612 | AA30: 597 | AB30: =INDEX(Group4,44-ROW(),27) -> 84 | AC30: 681 | AD30: 657 | AE30: =INDEX(Group4,44-ROW(),30) -> 92 | AF30: 749
A31: 2 | B31: 24 | D31: J. McLeod | G31: 246 | H31: 0.00406504065 | I31: =IF(H31<>"",+H31/$H$153,0) -> 0.003822355449 | J31: 0.003807903256 | K31: =IF(J31<>"",+J31/$J$153,0) -> 0.004406162309 | L31: 0.008161539225 | M31: =IF(L31<>"",+L31/$L$153,0) -> 0.005270056641 | N31: 0.013318317 | O31: =IF(N31<>"",+N31/$N$153,0) -> 0.006041461937 | P31: 0.01916229323 | Q31: =IF(P31<>"",+P31/$P$153,0) -> 0.00665481022 | R31: 0.004570593088 | S31: =INDEX(Group4,44-ROW(),18) -> 0.001737855825 | T31: 0.006308448913 | U31: 183 | V31: =INDEX(Group4,44-ROW(),21) -> 70 | W31: 253 | X31: 206 | Y31: =INDEX(Group4,44-ROW(),24) -> 78 | Z31: 284 | AA31: 229 | AB31: =INDEX(Group4,44-ROW(),27) -> 87 | AC31: 316 | AD31: 251 | AE31: =INDEX(Group4,44-ROW(),30) -> 96 | AF31: 347
A32: 3 | B32: 25 | D32: J. Zunic | G32: 481 | H32: 0.002079002079 | I32: =IF(H32<>"",+H32/$H$153,0) -> 0.001954884491 | J32: 0.001951104377 | K32: =IF(J32<>"",+J32/$J$153,0) -> 0.002257642064 | L32: 0.004194973256 | M32: =IF(L32<>"",+L32/$L$153,0) -> 0.002708771723 | N32: 0.006873911043 | O32: =IF(N32<>"",+N32/$N$153,0) -> 0.00311814713 | P32: 0.009939739612 | Q32: =IF(P32<>"",+P32/$P$153,0) -> 0.003451939701 | R32: 0.002346114235 | S32: =INDEX(Group4,44-ROW(),18) -> 0.001764931551 | T32: 0.004111045786 | U32: 94 | V32: =INDEX(Group4,44-ROW(),21) -> 71 | W32: 165 | X32: 106 | Y32: =INDEX(Group4,44-ROW(),24) -> 79 | Z32: 185 | AA32: 117 | AB32: =INDEX(Group4,44-ROW(),27) -> 88 | AC32: 205 | AD32: 129 | AE32: =INDEX(Group4,44-ROW(),30) -> 97 | AF32: 226
A33: 3 | B33: 26 | D33: M. Millar | G33: 861 | H33: 0.001161440186 | I33: =IF(H33<>"",+H33/$H$153,0) -> 0.001092101557 | J33: 0.001090921821 | K33: =IF(J33<>"",+J33/$J$153,0) -> 0.001262316369 | L33: 0.002348934754 | M33: =IF(L33<>"",+L33/$L$153,0) -> 0.001516750561 | N33: 0.003856344808 | O33: =IF(N33<>"",+N33/$N$153,0) -> 0.001749317153 | P33: 0.00558923724 | Q33: =IF(P33<>"",+P33/$P$153,0) -> 0.001941067943 | R33: 0.001312883344 | S33: =INDEX(Group4,44-ROW(),18) -> 0.002098400068 | T33: 0.003411283412 | U33: 53 | V33: =INDEX(Group4,44-ROW(),21) -> 84 | W33: 137 | X33: 59 | Y33: =INDEX(Group4,44-ROW(),24) -> 94 | Z33: 153 | AA33: 66 | AB33: =INDEX(Group4,44-ROW(),27) -> 105 | AC33: 171 | AD33: 72 | AE33: =INDEX(Group4,44-ROW(),30) -> 115 | AF33: 187
A34: 3 | B34: 27 | D34: N. Cullen | G34: 238 | H34: 0.004201680672 | I34: =IF(H34<>"",+H34/$H$153,0) -> 0.003950837985 | J34: 0.003935397865 | K34: =IF(J34<>"",+J34/$J$153,0) -> 0.004553687576 | L34: 0.008432978154 | M34: =IF(L34<>"",+L34/$L$153,0) -> 0.005445329772 | N34: 0.01375734288 | O34: =IF(N34<>"",+N34/$N$153,0) -> 0.006240613086 | P34: 0.01978715592 | Q34: =IF(P34<>"",+P34/$P$153,0) -> 0.006871816745 | R34: 0.004723041654 | S34: =INDEX(Group4,44-ROW(),18) -> 0.002102294287 | T34: 0.006825335941 | U34: 189 | V34: =INDEX(Group4,44-ROW(),21) -> 84 | W34: 273 | X34: 213 | Y34: =INDEX(Group4,44-ROW(),24) -> 95 | Z34: 308 | AA34: 236 | AB34: =INDEX(Group4,44-ROW(),27) -> 105 | AC34: 341 | AD34: 260 | AE34: =INDEX(Group4,44-ROW(),30) -> 116 | AF34: 376
A35: 3 | B35: 28 | D35: T. Smyth | G35: 138 | H35: 0.007246376812 | I35: =IF(H35<>"",+H35/$H$153,0) -> 0.006813764061 | J35: 0.006767837924 | K35: =IF(J35<>"",+J35/$J$153,0) -> 0.007831131826 | L35: 0.01443272036 | M35: =IF(L35<>"",+L35/$L$153,0) -> 0.009319474147 | N35: 0.02339617329 | O35: =IF(N35<>"",+N35/$N$153,0) -> 0.01061298439 | P35: 0.03339431193 | Q35: =IF(P35<>"",+P35/$P$153,0) -> 0.0115974015 | R35: 0.008100274978 | S35: =INDEX(Group4,44-ROW(),18) -> 0.002183330962 | T35: 0.01028360594 | U35: 324 | V35: =INDEX(Group4,44-ROW(),21) -> 87 | W35: 411 | X35: 365 | Y35: =INDEX(Group4,44-ROW(),24) -> 98 | Z35: 463 | AA35: 405 | AB35: =INDEX(Group4,44-ROW(),27) -> 109 | AC35: 514 | AD35: 446 | AE35: =INDEX(Group4,44-ROW(),30) -> 120 | AF35: 566
A36: 3 | B36: 29 | D36: H. Endycott | G36: 353 | H36: 0.00283286119 | I36: =IF(H36<>"",+H36/$H$153,0) -> 0.002663737791 | J36: 0.002656719214 | K36: =IF(J36<>"",+J36/$J$153,0) -> 0.003074115932 | L36: 0.005705286586 | M36: =IF(L36<>"",+L36/$L$153,0) -> 0.003684008939 | N36: 0.009334047081 | O36: =IF(N36<>"",+N36/$N$153,0) -> 0.004234115328 | P36: 0.01347149189 | Q36: =IF(P36<>"",+P36/$P$153,0) -> 0.004678470413 | R36: 0.003192394709 | S36: =INDEX(Group4,44-ROW(),18) -> 0.002196028436 | T36: 0.005388423144 | U36: 128 | V36: =INDEX(Group4,44-ROW(),21) -> 88 | W36: 216 | X36: 144 | Y36: =INDEX(Group4,44-ROW(),24) -> 99 | Z36: 243 | AA36: 160 | AB36: =INDEX(Group4,44-ROW(),27) -> 110 | AC36: 270 | AD36: 176 | AE36: =INDEX(Group4,44-ROW(),30) -> 121 | AF36: 297
A37: 3 | B37: 30 | D37: A. Bland | G37: 391 | H37: 0.002557544757 | I37: =IF(H37<>"",+H37/$H$153,0) -> 0.002404857904 | J37: 0.002399137275 | K37: =IF(J37<>"",+J37/$J$153,0) -> 0.002776065337 | L37: 0.005154371541 | M37: =IF(L37<>"",+L37/$L$153,0) -> 0.003328272918 | N37: 0.008437570141 | O37: =IF(N37<>"",+N37/$N$153,0) -> 0.003827454989 | P37: 0.01218609227 | Q37: =IF(P37<>"",+P37/$P$153,0) -> 0.004232068177 | R37: 0.002883597426 | S37: =INDEX(Group4,44-ROW(),18) -> 0.00271107155 | T37: 0.005594668976 | U37: 115 | V37: =INDEX(Group4,44-ROW(),21) -> 108 | W37: 223 | X37: 130 | Y37: =INDEX(Group4,44-ROW(),24) -> 122 | Z37: 252 | AA37: 144 | AB37: =INDEX(Group4,44-ROW(),27) -> 136 | AC37: 280 | AD37: 159 | AE37: =INDEX(Group4,44-ROW(),30) -> 149 | AF37: 308
A38: 3 | B38: 31 | D38: B. Eccles | G38: 199 | H38: 0.005025125628 | I38: =IF(H38<>"",+H38/$H$153,0) -> 0.004725122816 | J38: 0.004703037578 | K38: =IF(J38<>"",+J38/$J$153,0) -> 0.005441931038 | L38: 0.01006479715 | M38: =IF(L38<>"",+L38/$L$153,0) -> 0.006499025438 | N38: 0.01639129042 | O38: =IF(N38<>"",+N38/$N$153,0) -> 0.007435425752 | P38: 0.02352678588 | Q38: =IF(P38<>"",+P38/$P$153,0) -> 0.008170540616 | R38: 0.005640138808 | S38: =INDEX(Group4,44-ROW(),18) -> 0.002730676744 | T38: 0.008370815552 | U38: 226 | V38: =INDEX(Group4,44-ROW(),21) -> 109 | W38: 335 | X38: 254 | Y38: =INDEX(Group4,44-ROW(),24) -> 123 | Z38: 377 | AA38: 282 | AB38: =INDEX(Group4,44-ROW(),27) -> 137 | AC38: 419 | AD38: 310 | AE38: =INDEX(Group4,44-ROW(),30) -> 150 | AF38: 460
A39: 3 | B39: 32 | D39: D. Lawson | G39: 473 | H39: =IF(G39<>"Scr",1/G39,"") -> 0.002114164905 | I39: =IF(H39<>"",+H39/$H$153,0) -> 0.001987948077 | J39: =(1-I39)*I39/(1-I39/92) -> 0.001984039011 | K39: =IF(J39<>"",+J39/$J$153,0) -> 0.002295751053 | L39: =(1-I39-K39)*(I39+K39)/(1-(I39+K39)/92) -> 0.004265547664 | M39: =IF(L39<>"",+L39/$L$153,0) -> 0.002754342922 | N39: =(1-I39-K39-M39)*(I39+K39+M39)/(1-(I39+K39+M39)/92) -> 0.00698904268 | O39: =IF(N39<>"",+N39/$N$153,0) -> 0.003170373203 | P39: =(1-I39-K39-M39-O39)*(I39+K39+M39+O39)/(1-(I39+K39+M39+O39)/92) -> 0.01010532481 | Q39: =IF(P39<>"",+P39/$P$153,0) -> 0.003509445244 | R39: =+I$7*I39+K$7*K39+M$7*M39+O$7*O39+Q$7*Q39 -> 0.002385640215 | S39: =INDEX(Group4,44-ROW(),18) -> 0.002737274972 | T39: =+R39+S39 -> 0.005122915187 | U39: 95 | V39: =INDEX(Group4,44-ROW(),21) -> 109 | W39: 204 | X39: 107 | Y39: =INDEX(Group4,44-ROW(),24) -> 123 | Z39: 230 | AA39: 119 | AB39: =INDEX(Group4,44-ROW(),27) -> 137 | AC39: 256 | AD39: 131 | AE39: =INDEX(Group4,44-ROW(),30) -> 151 | AF39: 282
A40: 3 | B40: 33 | D40: D. Klein | G40: 707 | H40: =IF(G40<>"Scr",1/G40,"") -> 0.001414427157 | I40: =IF(H40<>"",+H40/$H$153,0) -> 0.001329985064 | J40: =(1-I40)*I40/(1-I40/92) -> 0.001328235405 | K40: =IF(J40<>"",+J40/$J$153,0) -> 0.001536914251 | L40: =(1-I40-K40)*(I40+K40)/(1-(I40+K40)/92) -> 0.002858769288 | M40: =IF(L40<>"",+L40/$L$153,0) -> 0.001845960138 | N40: =(1-I40-K40-M40)*(I40+K40+M40)/(1-(I40+K40+M40)/92) -> 0.004690888708 | O40: =IF(N40<>"",+N40/$N$153,0) -> 0.002127883394 | P40: =(1-I40-K40-M40-O40)*(I40+K40+M40+O40)/(1-(I40+K40+M40+O40)/92) -> 0.006794452292 | Q40: =IF(P40<>"",+P40/$P$153,0) -> 0.002359623142 | R40: =+I$7*I40+K$7*K40+M$7*M40+O$7*O40+Q$7*Q40 -> 0.001598111506 | S40: =INDEX(Group4,44-ROW(),18) -> 0.004993703447 | T40: 0.006591814953 | U40: 64 | V40: =INDEX(Group4,44-ROW(),21) -> 200 | W40: 264 | X40: 72 | Y40: =INDEX(Group4,44-ROW(),24) -> 225 | Z40: 297 | AA40: 80 | AB40: =INDEX(Group4,44-ROW(),27) -> 250 | AC40: 330 | AD40: 88 | AE40: =INDEX(Group4,44-ROW(),30) -> 275 | AF40: 363
A41: 3 | B41: 34 | D41: J. Felton | G41: 601 | H41: 0.001663893511 | I41: =IF(H41<>"",+H41/$H$153,0) -> 0.001564558137 | J41: 0.001562136861 | K41: =IF(J41<>"",+J41/$J$153,0) -> 0.001807563926 | L41: 0.003360874043 | M41: =IF(L41<>"",+L41/$L$153,0) -> 0.002170178453 | N41: 0.005511915472 | O41: =IF(N41<>"",+N41/$N$153,0) -> 0.002500317985 | P41: 0.007978632279 | Q41: =IF(P41<>"",+P41/$P$153,0) -> 0.002770873141 | R41: 0.00187910973 | S41: =INDEX(Group4,44-ROW(),18) -> 0.006030460815 | T41: 0.007909570545 | U41: 75 | V41: =INDEX(Group4,44-ROW(),21) -> 241 | W41: 316 | X41: 85 | Y41: =INDEX(Group4,44-ROW(),24) -> 271 | Z41: 356 | AA41: 94 | AB41: =INDEX(Group4,44-ROW(),27) -> 302 | AC41: 396 | AD41: 103 | AE41: =INDEX(Group4,44-ROW(),30) -> 332 | AF41: 435
A42: 3 | B42: 35 | D42: M. Ilonen | G42: 143 | H42: 0.006993006993 | I42: =IF(H42<>"",+H42/$H$153,0) -> 0.006575520562 | J42: 0.006532750007 | K42: =IF(J42<>"",+J42/$J$153,0) -> 0.007559109285 | L42: 0.01393698333 | M42: =IF(L42<>"",+L42/$L$153,0) -> 0.008999367584 | N42: 0.02260449964 | O42: =IF(N42<>"",+N42/$N$153,0) -> 0.01025386497 | P42: 0.03228482959 | Q42: =IF(P42<>"",+P42/$P$153,0) -> 0.01121209301 | R42: 0.007820664317 | S42: =INDEX(Group4,44-ROW(),18) -> 0.006630508606 | T42: 0.01445117292 | U42: 313 | V42: =INDEX(Group4,44-ROW(),21) -> 265 | W42: 578 | X42: 352 | Y42: =INDEX(Group4,44-ROW(),24) -> 298 | Z42: 650 | AA42: 391 | AB42: =INDEX(Group4,44-ROW(),27) -> 332 | AC42: 723 | AD42: 430 | AE42: =INDEX(Group4,44-ROW(),30) -> 365 | AF42: 795
A43: 3 | B43: 36 | D43: A. Dodt | G43: 148 | H43: 0.006756756757 | I43: =IF(H43<>"",+H43/$H$153,0) -> 0.006353374597 | J43: 0.006313445225 | K43: =IF(J43<>"",+J43/$J$153,0) -> 0.007305349564 | L43: 0.01347416385 | M43: =IF(L43<>"",+L43/$L$153,0) -> 0.008700516498 | N43: 0.02186461889 | O43: =IF(N43<>"",+N43/$N$153,0) -> 0.009918239879 | P43: 0.03124660742 | Q43: =IF(P43<>"",+P43/$P$153,0) -> 0.01085153222 | R43: 0.007559713207 | S43: =INDEX(Group4,44-ROW(),18) -> 0.006830404092 | T43: 0.0143901173 | U43: 302 | V43: =INDEX(Group4,44-ROW(),21) -> 273 | W43: 575 | X43: 340 | Y43: =INDEX(Group4,44-ROW(),24) -> 307 | Z43: 647 | AA43: 378 | AB43: =INDEX(Group4,44-ROW(),27) -> 342 | AC43: 720 | AD43: 416 | AE43: =INDEX(Group4,44-ROW(),30) -> 376 | AF43: 792
A44: 4B | B44: 74 | C44: =RANK($G44,$G$44:$G$152,1)+36 -> 37 | D44: D. Gale | G44: 164 | H44: =IF(G44<>"Scr",1/G44,"") -> 0.006097560976 | I44: =IF(H44<>"",+H44/$H$153,0) -> 0.005733533173 | J44: =(1-I44)*I44/(1-I44/92) -> 0.005701015063 | K44: =IF(J44<>"",+J44/$J$153,0) -> 0.006596700601 | L44: =(1-I44-K44)*(I44+K44)/(1-(I44+K44)/92) -> 0.0121798315 | M44: =IF(L44<>"",+L44/$L$153,0) -> 0.007864742192 | N44: =(1-I44-K44-M44)*(I44+K44+M44)/(1-(I44+K44+M44)/92) -> 0.01979148335 | O44: =IF(N44<>"",+N44/$N$153,0) -> 0.00897782305 | P44: =(1-I44-K44-M44-O44)*(I44+K44+M44+O44)/(1-(I44+K44+M44+O44)/92) -> 0.02833073037 | Q44: =IF(P44<>"",+P44/$P$153,0) -> 0.009838886804 | R44: =+I$7*I44+K$7*K44+M$7*M44+O$7*O44+Q$7*Q44 -> 0.006830404092 | T44: 0.006830404092 | U44: =ROUND(+$R44*U$6,0) -> 273 | X44: =ROUND(+$R44*X$6,0) -> 307 | AA44: =ROUND(+$R44*AA$6,0) -> 342 | AD44: =ROUND(+$R44*AD$6,0) -> 376
A45: 4B | B45: 64 | C45: =RANK($G45,$G$44:$G$152,1)+36 -> 38 | D45: A. Evans | G45: 169 | H45: =IF(G45<>"Scr",1/G45,"") -> 0.005917159763 | I45: =IF(H45<>"",+H45/$H$153,0) -> 0.005563902014 | J45: =(1-I45)*I45/(1-I45/92) -> 0.005533279646 | K45: =IF(J45<>"",+J45/$J$153,0) -> 0.006402612299 | L45: =(1-I45-K45)*(I45+K45)/(1-(I45+K45)/92) -> 0.01182485492 | M45: =IF(L45<>"",+L45/$L$153,0) -> 0.007635527254 | N45: =(1-I45-K45-M45)*(I45+K45+M45)/(1-(I45+K45+M45)/92) -> 0.01922189706 | O45: =IF(N45<>"",+N45/$N$153,0) -> 0.008719447018 | P45: =(1-I45-K45-M45-O45)*(I45+K45+M45+O45)/(1-(I45+K45+M45+O45)/92) -> 0.02752785611 | Q45: =IF(P45<>"",+P45/$P$153,0) -> 0.009560059226 | R45: =+I$7*I45+K$7*K45+M$7*M45+O$7*O45+Q$7*Q45 -> 0.006630508606 | T45: 0.006630508606 | U45: =ROUND(+$R45*U$6,0) -> 265 | X45: =ROUND(+$R45*X$6,0) -> 298 | AA45: =ROUND(+$R45*AA$6,0) -> 332 | AD45: =ROUND(+$R45*AD$6,0) -> 365
A46: 4B | B46: 71 | C46: =RANK($G46,$G$44:$G$152,1)+36 -> 39 | D46: M. Guyatt | G46: 186 | H46: =IF(G46<>"Scr",1/G46,"") -> 0.005376344086 | I46: =IF(H46<>"",+H46/$H$153,0) -> 0.005055373335 | J46: =(1-I46)*I46/(1-I46/92) -> 0.005030092938 | K46: =IF(J46<>"",+J46/$J$153,0) -> 0.005820370011 | L46: =(1-I46-K46)*(I46+K46)/(1-(I46+K46)/92) -> 0.01075873339 | M46: =IF(L46<>"",+L46/$L$153,0) -> 0.006947112892 | N46: =(1-I46-K46-M46)*(I46+K46+M46)/(1-(I46+K46+M46)/92) -> 0.01750859392 | O46: =IF(N46<>"",+N46/$N$153,0) -> 0.007942257547 | P46: =(1-I46-K46-M46-O46)*(I46+K46+M46+O46)/(1-(I46+K46+M46+O46)/92) -> 0.02510830442 | Q46: =IF(P46<>"",+P46/$P$153,0) -> 0.008719781023 | R46: =+I$7*I46+K$7*K46+M$7*M46+O$7*O46+Q$7*Q46 -> 0.006030460815 | T46: 0.006030460815 | U46: =ROUND(+$R46*U$6,0) -> 241 | X46: =ROUND(+$R46*X$6,0) -> 271 | AA46: =ROUND(+$R46*AA$6,0) -> 302 | AD46: =ROUND(+$R46*AD$6,0) -> 332
A47: 4C | B47: 113 | C47: =RANK($G47,$G$44:$G$152,1)+36 -> 40 | D47: C. Rawson | G47: 225 | H47: =IF(G47<>"Scr",1/G47,"") -> 0.004444444444 | I47: =IF(H47<>"",+H47/$H$153,0) -> 0.004179108624 | J47: =(1-I47)*I47/(1-I47/92) -> 0.004161832727 | K47: =IF(J47<>"",+J47/$J$153,0) -> 0.004815697581 | L47: =(1-I47-K47)*(I47+K47)/(1-(I47+K47)/92) -> 0.00891477126 | M47: =IF(L47<>"",+L47/$L$153,0) -> 0.00575643248 | N47: =(1-I47-K47-M47)*(I47+K47+M47)/(1-(I47+K47+M47)/92) -> 0.01453597033 | O47: =IF(N47<>"",+N47/$N$153,0) -> 0.00659381448 | P47: =(1-I47-K47-M47-O47)*(I47+K47+M47+O47)/(1-(I47+K47+M47+O47)/92) -> 0.02089428958 | Q47: =IF(P47<>"",+P47/$P$153,0) -> 0.007256309577 | R47: =+I$7*I47+K$7*K47+M$7*M47+O$7*O47+Q$7*Q47 -> 0.004993703447 | T47: 0.004993703447 | U47: =ROUND(+$R47*U$6,0) -> 200 | X47: =ROUND(+$R47*X$6,0) -> 225 | AA47: =ROUND(+$R47*AA$6,0) -> 250 | AD47: =ROUND(+$R47*AD$6,0) -> 275
A48: 4D | B48: 124 | C48: =RANK($G48,$G$44:$G$152,1)+36 -> 41 | D48: R. Shelton | G48: 412 | H48: =IF(G48<>"Scr",1/G48,"") -> 0.002427184466 | I48: =IF(H48<>"",+H48/$H$153,0) -> 0.002282280195 | J48: =(1-I48)*I48/(1-I48/92) -> 0.002277127882 | K48: =IF(J48<>"",+J48/$J$153,0) -> 0.002634887068 | L48: =(1-I48-K48)*(I48+K48)/(1-(I48+K48)/92) -> 0.004893250261 | M48: =IF(L48<>"",+L48/$L$153,0) -> 0.003159662084 | N48: =(1-I48-K48-M48)*(I48+K48+M48)/(1-(I48+K48+M48)/92) -> 0.008012297588 | O48: =IF(N48<>"",+N48/$N$153,0) -> 0.003634542631 | P48: =(1-I48-K48-M48-O48)*(I48+K48+M48+O48)/(1-(I48+K48+M48+O48)/92) -> 0.0115756893 | Q48: =IF(P48<>"",+P48/$P$153,0) -> 0.004020083324 | R48: =+I$7*I48+K$7*K48+M$7*M48+O$7*O48+Q$7*Q48 -> 0.002737274972 | T48: 0.002737274972 | U48: =ROUND(+$R48*U$6,0) -> 109 | X48: =ROUND(+$R48*X$6,0) -> 123 | AA48: =ROUND(+$R48*AA$6,0) -> 137 | AD48: =ROUND(+$R48*AD$6,0) -> 151
A49: 4B | B49: 73 | C49: =RANK($G49,$G$44:$G$152,1)+36 -> 42 | D49: M. Giles | G49: 413 | H49: =IF(G49<>"Scr",1/G49,"") -> 0.002421307506 | I49: =IF(H49<>"",+H49/$H$153,0) -> 0.002276754093 | J49: =(1-I49)*I49/(1-I49/92) -> 0.0022716267 | K49: =IF(J49<>"",+J49/$J$153,0) -> 0.002628521597 | L49: =(1-I49-K49)*(I49+K49)/(1-(I49+K49)/92) -> 0.004881474232 | M49: =IF(L49<>"",+L49/$L$153,0) -> 0.003152058084 | N49: =(1-I49-K49-M49)*(I49+K49+M49)/(1-(I49+K49+M49)/92) -> 0.007993113181 | O49: =IF(N49<>"",+N49/$N$153,0) -> 0.00362584019 | P49: =(1-I49-K49-M49-O49)*(I49+K49+M49+O49)/(1-(I49+K49+M49+O49)/92) -> 0.01154814392 | Q49: =IF(P49<>"",+P49/$P$153,0) -> 0.00401051718 | R49: =+I$7*I49+K$7*K49+M$7*M49+O$7*O49+Q$7*Q49 -> 0.002730676744 | T49: 0.002730676744 | U49: =ROUND(+$R49*U$6,0) -> 109 | X49: =ROUND(+$R49*X$6,0) -> 123 | AA49: =ROUND(+$R49*AA$6,0) -> 137 | AD49: =ROUND(+$R49*AD$6,0) -> 150
A50: 4A | B50: 57 | C50: =RANK($G50,$G$44:$G$152,1)+36 -> 43 | D50: B. Campbell | G50: 416 | H50: =IF(G50<>"Scr",1/G50,"") -> 0.002403846154 | I50: =IF(H50<>"",+H50/$H$153,0) -> 0.002260335193 | J50: =(1-I50)*I50/(1-I50/92) -> 0.002255281488 | K50: =IF(J50<>"",+J50/$J$153,0) -> 0.002609608391 | L50: =(1-I50-K50)*(I50+K50)/(1-(I50+K50)/92) -> 0.004846483778 | M50: =IF(L50<>"",+L50/$L$153,0) -> 0.003129464102 | N50: =(1-I50-K50-M50)*(I50+K50+M50)/(1-(I50+K50+M50)/92) -> 0.007936107208 | O50: =IF(N50<>"",+N50/$N$153,0) -> 0.00359998111 | P50: =(1-I50-K50-M50-O50)*(I50+K50+M50+O50)/(1-(I50+K50+M50+O50)/92) -> 0.01146628865 | Q50: =IF(P50<>"",+P50/$P$153,0) -> 0.00398208993 | R50: =+I$7*I50+K$7*K50+M$7*M50+O$7*O50+Q$7*Q50 -> 0.00271107155 | T50: 0.00271107155 | U50: =ROUND(+$R50*U$6,0) -> 108 | X50: =ROUND(+$R50*X$6,0) -> 122 | AA50: =ROUND(+$R50*AA$6,0) -> 136 | AD50: =ROUND(+$R50*AD$6,0) -> 149
A51: 4C | B51: 101 | C51: =RANK($G51,$G$44:$G$152,1)+36 -> 44 | D51: D. McKenzie | G51: 514 | H51: =IF(G51<>"Scr",1/G51,"") -> 0.001945525292 | I51: =IF(H51<>"",+H51/$H$153,0) -> 0.001829376343 | J51: =(1-I51)*I51/(1-I51/92) -> 0.001826066036 | K51: =IF(J51<>"",+J51/$J$153,0) -> 0.00211295897 | L51: =(1-I51-K51)*(I51+K51)/(1-(I51+K51)/92) -> 0.003926961581 | M51: =IF(L51<>"",+L51/$L$153,0) -> 0.002535711634 | N51: =(1-I51-K51-M51)*(I51+K51+M51)/(1-(I51+K51+M51)/92) -> 0.006436535074 | O51: =IF(N51<>"",+N51/$N$153,0) -> 0.002919744413 | P51: =(1-I51-K51-M51-O51)*(I51+K51+M51+O51)/(1-(I51+K51+M51+O51)/92) -> 0.009310423936 | Q51: =IF(P51<>"",+P51/$P$153,0) -> 0.003233386716 | R51: =+I$7*I51+K$7*K51+M$7*M51+O$7*O51+Q$7*Q51 -> 0.002196028436 | T51: 0.002196028436 | U51: =ROUND(+$R51*U$6,0) -> 88 | X51: =ROUND(+$R51*X$6,0) -> 99 | AA51: =ROUND(+$R51*AA$6,0) -> 110 | AD51: =ROUND(+$R51*AD$6,0) -> 121
A52: 4B | B52: 79 | C52: =RANK($G52,$G$44:$G$152,1)+36 -> 45 | D52: S. Hawkes | G52: 517 | H52: =IF(G52<>"Scr",1/G52,"") -> 0.001934235977 | I52: =IF(H52<>"",+H52/$H$153,0) -> 0.001818761007 | J52: =(1-I52)*I52/(1-I52/92) -> 0.001815489006 | K52: =IF(J52<>"",+J52/$J$153,0) -> 0.002100720184 | L52: =(1-I52-K52)*(I52+K52)/(1-(I52+K52)/92) -> 0.003904285192 | M52: =IF(L52<>"",+L52/$L$153,0) -> 0.00252106907 | N52: =(1-I52-K52-M52)*(I52+K52+M52)/(1-(I52+K52+M52)/92) -> 0.006399517578 | O52: =IF(N52<>"",+N52/$N$153,0) -> 0.002902952517 | P52: =(1-I52-K52-M52-O52)*(I52+K52+M52+O52)/(1-(I52+K52+M52+O52)/92) -> 0.009257141888 | Q52: =IF(P52<>"",+P52/$P$153,0) -> 0.003214882567 | R52: =+I$7*I52+K$7*K52+M$7*M52+O$7*O52+Q$7*Q52 -> 0.002183330962 | T52: 0.002183330962 | U52: =ROUND(+$R52*U$6,0) -> 87 | X52: =ROUND(+$R52*X$6,0) -> 98 | AA52: =ROUND(+$R52*AA$6,0) -> 109 | AD52: =ROUND(+$R52*AD$6,0) -> 120
A53: 4B | B53: 65 | C53: =RANK($G53,$G$44:$G$152,1)+36 -> 46 | D53: A. Edge | G53: 537 | H53: =IF(G53<>"Scr",1/G53,"") -> 0.001862197393 | I53: =IF(H53<>"",+H53/$H$153,0) -> 0.001751023166 | J53: =(1-I53)*I53/(1-I53/92) -> 0.001747990354 | K53: =IF(J53<>"",+J53/$J$153,0) -> 0.00202261683 | L53: =(1-I53-K53)*(I53+K53)/(1-(I53+K53)/92) -> 0.003759553846 | M53: =IF(L53<>"",+L53/$L$153,0) -> 0.002427613367 | N53: =(1-I53-K53-M53)*(I53+K53+M53)/(1-(I53+K53+M53)/92) -> 0.006163213251 | O53: =IF(N53<>"",+N53/$N$153,0) -> 0.002795760025 | P53: =(1-I53-K53-M53-O53)*(I53+K53+M53+O53)/(1-(I53+K53+M53+O53)/92) -> 0.008916939158 | Q53: =IF(P53<>"",+P53/$P$153,0) -> 0.003096734672 | R53: =+I$7*I53+K$7*K53+M$7*M53+O$7*O53+Q$7*Q53 -> 0.002102294287 | T53: 0.002102294287 | U53: =ROUND(+$R53*U$6,0) -> 84 | X53: =ROUND(+$R53*X$6,0) -> 95 | AA53: =ROUND(+$R53*AA$6,0) -> 105 | AD53: =ROUND(+$R53*AD$6,0) -> 116
A54: 4D | B54: 132 | C54: =RANK($G54,$G$44:$G$152,1)+36 -> 47 | D54: A. Summers | G54: 538 | H54: =IF(G54<>"Scr",1/G54,"") -> 0.001858736059 | I54: =IF(H54<>"",+H54/$H$153,0) -> 0.001747768477 | J54: =(1-I54)*I54/(1-I54/92) -> 0.001744746928 | K54: =IF(J54<>"",+J54/$J$153,0) -> 0.00201886383 | L54: =(1-I54-K54)*(I54+K54)/(1-(I54+K54)/92) -> 0.003752598425 | M54: =IF(L54<>"",+L54/$L$153,0) -> 0.002423122123 | N54: =(1-I54-K54-M54)*(I54+K54+M54)/(1-(I54+K54+M54)/92) -> 0.006151855266 | O54: =IF(N54<>"",+N54/$N$153,0) -> 0.00279060781 | P54: =(1-I54-K54-M54-O54)*(I54+K54+M54+O54)/(1-(I54+K54+M54+O54)/92) -> 0.008900584143 | Q54: =IF(P54<>"",+P54/$P$153,0) -> 0.003091054793 | R54: =+I$7*I54+K$7*K54+M$7*M54+O$7*O54+Q$7*Q54 -> 0.002098400068 | T54: 0.002098400068 | U54: =ROUND(+$R54*U$6,0) -> 84 | X54: =ROUND(+$R54*X$6,0) -> 94 | AA54: =ROUND(+$R54*AA$6,0) -> 105 | AD54: =ROUND(+$R54*AD$6,0) -> 115
A55: 4D | B55: 122 | C55: =RANK($G55,$G$44:$G$152,1)+36 -> 48 | D55: T. Pilkadaris | G55: 640 | H55: =IF(G55<>"Scr",1/G55,"") -> 0.0015625 | I55: =IF(H55<>"",+H55/$H$153,0) -> 0.001469217876 | J55: =(1-I55)*I55/(1-I55/92) -> 0.001467082703 | K55: =IF(J55<>"",+J55/$J$153,0) -> 0.001697575825 | L55: =(1-I55-K55)*(I55+K55)/(1-(I55+K55)/92) -> 0.003156873783 | M55: =IF(L55<>"",+L55/$L$153,0) -> 0.002038451717 | N55: =(1-I55-K55-M55)*(I55+K55+M55)/(1-(I55+K55+M55)/92) -> 0.005178443828 | O55: =IF(N55<>"",+N55/$N$153,0) -> 0.002349048403 | P55: =(1-I55-K55-M55-O55)*(I55+K55+M55+O55)/(1-(I55+K55+M55+O55)/92) -> 0.007497842128 | Q55: =IF(P55<>"",+P55/$P$153,0) -> 0.0026039011 | R55: =+I$7*I55+K$7*K55+M$7*M55+O$7*O55+Q$7*Q55 -> 0.001764931551 | T55: 0.001764931551 | U55: =ROUND(+$R55*U$6,0) -> 71 | X55: =ROUND(+$R55*X$6,0) -> 79 | AA55: =ROUND(+$R55*AA$6,0) -> 88 | AD55: =ROUND(+$R55*AD$6,0) -> 97
A56: 4C | B56: 92 | C56: =RANK($G56,$G$44:$G$152,1)+36 -> 49 | D56: B. Moules | G56: 650 | H56: =IF(G56<>"Scr",1/G56,"") -> 0.001538461538 | I56: =IF(H56<>"",+H56/$H$153,0) -> 0.001446614524 | J56: =(1-I56)*I56/(1-I56/92) -> 0.001444544544 | K56: =IF(J56<>"",+J56/$J$153,0) -> 0.0016714967 | L56: =(1-I56-K56)*(I56+K56)/(1-(I56+K56)/92) -> 0.00310849396 | M56: =IF(L56<>"",+L56/$L$153,0) -> 0.002007211972 | N56: =(1-I56-K56-M56)*(I56+K56+M56)/(1-(I56+K56+M56)/92) -> 0.005099338341 | O56: =IF(N56<>"",+N56/$N$153,0) -> 0.002313164531 | P56: =(1-I56-K56-M56-O56)*(I56+K56+M56+O56)/(1-(I56+K56+M56+O56)/92) -> 0.007383753626 | Q56: =IF(P56<>"",+P56/$P$153,0) -> 0.002564279677 | R56: =+I$7*I56+K$7*K56+M$7*M56+O$7*O56+Q$7*Q56 -> 0.001737855825 | T56: 0.001737855825 | U56: =ROUND(+$R56*U$6,0) -> 70 | X56: =ROUND(+$R56*X$6,0) -> 78 | AA56: =ROUND(+$R56*AA$6,0) -> 87 | AD56: =ROUND(+$R56*AD$6,0) -> 96
A57: 4A | B57: 48 | C57: =RANK($G57,$G$44:$G$152,1)+36 -> 50 | D57: Z. Bauchou | G57: 675 | H57: =IF(G57<>"Scr",1/G57,"") -> 0.001481481481 | I57: =IF(H57<>"",+H57/$H$153,0) -> 0.001393036208 | J57: =(1-I57)*I57/(1-I57/92) -> 0.001391116722 | K57: =IF(J57<>"",+J57/$J$153,0) -> 0.001609674841 | L57: =(1-I57-K57)*(I57+K57)/(1-(I57+K57)/92) -> 0.002993792487 | M57: =IF(L57<>"",+L57/$L$153,0) -> 0.001933147112 | N57: =(1-I57-K57-M57)*(I57+K57+M57)/(1-(I57+K57+M57)/92) -> 0.004911758984 | O57: =IF(N57<>"",+N57/$N$153,0) -> 0.002228074684 | P57: =(1-I57-K57-M57-O57)*(I57+K57+M57+O57)/(1-(I57+K57+M57+O57)/92) -> 0.007113164805 | Q57: =IF(P57<>"",+P57/$P$153,0) -> 0.002470307769 | R57: =+I$7*I57+K$7*K57+M$7*M57+O$7*O57+Q$7*Q57 -> 0.001673666734 | T57: 0.001673666734 | U57: =ROUND(+$R57*U$6,0) -> 67 | X57: =ROUND(+$R57*X$6,0) -> 75 | AA57: =ROUND(+$R57*AA$6,0) -> 84 | AD57: =ROUND(+$R57*AD$6,0) -> 92
A58: 4B | B58: 85 | C58: =RANK($G58,$G$44:$G$152,1)+36 -> 51 | D58: M. Jager | G58: 692 | H58: =IF(G58<>"Scr",1/G58,"") -> 0.001445086705 | I58: =IF(H58<>"",+H58/$H$153,0) -> 0.00135881422 | J58: =(1-I58)*I58/(1-I58/92) -> 0.001356987886 | K58: =IF(J58<>"",+J58/$J$153,0) -> 0.00157018403 | L58: =(1-I58-K58)*(I58+K58)/(1-(I58+K58)/92) -> 0.002920512199 | M58: =IF(L58<>"",+L58/$L$153,0) -> 0.001885828676 | N58: =(1-I58-K58-M58)*(I58+K58+M58)/(1-(I58+K58+M58)/92) -> 0.004791895152 | O58: =IF(N58<>"",+N58/$N$153,0) -> 0.00217370199 | P58: =(1-I58-K58-M58-O58)*(I58+K58+M58+O58)/(1-(I58+K58+M58+O58)/92) -> 0.006940216574 | Q58: =IF(P58<>"",+P58/$P$153,0) -> 0.002410245143 | R58: =+I$7*I58+K$7*K58+M$7*M58+O$7*O58+Q$7*Q58 -> 0.00163266028 | T58: 0.00163266028 | U58: =ROUND(+$R58*U$6,0) -> 65 | X58: =ROUND(+$R58*X$6,0) -> 73 | AA58: =ROUND(+$R58*AA$6,0) -> 82 | AD58: =ROUND(+$R58*AD$6,0) -> 90
A59: 4C | B59: 109 | C59: =RANK($G59,$G$44:$G$152,1)+36 -> 52 | D59: P. O'Malley | G59: 700 | H59: =IF(G59<>"Scr",1/G59,"") -> 0.001428571429 | I59: =IF(H59<>"",+H59/$H$153,0) -> 0.001343284915 | J59: =(1-I59)*I59/(1-I59/92) -> 0.001341500088 | K59: =IF(J59<>"",+J59/$J$153,0) -> 0.001552262945 | L59: =(1-I59-K59)*(I59+K59)/(1-(I59+K59)/92) -> 0.002887254534 | M59: =IF(L59<>"",+L59/$L$153,0) -> 0.001864353587 | N59: =(1-I59-K59-M59)*(I59+K59+M59)/(1-(I59+K59+M59)/92) -> 0.004737489894 | O59: =IF(N59<>"",+N59/$N$153,0) -> 0.002149022649 | P59: =(1-I59-K59-M59-O59)*(I59+K59+M59+O59)/(1-(I59+K59+M59+O59)/92) -> 0.006861706158 | Q59: =IF(P59<>"",+P59/$P$153,0) -> 0.002382979517 | R59: =+I$7*I59+K$7*K59+M$7*M59+O$7*O59+Q$7*Q59 -> 0.001614050493 | T59: 0.001614050493 | U59: =ROUND(+$R59*U$6,0) -> 65 | X59: =ROUND(+$R59*X$6,0) -> 73 | AA59: =ROUND(+$R59*AA$6,0) -> 81 | AD59: =ROUND(+$R59*AD$6,0) -> 89
A60: 4D | B60: 142 | C60: =RANK($G60,$G$44:$G$152,1)+36 -> 52 | D60: L. Yip | G60: 700 | H60: =IF(G60<>"Scr",1/G60,"") -> 0.001428571429 | I60: =IF(H60<>"",+H60/$H$153,0) -> 0.001343284915 | J60: =(1-I60)*I60/(1-I60/92) -> 0.001341500088 | K60: =IF(J60<>"",+J60/$J$153,0) -> 0.001552262945 | L60: =(1-I60-K60)*(I60+K60)/(1-(I60+K60)/92) -> 0.002887254534 | M60: =IF(L60<>"",+L60/$L$153,0) -> 0.001864353587 | N60: =(1-I60-K60-M60)*(I60+K60+M60)/(1-(I60+K60+M60)/92) -> 0.004737489894 | O60: =IF(N60<>"",+N60/$N$153,0) -> 0.002149022649 | P60: =(1-I60-K60-M60-O60)*(I60+K60+M60+O60)/(1-(I60+K60+M60+O60)/92) -> 0.006861706158 | Q60: =IF(P60<>"",+P60/$P$153,0) -> 0.002382979517 | R60: =+I$7*I60+K$7*K60+M$7*M60+O$7*O60+Q$7*Q60 -> 0.001614050493 | T60: 0.001614050493 | U60: =ROUND(+$R60*U$6,0) -> 65 | X60: =ROUND(+$R60*X$6,0) -> 73 | AA60: =ROUND(+$R60*AA$6,0) -> 81 | AD60: =ROUND(+$R60*AD$6,0) -> 89
A61: 4C | B61: 111 | C61: =RANK($G61,$G$44:$G$152,1)+36 -> 54 | D61: C. O'Reilly | G61: 710 | H61: =IF(G61<>"Scr",1/G61,"") -> 0.001408450704 | I61: =IF(H61<>"",+H61/$H$153,0) -> 0.001324365409 | J61: =(1-I61)*I61/(1-I61/92) -> 0.001322630505 | K61: =IF(J61<>"",+J61/$J$153,0) -> 0.001530428766 | L61: =(1-I61-K61)*(I61+K61)/(1-(I61+K61)/92) -> 0.00284673266 | M61: =IF(L61<>"",+L61/$L$153,0) -> 0.001838187865 | N61: =(1-I61-K61-M61)*(I61+K61+M61)/(1-(I61+K61+M61)/92) -> 0.00467119624 | O61: =IF(N61<>"",+N61/$N$153,0) -> 0.002118950486 | P61: =(1-I61-K61-M61-O61)*(I61+K61+M61+O61)/(1-(I61+K61+M61+O61)/92) -> 0.006766031076 | Q61: =IF(P61<>"",+P61/$P$153,0) -> 0.002349752831 | R61: =+I$7*I61+K$7*K61+M$7*M61+O$7*O61+Q$7*Q61 -> 0.001591376473 | T61: 0.001591376473 | U61: =ROUND(+$R61*U$6,0) -> 64 | X61: =ROUND(+$R61*X$6,0) -> 72 | AA61: =ROUND(+$R61*AA$6,0) -> 80 | AD61: =ROUND(+$R61*AD$6,0) -> 88
A62: 4D | B62: 141 | C62: =RANK($G62,$G$44:$G$152,1)+36 -> 55 | D62: N. Xiong | G62: 715 | H62: =IF(G62<>"Scr",1/G62,"") -> 0.001398601399 | I62: =IF(H62<>"",+H62/$H$153,0) -> 0.001315104112 | J62: =(1-I62)*I62/(1-I62/92) -> 0.001313393388 | K62: =IF(J62<>"",+J62/$J$153,0) -> 0.001519740407 | L62: =(1-I62-K62)*(I62+K62)/(1-(I62+K62)/92) -> 0.002826895282 | M62: =IF(L62<>"",+L62/$L$153,0) -> 0.001825378504 | N62: =(1-I62-K62-M62)*(I62+K62+M62)/(1-(I62+K62+M62)/92) -> 0.004638740318 | O62: =IF(N62<>"",+N62/$N$153,0) -> 0.002104227814 | P62: =(1-I62-K62-M62-O62)*(I62+K62+M62+O62)/(1-(I62+K62+M62+O62)/92) -> 0.006719187081 | Q62: =IF(P62<>"",+P62/$P$153,0) -> 0.002333484533 | R62: =+I$7*I62+K$7*K62+M$7*M62+O$7*O62+Q$7*Q62 -> 0.001580276688 | T62: 0.001580276688 | U62: =ROUND(+$R62*U$6,0) -> 63 | X62: =ROUND(+$R62*X$6,0) -> 71 | AA62: =ROUND(+$R62*AA$6,0) -> 79 | AD62: =ROUND(+$R62*AD$6,0) -> 87
A63: 4A | B63: 56 | C63: =RANK($G63,$G$44:$G$152,1)+36 -> 56 | D63: C. Crawford | G63: 720 | H63: =IF(G63<>"Scr",1/G63,"") -> 0.001388888889 | I63: =IF(H63<>"",+H63/$H$153,0) -> 0.001305971445 | J63: =(1-I63)*I63/(1-I63/92) -> 0.001304284398 | K63: =IF(J63<>"",+J63/$J$153,0) -> 0.001509200305 | L63: =(1-I63-K63)*(I63+K63)/(1-(I63+K63)/92) -> 0.002807332462 | M63: =IF(L63<>"",+L63/$L$153,0) -> 0.001812746429 | N63: =(1-I63-K63-M63)*(I63+K63+M63)/(1-(I63+K63+M63)/92) -> 0.004606732287 | O63: =IF(N63<>"",+N63/$N$153,0) -> 0.002089708314 | P63: =(1-I63-K63-M63-O63)*(I63+K63+M63+O63)/(1-(I63+K63+M63+O63)/92) -> 0.006672987234 | Q63: =IF(P63<>"",+P63/$P$153,0) -> 0.002317439939 | R63: =+I$7*I63+K$7*K63+M$7*M63+O$7*O63+Q$7*Q63 -> 0.001569330672 | T63: 0.001569330672 | U63: =ROUND(+$R63*U$6,0) -> 63 | X63: =ROUND(+$R63*X$6,0) -> 71 | AA63: =ROUND(+$R63*AA$6,0) -> 78 | AD63: =ROUND(+$R63*AD$6,0) -> 86
A64: 4A | B64: 61 | C64: =RANK($G64,$G$44:$G$152,1)+36 -> 56 | D64: M. Davis | G64: 720 | H64: =IF(G64<>"Scr",1/G64,"") -> 0.001388888889 | I64: =IF(H64<>"",+H64/$H$153,0) -> 0.001305971445 | J64: =(1-I64)*I64/(1-I64/92) -> 0.001304284398 | K64: =IF(J64<>"",+J64/$J$153,0) -> 0.001509200305 | L64: =(1-I64-K64)*(I64+K64)/(1-(I64+K64)/92) -> 0.002807332462 | M64: =IF(L64<>"",+L64/$L$153,0) -> 0.001812746429 | N64: =(1-I64-K64-M64)*(I64+K64+M64)/(1-(I64+K64+M64)/92) -> 0.004606732287 | O64: =IF(N64<>"",+N64/$N$153,0) -> 0.002089708314 | P64: =(1-I64-K64-M64-O64)*(I64+K64+M64+O64)/(1-(I64+K64+M64+O64)/92) -> 0.006672987234 | Q64: =IF(P64<>"",+P64/$P$153,0) -> 0.002317439939 | R64: =+I$7*I64+K$7*K64+M$7*M64+O$7*O64+Q$7*Q64 -> 0.001569330672 | T64: 0.001569330672 | U64: =ROUND(+$R64*U$6,0) -> 63 | X64: =ROUND(+$R64*X$6,0) -> 71 | AA64: =ROUND(+$R64*AA$6,0) -> 78 | AD64: =ROUND(+$R64*AD$6,0) -> 86
A65: 4B | B65: 76 | C65: =RANK($G65,$G$44:$G$152,1)+36 -> 56 | D65: J. Higginbottom | G65: 720 | H65: =IF(G65<>"Scr",1/G65,"") -> 0.001388888889 | I65: =IF(H65<>"",+H65/$H$153,0) -> 0.001305971445 | J65: =(1-I65)*I65/(1-I65/92) -> 0.001304284398 | K65: =IF(J65<>"",+J65/$J$153,0) -> 0.001509200305 | L65: =(1-I65-K65)*(I65+K65)/(1-(I65+K65)/92) -> 0.002807332462 | M65: =IF(L65<>"",+L65/$L$153,0) -> 0.001812746429 | N65: =(1-I65-K65-M65)*(I65+K65+M65)/(1-(I65+K65+M65)/92) -> 0.004606732287 | O65: =IF(N65<>"",+N65/$N$153,0) -> 0.002089708314 | P65: =(1-I65-K65-M65-O65)*(I65+K65+M65+O65)/(1-(I65+K65+M65+O65)/92) -> 0.006672987234 | Q65: =IF(P65<>"",+P65/$P$153,0) -> 0.002317439939 | R65: =+I$7*I65+K$7*K65+M$7*M65+O$7*O65+Q$7*Q65 -> 0.001569330672 | T65: 0.001569330672 | U65: =ROUND(+$R65*U$6,0) -> 63 | X65: =ROUND(+$R65*X$6,0) -> 71 | AA65: =ROUND(+$R65*AA$6,0) -> 78 | AD65: =ROUND(+$R65*AD$6,0) -> 86
A66: 4C | B66: 106 | C66: =RANK($G66,$G$44:$G$152,1)+36 -> 59 | D66: J. Norris | G66: 735 | H66: =IF(G66<>"Scr",1/G66,"") -> 0.001360544218 | I66: =IF(H66<>"",+H66/$H$153,0) -> 0.001279318966 | J66: =(1-I66)*I66/(1-I66/92) -> 0.001277700077 | K66: =IF(J66<>"",+J66/$J$153,0) -> 0.001478439325 | L66: =(1-I66-K66)*(I66+K66)/(1-(I66+K66)/92) -> 0.002750235501 | M66: =IF(L66<>"",+L66/$L$153,0) -> 0.001775877867 | N66: =(1-I66-K66-M66)*(I66+K66+M66)/(1-(I66+K66+M66)/92) -> 0.004513304711 | O66: =IF(N66<>"",+N66/$N$153,0) -> 0.002047327648 | P66: =(1-I66-K66-M66-O66)*(I66+K66+M66+O66)/(1-(I66+K66+M66+O66)/92) -> 0.006538122408 | Q66: =IF(P66<>"",+P66/$P$153,0) -> 0.002270603174 | R66: =+I$7*I66+K$7*K66+M$7*M66+O$7*O66+Q$7*Q66 -> 0.001537383933 | T66: 0.001537383933 | U66: =ROUND(+$R66*U$6,0) -> 61 | X66: =ROUND(+$R66*X$6,0) -> 69 | AA66: =ROUND(+$R66*AA$6,0) -> 77 | AD66: =ROUND(+$R66*AD$6,0) -> 85
A67: 4B | B67: 69 | C67: =RANK($G67,$G$44:$G$152,1)+36 -> 60 | D67: P. Fowler | G67: 740 | H67: =IF(G67<>"Scr",1/G67,"") -> 0.001351351351 | I67: =IF(H67<>"",+H67/$H$153,0) -> 0.001270674919 | J67: =(1-I67)*I67/(1-I67/92) -> 0.001269077833 | K67: =IF(J67<>"",+J67/$J$153,0) -> 0.001468462442 | L67: =(1-I67-K67)*(I67+K67)/(1-(I67+K67)/92) -> 0.00273171582 | M67: =IF(L67<>"",+L67/$L$153,0) -> 0.001763919366 | N67: =(1-I67-K67-M67)*(I67+K67+M67)/(1-(I67+K67+M67)/92) -> 0.004482998634 | O67: =IF(N67<>"",+N67/$N$153,0) -> 0.00203358019 | P67: =(1-I67-K67-M67-O67)*(I67+K67+M67+O67)/(1-(I67+K67+M67+O67)/92) -> 0.006494370723 | Q67: =IF(P67<>"",+P67/$P$153,0) -> 0.002255408794 | R67: =+I$7*I67+K$7*K67+M$7*M67+O$7*O67+Q$7*Q67 -> 0.001527022111 | T67: 0.001527022111 | U67: =ROUND(+$R67*U$6,0) -> 61 | X67: =ROUND(+$R67*X$6,0) -> 69 | AA67: =ROUND(+$R67*AA$6,0) -> 76 | AD67: =ROUND(+$R67*AD$6,0) -> 84
A68: 4A | B68: 51 | C68: =RANK($G68,$G$44:$G$152,1)+36 -> 61 | D68: D. Beck | G68: 755 | H68: =IF(G68<>"Scr",1/G68,"") -> 0.001324503311 | I68: =IF(H68<>"",+H68/$H$153,0) -> 0.001245429722 | J68: =(1-I68)*I68/(1-I68/92) -> 0.001243895466 | K68: =IF(J68<>"",+J68/$J$153,0) -> 0.001439323678 | L68: =(1-I68-K68)*(I68+K68)/(1-(I68+K68)/92) -> 0.002677623638 | M68: =IF(L68<>"",+L68/$L$153,0) -> 0.001728991045 | N68: =(1-I68-K68-M68)*(I68+K68+M68)/(1-(I68+K68+M68)/92) -> 0.004394474133 | O68: =IF(N68<>"",+N68/$N$153,0) -> 0.001993423659 | P68: =(1-I68-K68-M68-O68)*(I68+K68+M68+O68)/(1-(I68+K68+M68+O68)/92) -> 0.006366559689 | Q68: =IF(P68<>"",+P68/$P$153,0) -> 0.002211021717 | R68: =+I$7*I68+K$7*K68+M$7*M68+O$7*O68+Q$7*Q68 -> 0.001496758087 | T68: 0.001496758087 | U68: =ROUND(+$R68*U$6,0) -> 60 | X68: =ROUND(+$R68*X$6,0) -> 67 | AA68: =ROUND(+$R68*AA$6,0) -> 75 | AD68: =ROUND(+$R68*AD$6,0) -> 82
A69: 4A | B69: 40 | C69: =RANK($G69,$G$44:$G$152,1)+36 -> 62 | D69: R. Allenby | G69: 760 | H69: =IF(G69<>"Scr",1/G69,"") -> 0.001315789474 | I69: =IF(H69<>"",+H69/$H$153,0) -> 0.001237236106 | J69: =(1-I69)*I69/(1-I69/92) -> 0.001235721971 | K69: =IF(J69<>"",+J69/$J$153,0) -> 0.001429866046 | L69: =(1-I69-K69)*(I69+K69)/(1-(I69+K69)/92) -> 0.002660065834 | M69: =IF(L69<>"",+L69/$L$153,0) -> 0.001717653647 | N69: =(1-I69-K69-M69)*(I69+K69+M69)/(1-(I69+K69+M69)/92) -> 0.004365737788 | O69: =IF(N69<>"",+N69/$N$153,0) -> 0.001980388263 | P69: =(1-I69-K69-M69-O69)*(I69+K69+M69+O69)/(1-(I69+K69+M69+O69)/92) -> 0.006325066611 | Q69: =IF(P69<>"",+P69/$P$153,0) -> 0.002196611722 | R69: =+I$7*I69+K$7*K69+M$7*M69+O$7*O69+Q$7*Q69 -> 0.001486934909 | T69: 0.001486934909 | U69: =ROUND(+$R69*U$6,0) -> 59 | X69: =ROUND(+$R69*X$6,0) -> 67 | AA69: =ROUND(+$R69*AA$6,0) -> 74 | AD69: =ROUND(+$R69*AD$6,0) -> 82
A70: 4C | B70: 108 | C70: =RANK($G70,$G$44:$G$152,1)+36 -> 63 | D70: K. Nakajima | G70: 765 | H70: =IF(G70<>"Scr",1/G70,"") -> 0.001307189542 | I70: =IF(H70<>"",+H70/$H$153,0) -> 0.001229149595 | J70: =(1-I70)*I70/(1-I70/92) -> 0.001227655188 | K70: =IF(J70<>"",+J70/$J$153,0) -> 0.001420531893 | L70: =(1-I70-K70)*(I70+K70)/(1-(I70+K70)/92) -> 0.002642736789 | M70: =IF(L70<>"",+L70/$L$153,0) -> 0.001706463963 | N70: =(1-I70-K70-M70)*(I70+K70+M70)/(1-(I70+K70+M70)/92) -> 0.00433737482 | O70: =IF(N70<>"",+N70/$N$153,0) -> 0.001967522239 | P70: =(1-I70-K70-M70-O70)*(I70+K70+M70+O70)/(1-(I70+K70+M70+O70)/92) -> 0.006284110858 | Q70: =IF(P70<>"",+P70/$P$153,0) -> 0.002182388332 | R70: =+I$7*I70+K$7*K70+M$7*M70+O$7*O70+Q$7*Q70 -> 0.001477239828 | T70: 0.001477239828 | U70: =ROUND(+$R70*U$6,0) -> 59 | X70: =ROUND(+$R70*X$6,0) -> 66 | AA70: =ROUND(+$R70*AA$6,0) -> 74 | AD70: =ROUND(+$R70*AD$6,0) -> 81
A71: 4D | B71: 117 | C71: =RANK($G71,$G$44:$G$152,1)+36 -> 63 | D71: M. Perry | G71: 765 | H71: =IF(G71<>"Scr",1/G71,"") -> 0.001307189542 | I71: =IF(H71<>"",+H71/$H$153,0) -> 0.001229149595 | J71: =(1-I71)*I71/(1-I71/92) -> 0.001227655188 | K71: =IF(J71<>"",+J71/$J$153,0) -> 0.001420531893 | L71: =(1-I71-K71)*(I71+K71)/(1-(I71+K71)/92) -> 0.002642736789 | M71: =IF(L71<>"",+L71/$L$153,0) -> 0.001706463963 | N71: =(1-I71-K71-M71)*(I71+K71+M71)/(1-(I71+K71+M71)/92) -> 0.00433737482 | O71: =IF(N71<>"",+N71/$N$153,0) -> 0.001967522239 | P71: =(1-I71-K71-M71-O71)*(I71+K71+M71+O71)/(1-(I71+K71+M71+O71)/92) -> 0.006284110858 | Q71: =IF(P71<>"",+P71/$P$153,0) -> 0.002182388332 | R71: =+I$7*I71+K$7*K71+M$7*M71+O$7*O71+Q$7*Q71 -> 0.001477239828 | T71: 0.001477239828 | U71: =ROUND(+$R71*U$6,0) -> 59 | X71: =ROUND(+$R71*X$6,0) -> 66 | AA71: =ROUND(+$R71*AA$6,0) -> 74 | AD71: =ROUND(+$R71*AD$6,0) -> 81
A72: 4A | B72: 54 | C72: =RANK($G72,$G$44:$G$152,1)+36 -> 65 | D72: R. Bourke | G72: 770 | H72: =IF(G72<>"Scr",1/G72,"") -> 0.001298701299 | I72: =IF(H72<>"",+H72/$H$153,0) -> 0.001221168104 | J72: =(1-I72)*I72/(1-I72/92) -> 0.001219693043 | K72: =IF(J72<>"",+J72/$J$153,0) -> 0.001411318816 | L72: =(1-I72-K72)*(I72+K72)/(1-(I72+K72)/92) -> 0.002625632062 | M72: =IF(L72<>"",+L72/$L$153,0) -> 0.001695419124 | N72: =(1-I72-K72-M72)*(I72+K72+M72)/(1-(I72+K72+M72)/92) -> 0.004309377997 | O72: =IF(N72<>"",+N72/$N$153,0) -> 0.001954822306 | P72: =(1-I72-K72-M72-O72)*(I72+K72+M72+O72)/(1-(I72+K72+M72+O72)/92) -> 0.006243682059 | Q72: =IF(P72<>"",+P72/$P$153,0) -> 0.002168347947 | R72: =+I$7*I72+K$7*K72+M$7*M72+O$7*O72+Q$7*Q72 -> 0.001467670355 | T72: =+R72+S72 -> 0.001467670355 | U72: =ROUND(+$R72*U$6,0) -> 59 | X72: =ROUND(+$R72*X$6,0) -> 66 | AA72: =ROUND(+$R72*AA$6,0) -> 73 | AD72: =ROUND(+$R72*AD$6,0) -> 81
A73: 4D | B73: 114 | C73: =RANK($G73,$G$44:$G$152,1)+36 -> 65 | D73: C. Parry | G73: 770 | H73: =IF(G73<>"Scr",1/G73,"") -> 0.001298701299 | I73: =IF(H73<>"",+H73/$H$153,0) -> 0.001221168104 | J73: =(1-I73)*I73/(1-I73/92) -> 0.001219693043 | K73: =IF(J73<>"",+J73/$J$153,0) -> 0.001411318816 | L73: =(1-I73-K73)*(I73+K73)/(1-(I73+K73)/92) -> 0.002625632062 | M73: =IF(L73<>"",+L73/$L$153,0) -> 0.001695419124 | N73: =(1-I73-K73-M73)*(I73+K73+M73)/(1-(I73+K73+M73)/92) -> 0.004309377997 | O73: =IF(N73<>"",+N73/$N$153,0) -> 0.001954822306 | P73: =(1-I73-K73-M73-O73)*(I73+K73+M73+O73)/(1-(I73+K73+M73+O73)/92) -> 0.006243682059 | Q73: =IF(P73<>"",+P73/$P$153,0) -> 0.002168347947 | R73: =+I$7*I73+K$7*K73+M$7*M73+O$7*O73+Q$7*Q73 -> 0.001467670355 | T73: =+R73+S73 -> 0.001467670355 | U73: =ROUND(+$R73*U$6,0) -> 59 | X73: =ROUND(+$R73*X$6,0) -> 66 | AA73: =ROUND(+$R73*AA$6,0) -> 73 | AD73: =ROUND(+$R73*AD$6,0) -> 81
A74: 4C | B74: 94 | C74: =RANK($G74,$G$44:$G$152,1)+36 -> 67 | D74: T. Moses | G74: 772 | H74: =IF(G74<>"Scr",1/G74,"") -> 0.001295336788 | I74: =IF(H74<>"",+H74/$H$153,0) -> 0.001218004456 | J74: =(1-I74)*I74/(1-I74/92) -> 0.001216537028 | K74: =IF(J74<>"",+J74/$J$153,0) -> 0.00140766696 | L74: =(1-I74-K74)*(I74+K74)/(1-(I74+K74)/92) -> 0.002618852007 | M74: =IF(L74<>"",+L74/$L$153,0) -> 0.001691041118 | N74: =(1-I74-K74-M74)*(I74+K74+M74)/(1-(I74+K74+M74)/92) -> 0.004298280205 | O74: =IF(N74<>"",+N74/$N$153,0) -> 0.001949788119 | P74: =(1-I74-K74-M74-O74)*(I74+K74+M74+O74)/(1-(I74+K74+M74+O74)/92) -> 0.006227655814 | Q74: =IF(P74<>"",+P74/$P$153,0) -> 0.002162782245 | R74: =+I$7*I74+K$7*K74+M$7*M74+O$7*O74+Q$7*Q74 -> 0.001463877191 | T74: 0.001463877191 | U74: =ROUND(+$R74*U$6,0) -> 59 | X74: =ROUND(+$R74*X$6,0) -> 66 | AA74: =ROUND(+$R74*AA$6,0) -> 73 | AD74: =ROUND(+$R74*AD$6,0) -> 81
A75: 4C | B75: 110 | C75: =RANK($G75,$G$44:$G$152,1)+36 -> 68 | D75: N. O'Hern | G75: 780 | H75: =IF(G75<>"Scr",1/G75,"") -> 0.001282051282 | I75: =IF(H75<>"",+H75/$H$153,0) -> 0.001205512103 | J75: =(1-I75)*I75/(1-I75/92) -> 0.001204074621 | K75: =IF(J75<>"",+J75/$J$153,0) -> 0.001393246586 | L75: =(1-I75-K75)*(I75+K75)/(1-(I75+K75)/92) -> 0.002592078362 | M75: =IF(L75<>"",+L75/$L$153,0) -> 0.001673752881 | N75: =(1-I75-K75-M75)*(I75+K75+M75)/(1-(I75+K75+M75)/92) -> 0.004254454793 | O75: =IF(N75<>"",+N75/$N$153,0) -> 0.001929908013 | P75: =(1-I75-K75-M75-O75)*(I75+K75+M75+O75)/(1-(I75+K75+M75+O75)/92) -> 0.006164365161 | Q75: =IF(P75<>"",+P75/$P$153,0) -> 0.00214080224 | R75: =+I$7*I75+K$7*K75+M$7*M75+O$7*O75+Q$7*Q75 -> 0.001448898596 | T75: 0.001448898596 | U75: =ROUND(+$R75*U$6,0) -> 58 | X75: =ROUND(+$R75*X$6,0) -> 65 | AA75: =ROUND(+$R75*AA$6,0) -> 72 | AD75: =ROUND(+$R75*AD$6,0) -> 80
A76: 4C | B76: 112 | C76: =RANK($G76,$G$44:$G$152,1)+36 -> 69 | D76: B. Rankin | G76: 781 | H76: =IF(G76<>"Scr",1/G76,"") -> 0.001280409731 | I76: =IF(H76<>"",+H76/$H$153,0) -> 0.001203968554 | J76: =(1-I76)*I76/(1-I76/92) -> 0.00120253475 | K76: =IF(J76<>"",+J76/$J$153,0) -> 0.001391464787 | L76: =(1-I76-K76)*(I76+K76)/(1-(I76+K76)/92) -> 0.002588770099 | M76: =IF(L76<>"",+L76/$L$153,0) -> 0.001671616674 | N76: =(1-I76-K76-M76)*(I76+K76+M76)/(1-(I76+K76+M76)/92) -> 0.004249039373 | O76: =IF(N76<>"",+N76/$N$153,0) -> 0.001927451467 | P76: =(1-I76-K76-M76-O76)*(I76+K76+M76+O76)/(1-(I76+K76+M76+O76)/92) -> 0.006156544162 | Q76: =IF(P76<>"",+P76/$P$153,0) -> 0.002138086111 | R76: =+I$7*I76+K$7*K76+M$7*M76+O$7*O76+Q$7*Q76 -> 0.001447047796 | T76: 0.001447047796 | U76: =ROUND(+$R76*U$6,0) -> 58 | X76: =ROUND(+$R76*X$6,0) -> 65 | AA76: =ROUND(+$R76*AA$6,0) -> 72 | AD76: =ROUND(+$R76*AD$6,0) -> 80
A77: 4C | B77: 99 | C77: =RANK($G77,$G$44:$G$152,1)+36 -> 70 | D77: A. Murdaca | G77: 786 | H77: =IF(G77<>"Scr",1/G77,"") -> 0.001272264631 | I77: =IF(H77<>"",+H77/$H$153,0) -> 0.001196309721 | J77: =(1-I77)*I77/(1-I77/92) -> 0.001194894101 | K77: =IF(J77<>"",+J77/$J$153,0) -> 0.001382623717 | L77: =(1-I77-K77)*(I77+K77)/(1-(I77+K77)/92) -> 0.002572354648 | M77: =IF(L77<>"",+L77/$L$153,0) -> 0.001661016914 | N77: =(1-I77-K77-M77)*(I77+K77+M77)/(1-(I77+K77+M77)/92) -> 0.004222167757 | O77: =IF(N77<>"",+N77/$N$153,0) -> 0.00191526195 | P77: =(1-I77-K77-M77-O77)*(I77+K77+M77+O77)/(1-(I77+K77+M77+O77)/92) -> 0.006117734967 | Q77: =IF(P77<>"",+P77/$P$153,0) -> 0.002124608193 | R77: =+I$7*I77+K$7*K77+M$7*M77+O$7*O77+Q$7*Q77 -> 0.001437864275 | T77: 0.001437864275 | U77: =ROUND(+$R77*U$6,0) -> 58 | X77: =ROUND(+$R77*X$6,0) -> 65 | AA77: =ROUND(+$R77*AA$6,0) -> 72 | AD77: =ROUND(+$R77*AD$6,0) -> 79
A78: 4B | B78: 66 | C78: =RANK($G78,$G$44:$G$152,1)+36 -> 71 | D78: C. Fewkes | G78: 789 | H78: =IF(G78<>"Scr",1/G78,"") -> 0.001267427123 | I78: =IF(H78<>"",+H78/$H$153,0) -> 0.001191761014 | J78: =(1-I78)*I78/(1-I78/92) -> 0.00119035614 | K78: =IF(J78<>"",+J78/$J$153,0) -> 0.001377372797 | L78: =(1-I78-K78)*(I78+K78)/(1-(I78+K78)/92) -> 0.002562604925 | M78: =IF(L78<>"",+L78/$L$153,0) -> 0.001654721337 | N78: =(1-I78-K78-M78)*(I78+K78+M78)/(1-(I78+K78+M78)/92) -> 0.00420620731 | O78: =IF(N78<>"",+N78/$N$153,0) -> 0.001908021964 | P78: =(1-I78-K78-M78-O78)*(I78+K78+M78+O78)/(1-(I78+K78+M78+O78)/92) -> 0.006094683412 | Q78: =IF(P78<>"",+P78/$P$153,0) -> 0.002116602693 | R78: =+I$7*I78+K$7*K78+M$7*M78+O$7*O78+Q$7*Q78 -> 0.001432409901 | T78: 0.001432409901 | U78: =ROUND(+$R78*U$6,0) -> 57 | X78: =ROUND(+$R78*X$6,0) -> 64 | AA78: =ROUND(+$R78*AA$6,0) -> 72 | AD78: =ROUND(+$R78*AD$6,0) -> 79
A79: 4B | B79: 77 | C79: =RANK($G79,$G$44:$G$152,1)+36 -> 72 | D79: V. Hovland | G79: 790 | H79: =IF(G79<>"Scr",1/G79,"") -> 0.001265822785 | I79: =IF(H79<>"",+H79/$H$153,0) -> 0.001190252456 | J79: =(1-I79)*I79/(1-I79/92) -> 0.001188851136 | K79: =IF(J79<>"",+J79/$J$153,0) -> 0.001375631342 | L79: =(1-I79-K79)*(I79+K79)/(1-(I79+K79)/92) -> 0.00255937142 | M79: =IF(L79<>"",+L79/$L$153,0) -> 0.001652633404 | N79: =(1-I79-K79-M79)*(I79+K79+M79)/(1-(I79+K79+M79)/92) -> 0.004200913941 | O79: =IF(N79<>"",+N79/$N$153,0) -> 0.001905620783 | P79: =(1-I79-K79-M79-O79)*(I79+K79+M79+O79)/(1-(I79+K79+M79+O79)/92) -> 0.006087038113 | Q79: =IF(P79<>"",+P79/$P$153,0) -> 0.002113947583 | R79: =+I$7*I79+K$7*K79+M$7*M79+O$7*O79+Q$7*Q79 -> 0.00143060096 | T79: 0.00143060096 | U79: =ROUND(+$R79*U$6,0) -> 57 | X79: =ROUND(+$R79*X$6,0) -> 64 | AA79: =ROUND(+$R79*AA$6,0) -> 72 | AD79: =ROUND(+$R79*AD$6,0) -> 79
A80: 4A | B80: 37 | C80: =RANK($G80,$G$44:$G$152,1)+36 -> 83 | D80: J. Arnold | G80: 852 | H80: =IF(G80<>"Scr",1/G80,"") -> 0.00117370892 | I80: =IF(H80<>"",+H80/$H$153,0) -> 0.001103637841 | J80: =(1-I80)*I80/(1-I80/92) -> 0.001102433049 | K80: =IF(J80<>"",+J80/$J$153,0) -> 0.001275636124 | L80: =(1-I80-K80)*(I80+K80)/(1-(I80+K80)/92) -> 0.002373674407 | M80: =IF(L80<>"",+L80/$L$153,0) -> 0.001532725412 | N80: =(1-I80-K80-M80)*(I80+K80+M80)/(1-(I80+K80+M80)/92) -> 0.003896861339 | O80: =IF(N80<>"",+N80/$N$153,0) -> 0.001767696283 | P80: =(1-I80-K80-M80-O80)*(I80+K80+M80+O80)/(1-(I80+K80+M80+O80)/92) -> 0.005647785388 | Q80: =IF(P80<>"",+P80/$P$153,0) -> 0.001961400939 | R80: =+I$7*I80+K$7*K80+M$7*M80+O$7*O80+Q$7*Q80 -> 0.001326721779 | T80: 0.001326721779 | U80: =ROUND(+$R80*U$6,0) -> 53 | X80: =ROUND(+$R80*X$6,0) -> 60 | AA80: =ROUND(+$R80*AA$6,0) -> 66 | AD80: =ROUND(+$R80*AD$6,0) -> 73
A81: 4A | B81: 38 | C81: =RANK($G81,$G$44:$G$152,1)+36 -> 130 | D81: J. Anstiss | G81: 1500 | H81: =IF(G81<>"Scr",1/G81,"") -> 0.0006666666667 | I81: =IF(H81<>"",+H81/$H$153,0) -> 0.0006268662936 | J81: =(1-I81)*I81/(1-I81/92) -> 0.0006264776009 | K81: =IF(J81<>"",+J81/$J$153,0) -> 0.0007249033936 | L81: =(1-I81-K81)*(I81+K81)/(1-(I81+K81)/92) -> 0.001349962241 | M81: =IF(L81<>"",+L81/$L$153,0) -> 0.0008716955562 | N81: =(1-I81-K81-M81)*(I81+K81+M81)/(1-(I81+K81+M81)/92) -> 0.002218575064 | O81: =IF(N81<>"",+N81/$N$153,0) -> 0.001006391183 | P81: =(1-I81-K81-M81-O81)*(I81+K81+M81+O81)/(1-(I81+K81+M81+O81)/92) -> 0.003219537483 | Q81: =IF(P81<>"",+P81/$P$153,0) -> 0.001118102656 | R81: =+I$7*I81+K$7*K81+M$7*M81+O$7*O81+Q$7*Q81 -> 0.0007542840691 | T81: 0.0007542840691 | U81: =ROUND(+$R81*U$6,0) -> 30 | X81: =ROUND(+$R81*X$6,0) -> 34 | AA81: =ROUND(+$R81*AA$6,0) -> 38 | AD81: =ROUND(+$R81*AD$6,0) -> 41
A82: 4A | B82: 39 | C82: =RANK($G82,$G$44:$G$152,1)+36 -> 130 | D82: S. An | G82: 1500 | H82: =IF(G82<>"Scr",1/G82,"") -> 0.0006666666667 | I82: =IF(H82<>"",+H82/$H$153,0) -> 0.0006268662936 | J82: =(1-I82)*I82/(1-I82/92) -> 0.0006264776009 | K82: =IF(J82<>"",+J82/$J$153,0) -> 0.0007249033936 | L82: =(1-I82-K82)*(I82+K82)/(1-(I82+K82)/92) -> 0.001349962241 | M82: =IF(L82<>"",+L82/$L$153,0) -> 0.0008716955562 | N82: =(1-I82-K82-M82)*(I82+K82+M82)/(1-(I82+K82+M82)/92) -> 0.002218575064 | O82: =IF(N82<>"",+N82/$N$153,0) -> 0.001006391183 | P82: =(1-I82-K82-M82-O82)*(I82+K82+M82+O82)/(1-(I82+K82+M82+O82)/92) -> 0.003219537483 | Q82: =IF(P82<>"",+P82/$P$153,0) -> 0.001118102656 | R82: =+I$7*I82+K$7*K82+M$7*M82+O$7*O82+Q$7*Q82 -> 0.0007542840691 | T82: 0.0007542840691 | U82: =ROUND(+$R82*U$6,0) -> 30 | X82: =ROUND(+$R82*X$6,0) -> 34 | AA82: =ROUND(+$R82*AA$6,0) -> 38 | AD82: =ROUND(+$R82*AD$6,0) -> 41
A83: 4A | B83: 41 | C83: =RANK($G83,$G$44:$G$152,1)+36 -> 130 | D83: S. Allan | G83: 1500 | H83: =IF(G83<>"Scr",1/G83,"") -> 0.0006666666667 | I83: =IF(H83<>"",+H83/$H$153,0) -> 0.0006268662936 | J83: =(1-I83)*I83/(1-I83/92) -> 0.0006264776009 | K83: =IF(J83<>"",+J83/$J$153,0) -> 0.0007249033936 | L83: =(1-I83-K83)*(I83+K83)/(1-(I83+K83)/92) -> 0.001349962241 | M83: =IF(L83<>"",+L83/$L$153,0) -> 0.0008716955562 | N83: =(1-I83-K83-M83)*(I83+K83+M83)/(1-(I83+K83+M83)/92) -> 0.002218575064 | O83: =IF(N83<>"",+N83/$N$153,0) -> 0.001006391183 | P83: =(1-I83-K83-M83-O83)*(I83+K83+M83+O83)/(1-(I83+K83+M83+O83)/92) -> 0.003219537483 | Q83: =IF(P83<>"",+P83/$P$153,0) -> 0.001118102656 | R83: =+I$7*I83+K$7*K83+M$7*M83+O$7*O83+Q$7*Q83 -> 0.0007542840691 | T83: 0.0007542840691 | U83: =ROUND(+$R83*U$6,0) -> 30 | X83: =ROUND(+$R83*X$6,0) -> 34 | AA83: =ROUND(+$R83*AA$6,0) -> 38 | AD83: =ROUND(+$R83*AD$6,0) -> 41
A84: 4A | B84: 42 | C84: =RANK($G84,$G$44:$G$152,1)+36 -> 95 | D84: D. Armstrong | G84: 1200 | H84: =IF(G84<>"Scr",1/G84,"") -> 0.0008333333333 | I84: =IF(H84<>"",+H84/$H$153,0) -> 0.000783582867 | J84: =(1-I84)*I84/(1-I84/92) -> 0.0007829755336 | K84: =IF(J84<>"",+J84/$J$153,0) -> 0.0009059886908 | L84: =(1-I84-K84)*(I84+K84)/(1-(I84+K84)/92) -> 0.001686747883 | M84: =IF(L84<>"",+L84/$L$153,0) -> 0.001089164266 | N84: =(1-I84-K84-M84)*(I84+K84+M84)/(1-(I84+K84+M84)/92) -> 0.002771098148 | O84: =IF(N84<>"",+N84/$N$153,0) -> 0.001257026994 | P84: =(1-I84-K84-M84-O84)*(I84+K84+M84+O84)/(1-(I84+K84+M84+O84)/92) -> 0.004019651767 | Q84: =IF(P84<>"",+P84/$P$153,0) -> 0.001395971732 | R84: =+I$7*I84+K$7*K84+M$7*M84+O$7*O84+Q$7*Q84 -> 0.0009425647782 | T84: 0.0009425647782 | U84: =ROUND(+$R84*U$6,0) -> 38 | X84: =ROUND(+$R84*X$6,0) -> 42 | AA84: =ROUND(+$R84*AA$6,0) -> 47 | AD84: =ROUND(+$R84*AD$6,0) -> 52
A85: 4A | B85: 43 | C85: =RANK($G85,$G$44:$G$152,1)+36 -> 84 | D85: M. Antcliff | G85: 860 | H85: =IF(G85<>"Scr",1/G85,"") -> 0.001162790698 | I85: =IF(H85<>"",+H85/$H$153,0) -> 0.001093371442 | J85: =(1-I85)*I85/(1-I85/92) -> 0.001092188961 | K85: =IF(J85<>"",+J85/$J$153,0) -> 0.001263782589 | L85: =(1-I85-K85)*(I85+K85)/(1-(I85+K85)/92) -> 0.002351658109 | M85: =IF(L85<>"",+L85/$L$153,0) -> 0.001518509082 | N85: =(1-I85-K85-M85)*(I85+K85+M85)/(1-(I85+K85+M85)/92) -> 0.003860804992 | O85: =IF(N85<>"",+N85/$N$153,0) -> 0.001751340384 | P85: =(1-I85-K85-M85-O85)*(I85+K85+M85+O85)/(1-(I85+K85+M85+O85)/92) -> 0.005595682577 | Q85: =IF(P85<>"",+P85/$P$153,0) -> 0.001943306324 | R85: =+I$7*I85+K$7*K85+M$7*M85+O$7*O85+Q$7*Q85 -> 0.001314406675 | T85: 0.001314406675 | U85: =ROUND(+$R85*U$6,0) -> 53 | X85: =ROUND(+$R85*X$6,0) -> 59 | AA85: =ROUND(+$R85*AA$6,0) -> 66 | AD85: =ROUND(+$R85*AD$6,0) -> 72
A86: 4A | B86: 44 | C86: =RANK($G86,$G$44:$G$152,1)+36 -> 130 | D86: B. Becker | G86: 1500 | H86: =IF(G86<>"Scr",1/G86,"") -> 0.0006666666667 | I86: =IF(H86<>"",+H86/$H$153,0) -> 0.0006268662936 | J86: =(1-I86)*I86/(1-I86/92) -> 0.0006264776009 | K86: =IF(J86<>"",+J86/$J$153,0) -> 0.0007249033936 | L86: =(1-I86-K86)*(I86+K86)/(1-(I86+K86)/92) -> 0.001349962241 | M86: =IF(L86<>"",+L86/$L$153,0) -> 0.0008716955562 | N86: =(1-I86-K86-M86)*(I86+K86+M86)/(1-(I86+K86+M86)/92) -> 0.002218575064 | O86: =IF(N86<>"",+N86/$N$153,0) -> 0.001006391183 | P86: =(1-I86-K86-M86-O86)*(I86+K86+M86+O86)/(1-(I86+K86+M86+O86)/92) -> 0.003219537483 | Q86: =IF(P86<>"",+P86/$P$153,0) -> 0.001118102656 | R86: =+I$7*I86+K$7*K86+M$7*M86+O$7*O86+Q$7*Q86 -> 0.0007542840691 | T86: 0.0007542840691 | U86: =ROUND(+$R86*U$6,0) -> 30 | X86: =ROUND(+$R86*X$6,0) -> 34 | AA86: =ROUND(+$R86*AA$6,0) -> 38 | AD86: =ROUND(+$R86*AD$6,0) -> 41
A87: 4A | B87: 45 | C87: =RANK($G87,$G$44:$G$152,1)+36 -> 95 | D87: M. Brown | G87: 1200 | H87: =IF(G87<>"Scr",1/G87,"") -> 0.0008333333333 | I87: =IF(H87<>"",+H87/$H$153,0) -> 0.000783582867 | J87: =(1-I87)*I87/(1-I87/92) -> 0.0007829755336 | K87: =IF(J87<>"",+J87/$J$153,0) -> 0.0009059886908 | L87: =(1-I87-K87)*(I87+K87)/(1-(I87+K87)/92) -> 0.001686747883 | M87: =IF(L87<>"",+L87/$L$153,0) -> 0.001089164266 | N87: =(1-I87-K87-M87)*(I87+K87+M87)/(1-(I87+K87+M87)/92) -> 0.002771098148 | O87: =IF(N87<>"",+N87/$N$153,0) -> 0.001257026994 | P87: =(1-I87-K87-M87-O87)*(I87+K87+M87+O87)/(1-(I87+K87+M87+O87)/92) -> 0.004019651767 | Q87: =IF(P87<>"",+P87/$P$153,0) -> 0.001395971732 | R87: =+I$7*I87+K$7*K87+M$7*M87+O$7*O87+Q$7*Q87 -> 0.0009425647782 | T87: 0.0009425647782 | U87: =ROUND(+$R87*U$6,0) -> 38 | X87: =ROUND(+$R87*X$6,0) -> 42 | AA87: =ROUND(+$R87*AA$6,0) -> 47 | AD87: =ROUND(+$R87*AD$6,0) -> 52
A88: 4A | B88: 46 | C88: =RANK($G88,$G$44:$G$152,1)+36 -> 95 | D88: A. Blyth | G88: 1200 | H88: =IF(G88<>"Scr",1/G88,"") -> 0.0008333333333 | I88: =IF(H88<>"",+H88/$H$153,0) -> 0.000783582867 | J88: =(1-I88)*I88/(1-I88/92) -> 0.0007829755336 | K88: =IF(J88<>"",+J88/$J$153,0) -> 0.0009059886908 | L88: =(1-I88-K88)*(I88+K88)/(1-(I88+K88)/92) -> 0.001686747883 | M88: =IF(L88<>"",+L88/$L$153,0) -> 0.001089164266 | N88: =(1-I88-K88-M88)*(I88+K88+M88)/(1-(I88+K88+M88)/92) -> 0.002771098148 | O88: =IF(N88<>"",+N88/$N$153,0) -> 0.001257026994 | P88: =(1-I88-K88-M88-O88)*(I88+K88+M88+O88)/(1-(I88+K88+M88+O88)/92) -> 0.004019651767 | Q88: =IF(P88<>"",+P88/$P$153,0) -> 0.001395971732 | R88: =+I$7*I88+K$7*K88+M$7*M88+O$7*O88+Q$7*Q88 -> 0.0009425647782 | T88: 0.0009425647782 | U88: =ROUND(+$R88*U$6,0) -> 38 | X88: =ROUND(+$R88*X$6,0) -> 42 | AA88: =ROUND(+$R88*AA$6,0) -> 47 | AD88: =ROUND(+$R88*AD$6,0) -> 52
A89: 4A | B89: 47 | C89: =RANK($G89,$G$44:$G$152,1)+36 -> 95 | D89: H. Bateman | G89: 1200 | H89: =IF(G89<>"Scr",1/G89,"") -> 0.0008333333333 | I89: =IF(H89<>"",+H89/$H$153,0) -> 0.000783582867 | J89: =(1-I89)*I89/(1-I89/92) -> 0.0007829755336 | K89: =IF(J89<>"",+J89/$J$153,0) -> 0.0009059886908 | L89: =(1-I89-K89)*(I89+K89)/(1-(I89+K89)/92) -> 0.001686747883 | M89: =IF(L89<>"",+L89/$L$153,0) -> 0.001089164266 | N89: =(1-I89-K89-M89)*(I89+K89+M89)/(1-(I89+K89+M89)/92) -> 0.002771098148 | O89: =IF(N89<>"",+N89/$N$153,0) -> 0.001257026994 | P89: =(1-I89-K89-M89-O89)*(I89+K89+M89+O89)/(1-(I89+K89+M89+O89)/92) -> 0.004019651767 | Q89: =IF(P89<>"",+P89/$P$153,0) -> 0.001395971732 | R89: =+I$7*I89+K$7*K89+M$7*M89+O$7*O89+Q$7*Q89 -> 0.0009425647782 | T89: 0.0009425647782 | U89: =ROUND(+$R89*U$6,0) -> 38 | X89: =ROUND(+$R89*X$6,0) -> 42 | AA89: =ROUND(+$R89*AA$6,0) -> 47 | AD89: =ROUND(+$R89*AD$6,0) -> 52
A90: 4A | B90: 49 | C90: =RANK($G90,$G$44:$G$152,1)+36 -> 130 | D90: A. Burdett | G90: 1500 | H90: =IF(G90<>"Scr",1/G90,"") -> 0.0006666666667 | I90: =IF(H90<>"",+H90/$H$153,0) -> 0.0006268662936 | J90: =(1-I90)*I90/(1-I90/92) -> 0.0006264776009 | K90: =IF(J90<>"",+J90/$J$153,0) -> 0.0007249033936 | L90: =(1-I90-K90)*(I90+K90)/(1-(I90+K90)/92) -> 0.001349962241 | M90: =IF(L90<>"",+L90/$L$153,0) -> 0.0008716955562 | N90: =(1-I90-K90-M90)*(I90+K90+M90)/(1-(I90+K90+M90)/92) -> 0.002218575064 | O90: =IF(N90<>"",+N90/$N$153,0) -> 0.001006391183 | P90: =(1-I90-K90-M90-O90)*(I90+K90+M90+O90)/(1-(I90+K90+M90+O90)/92) -> 0.003219537483 | Q90: =IF(P90<>"",+P90/$P$153,0) -> 0.001118102656 | R90: =+I$7*I90+K$7*K90+M$7*M90+O$7*O90+Q$7*Q90 -> 0.0007542840691 | T90: 0.0007542840691 | U90: =ROUND(+$R90*U$6,0) -> 30 | X90: =ROUND(+$R90*X$6,0) -> 34 | AA90: =ROUND(+$R90*AA$6,0) -> 38 | AD90: =ROUND(+$R90*AD$6,0) -> 41
A91: 4A | B91: 50 | C91: =RANK($G91,$G$44:$G$152,1)+36 -> 95 | D91: D. Brandt-Richards | G91: 1200 | H91: =IF(G91<>"Scr",1/G91,"") -> 0.0008333333333 | I91: =IF(H91<>"",+H91/$H$153,0) -> 0.000783582867 | J91: =(1-I91)*I91/(1-I91/92) -> 0.0007829755336 | K91: =IF(J91<>"",+J91/$J$153,0) -> 0.0009059886908 | L91: =(1-I91-K91)*(I91+K91)/(1-(I91+K91)/92) -> 0.001686747883 | M91: =IF(L91<>"",+L91/$L$153,0) -> 0.001089164266 | N91: =(1-I91-K91-M91)*(I91+K91+M91)/(1-(I91+K91+M91)/92) -> 0.002771098148 | O91: =IF(N91<>"",+N91/$N$153,0) -> 0.001257026994 | P91: =(1-I91-K91-M91-O91)*(I91+K91+M91+O91)/(1-(I91+K91+M91+O91)/92) -> 0.004019651767 | Q91: =IF(P91<>"",+P91/$P$153,0) -> 0.001395971732 | R91: =+I$7*I91+K$7*K91+M$7*M91+O$7*O91+Q$7*Q91 -> 0.0009425647782 | T91: 0.0009425647782 | U91: =ROUND(+$R91*U$6,0) -> 38 | X91: =ROUND(+$R91*X$6,0) -> 42 | AA91: =ROUND(+$R91*AA$6,0) -> 47 | AD91: =ROUND(+$R91*AD$6,0) -> 52
A92: 4A | B92: 52 | C92: =RANK($G92,$G$44:$G$152,1)+36 -> 95 | D92: M. Brown | G92: 1200 | H92: =IF(G92<>"Scr",1/G92,"") -> 0.0008333333333 | I92: =IF(H92<>"",+H92/$H$153,0) -> 0.000783582867 | J92: =(1-I92)*I92/(1-I92/92) -> 0.0007829755336 | K92: =IF(J92<>"",+J92/$J$153,0) -> 0.0009059886908 | L92: =(1-I92-K92)*(I92+K92)/(1-(I92+K92)/92) -> 0.001686747883 | M92: =IF(L92<>"",+L92/$L$153,0) -> 0.001089164266 | N92: =(1-I92-K92-M92)*(I92+K92+M92)/(1-(I92+K92+M92)/92) -> 0.002771098148 | O92: =IF(N92<>"",+N92/$N$153,0) -> 0.001257026994 | P92: =(1-I92-K92-M92-O92)*(I92+K92+M92+O92)/(1-(I92+K92+M92+O92)/92) -> 0.004019651767 | Q92: =IF(P92<>"",+P92/$P$153,0) -> 0.001395971732 | R92: =+I$7*I92+K$7*K92+M$7*M92+O$7*O92+Q$7*Q92 -> 0.0009425647782 | T92: 0.0009425647782 | U92: =ROUND(+$R92*U$6,0) -> 38 | X92: =ROUND(+$R92*X$6,0) -> 42 | AA92: =ROUND(+$R92*AA$6,0) -> 47 | AD92: =ROUND(+$R92*AD$6,0) -> 52
A93: 4A | B93: 53 | C93: =RANK($G93,$G$44:$G$152,1)+36 -> 95 | D93: N. Basic | G93: 1200 | H93: =IF(G93<>"Scr",1/G93,"") -> 0.0008333333333 | I93: =IF(H93<>"",+H93/$H$153,0) -> 0.000783582867 | J93: =(1-I93)*I93/(1-I93/92) -> 0.0007829755336 | K93: =IF(J93<>"",+J93/$J$153,0) -> 0.0009059886908 | L93: =(1-I93-K93)*(I93+K93)/(1-(I93+K93)/92) -> 0.001686747883 | M93: =IF(L93<>"",+L93/$L$153,0) -> 0.001089164266 | N93: =(1-I93-K93-M93)*(I93+K93+M93)/(1-(I93+K93+M93)/92) -> 0.002771098148 | O93: =IF(N93<>"",+N93/$N$153,0) -> 0.001257026994 | P93: =(1-I93-K93-M93-O93)*(I93+K93+M93+O93)/(1-(I93+K93+M93+O93)/92) -> 0.004019651767 | Q93: =IF(P93<>"",+P93/$P$153,0) -> 0.001395971732 | R93: =+I$7*I93+K$7*K93+M$7*M93+O$7*O93+Q$7*Q93 -> 0.0009425647782 | T93: 0.0009425647782 | U93: =ROUND(+$R93*U$6,0) -> 38 | X93: =ROUND(+$R93*X$6,0) -> 42 | AA93: =ROUND(+$R93*AA$6,0) -> 47 | AD93: =ROUND(+$R93*AD$6,0) -> 52
A94: 4A | B94: 55 | C94: =RANK($G94,$G$44:$G$152,1)+36 -> 95 | D94: P. Cooke | G94: 1200 | H94: =IF(G94<>"Scr",1/G94,"") -> 0.0008333333333 | I94: =IF(H94<>"",+H94/$H$153,0) -> 0.000783582867 | J94: =(1-I94)*I94/(1-I94/92) -> 0.0007829755336 | K94: =IF(J94<>"",+J94/$J$153,0) -> 0.0009059886908 | L94: =(1-I94-K94)*(I94+K94)/(1-(I94+K94)/92) -> 0.001686747883 | M94: =IF(L94<>"",+L94/$L$153,0) -> 0.001089164266 | N94: =(1-I94-K94-M94)*(I94+K94+M94)/(1-(I94+K94+M94)/92) -> 0.002771098148 | O94: =IF(N94<>"",+N94/$N$153,0) -> 0.001257026994 | P94: =(1-I94-K94-M94-O94)*(I94+K94+M94+O94)/(1-(I94+K94+M94+O94)/92) -> 0.004019651767 | Q94: =IF(P94<>"",+P94/$P$153,0) -> 0.001395971732 | R94: =+I$7*I94+K$7*K94+M$7*M94+O$7*O94+Q$7*Q94 -> 0.0009425647782 | T94: 0.0009425647782 | U94: =ROUND(+$R94*U$6,0) -> 38 | X94: =ROUND(+$R94*X$6,0) -> 42 | AA94: =ROUND(+$R94*AA$6,0) -> 47 | AD94: =ROUND(+$R94*AD$6,0) -> 52
A95: 4A | B95: 58 | C95: =RANK($G95,$G$44:$G$152,1)+36 -> 95 | D95: R. Chisnall | G95: 1200 | H95: =IF(G95<>"Scr",1/G95,"") -> 0.0008333333333 | I95: =IF(H95<>"",+H95/$H$153,0) -> 0.000783582867 | J95: =(1-I95)*I95/(1-I95/92) -> 0.0007829755336 | K95: =IF(J95<>"",+J95/$J$153,0) -> 0.0009059886908 | L95: =(1-I95-K95)*(I95+K95)/(1-(I95+K95)/92) -> 0.001686747883 | M95: =IF(L95<>"",+L95/$L$153,0) -> 0.001089164266 | N95: =(1-I95-K95-M95)*(I95+K95+M95)/(1-(I95+K95+M95)/92) -> 0.002771098148 | O95: =IF(N95<>"",+N95/$N$153,0) -> 0.001257026994 | P95: =(1-I95-K95-M95-O95)*(I95+K95+M95+O95)/(1-(I95+K95+M95+O95)/92) -> 0.004019651767 | Q95: =IF(P95<>"",+P95/$P$153,0) -> 0.001395971732 | R95: =+I$7*I95+K$7*K95+M$7*M95+O$7*O95+Q$7*Q95 -> 0.0009425647782 | T95: 0.0009425647782 | U95: =ROUND(+$R95*U$6,0) -> 38 | X95: =ROUND(+$R95*X$6,0) -> 42 | AA95: =ROUND(+$R95*AA$6,0) -> 47 | AD95: =ROUND(+$R95*AD$6,0) -> 52
A96: 4A | B96: 59 | C96: =RANK($G96,$G$44:$G$152,1)+36 -> 95 | D96: A. Choat | G96: 1200 | H96: =IF(G96<>"Scr",1/G96,"") -> 0.0008333333333 | I96: =IF(H96<>"",+H96/$H$153,0) -> 0.000783582867 | J96: =(1-I96)*I96/(1-I96/92) -> 0.0007829755336 | K96: =IF(J96<>"",+J96/$J$153,0) -> 0.0009059886908 | L96: =(1-I96-K96)*(I96+K96)/(1-(I96+K96)/92) -> 0.001686747883 | M96: =IF(L96<>"",+L96/$L$153,0) -> 0.001089164266 | N96: =(1-I96-K96-M96)*(I96+K96+M96)/(1-(I96+K96+M96)/92) -> 0.002771098148 | O96: =IF(N96<>"",+N96/$N$153,0) -> 0.001257026994 | P96: =(1-I96-K96-M96-O96)*(I96+K96+M96+O96)/(1-(I96+K96+M96+O96)/92) -> 0.004019651767 | Q96: =IF(P96<>"",+P96/$P$153,0) -> 0.001395971732 | R96: =+I$7*I96+K$7*K96+M$7*M96+O$7*O96+Q$7*Q96 -> 0.0009425647782 | T96: 0.0009425647782 | U96: =ROUND(+$R96*U$6,0) -> 38 | X96: =ROUND(+$R96*X$6,0) -> 42 | AA96: =ROUND(+$R96*AA$6,0) -> 47 | AD96: =ROUND(+$R96*AD$6,0) -> 52
A97: 4A | B97: 60 | C97: =RANK($G97,$G$44:$G$152,1)+36 -> 95 | D97: B. Clementson | G97: 1200 | H97: =IF(G97<>"Scr",1/G97,"") -> 0.0008333333333 | I97: =IF(H97<>"",+H97/$H$153,0) -> 0.000783582867 | J97: =(1-I97)*I97/(1-I97/92) -> 0.0007829755336 | K97: =IF(J97<>"",+J97/$J$153,0) -> 0.0009059886908 | L97: =(1-I97-K97)*(I97+K97)/(1-(I97+K97)/92) -> 0.001686747883 | M97: =IF(L97<>"",+L97/$L$153,0) -> 0.001089164266 | N97: =(1-I97-K97-M97)*(I97+K97+M97)/(1-(I97+K97+M97)/92) -> 0.002771098148 | O97: =IF(N97<>"",+N97/$N$153,0) -> 0.001257026994 | P97: =(1-I97-K97-M97-O97)*(I97+K97+M97+O97)/(1-(I97+K97+M97+O97)/92) -> 0.004019651767 | Q97: =IF(P97<>"",+P97/$P$153,0) -> 0.001395971732 | R97: =+I$7*I97+K$7*K97+M$7*M97+O$7*O97+Q$7*Q97 -> 0.0009425647782 | T97: 0.0009425647782 | U97: =ROUND(+$R97*U$6,0) -> 38 | X97: =ROUND(+$R97*X$6,0) -> 42 | AA97: =ROUND(+$R97*AA$6,0) -> 47 | AD97: =ROUND(+$R97*AD$6,0) -> 52
A98: 4A | B98: 62 | C98: =RANK($G98,$G$44:$G$152,1)+36 -> 95 | D98: M. Dive | G98: 1200 | H98: =IF(G98<>"Scr",1/G98,"") -> 0.0008333333333 | I98: =IF(H98<>"",+H98/$H$153,0) -> 0.000783582867 | J98: =(1-I98)*I98/(1-I98/92) -> 0.0007829755336 | K98: =IF(J98<>"",+J98/$J$153,0) -> 0.0009059886908 | L98: =(1-I98-K98)*(I98+K98)/(1-(I98+K98)/92) -> 0.001686747883 | M98: =IF(L98<>"",+L98/$L$153,0) -> 0.001089164266 | N98: =(1-I98-K98-M98)*(I98+K98+M98)/(1-(I98+K98+M98)/92) -> 0.002771098148 | O98: =IF(N98<>"",+N98/$N$153,0) -> 0.001257026994 | P98: =(1-I98-K98-M98-O98)*(I98+K98+M98+O98)/(1-(I98+K98+M98+O98)/92) -> 0.004019651767 | Q98: =IF(P98<>"",+P98/$P$153,0) -> 0.001395971732 | R98: =+I$7*I98+K$7*K98+M$7*M98+O$7*O98+Q$7*Q98 -> 0.0009425647782 | T98: 0.0009425647782 | U98: =ROUND(+$R98*U$6,0) -> 38 | X98: =ROUND(+$R98*X$6,0) -> 42 | AA98: =ROUND(+$R98*AA$6,0) -> 47 | AD98: =ROUND(+$R98*AD$6,0) -> 52
A99: 4A | B99: 63 | C99: =RANK($G99,$G$44:$G$152,1)+36 -> 75 | D99: C. Dann | G99: 810 | H99: =IF(G99<>"Scr",1/G99,"") -> 0.001234567901 | I99: =IF(H99<>"",+H99/$H$153,0) -> 0.001160863507 | J99: =(1-I99)*I99/(1-I99/92) -> 0.001159530534 | K99: =IF(J99<>"",+J99/$J$153,0) -> 0.001341704185 | L99: =(1-I99-K99)*(I99+K99)/(1-(I99+K99)/92) -> 0.002496372752 | M99: =IF(L99<>"",+L99/$L$153,0) -> 0.001611954 | N99: =(1-I99-K99-M99)*(I99+K99+M99)/(1-(I99+K99+M99)/92) -> 0.004097775668 | O99: =IF(N99<>"",+N99/$N$153,0) -> 0.001858835146 | P99: =(1-I99-K99-M99-O99)*(I99+K99+M99+O99)/(1-(I99+K99+M99+O99)/92) -> 0.005938061391 | Q99: =IF(P99<>"",+P99/$P$153,0) -> 0.002062209943 | R99: =+I$7*I99+K$7*K99+M$7*M99+O$7*O99+Q$7*Q99 -> 0.001395357981 | T99: 0.001395357981 | U99: =ROUND(+$R99*U$6,0) -> 56 | X99: =ROUND(+$R99*X$6,0) -> 63 | AA99: =ROUND(+$R99*AA$6,0) -> 70 | AD99: =ROUND(+$R99*AD$6,0) -> 77
A100: 4B | B100: 67 | C100: =RANK($G100,$G$44:$G$152,1)+36 -> 95 | D100: N. Flanagan | G100: 1200 | H100: =IF(G100<>"Scr",1/G100,"") -> 0.0008333333333 | I100: =IF(H100<>"",+H100/$H$153,0) -> 0.000783582867 | J100: =(1-I100)*I100/(1-I100/92) -> 0.0007829755336 | K100: =IF(J100<>"",+J100/$J$153,0) -> 0.0009059886908 | L100: =(1-I100-K100)*(I100+K100)/(1-(I100+K100)/92) -> 0.001686747883 | M100: =IF(L100<>"",+L100/$L$153,0) -> 0.001089164266 | N100: =(1-I100-K100-M100)*(I100+K100+M100)/(1-(I100+K100+M100)/92) -> 0.002771098148 | O100: =IF(N100<>"",+N100/$N$153,0) -> 0.001257026994 | P100: =(1-I100-K100-M100-O100)*(I100+K100+M100+O100)/(1-(I100+K100+M100+O100)/92) -> 0.004019651767 | Q100: =IF(P100<>"",+P100/$P$153,0) -> 0.001395971732 | R100: =+I$7*I100+K$7*K100+M$7*M100+O$7*O100+Q$7*Q100 -> 0.0009425647782 | T100: 0.0009425647782 | U100: =ROUND(+$R100*U$6,0) -> 38 | X100: =ROUND(+$R100*X$6,0) -> 42 | AA100: =ROUND(+$R100*AA$6,0) -> 47 | AD100: =ROUND(+$R100*AD$6,0) -> 52
A101: 4B | B101: 68 | C101: =RANK($G101,$G$44:$G$152,1)+36 -> 130 | D101: D. Fox | G101: 1500 | H101: =IF(G101<>"Scr",1/G101,"") -> 0.0006666666667 | I101: =IF(H101<>"",+H101/$H$153,0) -> 0.0006268662936 | J101: =(1-I101)*I101/(1-I101/92) -> 0.0006264776009 | K101: =IF(J101<>"",+J101/$J$153,0) -> 0.0007249033936 | L101: =(1-I101-K101)*(I101+K101)/(1-(I101+K101)/92) -> 0.001349962241 | M101: =IF(L101<>"",+L101/$L$153,0) -> 0.0008716955562 | N101: =(1-I101-K101-M101)*(I101+K101+M101)/(1-(I101+K101+M101)/92) -> 0.002218575064 | O101: =IF(N101<>"",+N101/$N$153,0) -> 0.001006391183 | P101: =(1-I101-K101-M101-O101)*(I101+K101+M101+O101)/(1-(I101+K101+M101+O101)/92) -> 0.003219537483 | Q101: =IF(P101<>"",+P101/$P$153,0) -> 0.001118102656 | R101: =+I$7*I101+K$7*K101+M$7*M101+O$7*O101+Q$7*Q101 -> 0.0007542840691 | T101: 0.0007542840691 | U101: =ROUND(+$R101*U$6,0) -> 30 | X101: =ROUND(+$R101*X$6,0) -> 34 | AA101: =ROUND(+$R101*AA$6,0) -> 38 | AD101: =ROUND(+$R101*AD$6,0) -> 41
A102: 4B | B102: 70 | C102: =RANK($G102,$G$44:$G$152,1)+36 -> 92 | D102: G. Fairfax | G102: 1100 | H102: =IF(G102<>"Scr",1/G102,"") -> 0.0009090909091 | I102: =IF(H102<>"",+H102/$H$153,0) -> 0.0008548176731 | J102: =(1-I102)*I102/(1-I102/92) -> 0.0008540948956 | K102: =IF(J102<>"",+J102/$J$153,0) -> 0.000988281604 | L102: =(1-I102-K102)*(I102+K102)/(1-(I102+K102)/92) -> 0.001839739119 | M102: =IF(L102<>"",+L102/$L$153,0) -> 0.001187953534 | N102: =(1-I102-K102-M102)*(I102+K102+M102)/(1-(I102+K102+M102)/92) -> 0.003021965092 | O102: =IF(N102<>"",+N102/$N$153,0) -> 0.001370825389 | P102: =(1-I102-K102-M102-O102)*(I102+K102+M102+O102)/(1-(I102+K102+M102+O102)/92) -> 0.004382711365 | Q102: =IF(P102<>"",+P102/$P$153,0) -> 0.001522057514 | R102: =+I$7*I102+K$7*K102+M$7*M102+O$7*O102+Q$7*Q102 -> 0.001028108597 | T102: 0.001028108597 | U102: =ROUND(+$R102*U$6,0) -> 41 | X102: =ROUND(+$R102*X$6,0) -> 46 | AA102: =ROUND(+$R102*AA$6,0) -> 51 | AD102: =ROUND(+$R102*AD$6,0) -> 57
A103: 4B | B103: 72 | C103: =RANK($G103,$G$44:$G$152,1)+36 -> 89 | D103: D. Gleeson | G103: 911 | H103: =IF(G103<>"Scr",1/G103,"") -> 0.001097694841 | I103: =IF(H103<>"",+H103/$H$153,0) -> 0.001032161845 | J103: =(1-I103)*I103/(1-I103/92) -> 0.001031108055 | K103: =IF(J103<>"",+J103/$J$153,0) -> 0.001193105271 | L103: =(1-I103-K103)*(I103+K103)/(1-(I103+K103)/92) -> 0.002220369008 | M103: =IF(L103<>"",+L103/$L$153,0) -> 0.001433733284 | N103: =(1-I103-K103-M103)*(I103+K103+M103)/(1-(I103+K103+M103)/92) -> 0.003645757114 | O103: =IF(N103<>"",+N103/$N$153,0) -> 0.001653790253 | P103: =(1-I103-K103-M103-O103)*(I103+K103+M103+O103)/(1-(I103+K103+M103+O103)/92) -> 0.005284870097 | Q103: =IF(P103<>"",+P103/$P$153,0) -> 0.001835365273 | R103: =+I$7*I103+K$7*K103+M$7*M103+O$7*O103+Q$7*Q103 -> 0.00124097213 | T103: 0.00124097213 | U103: =ROUND(+$R103*U$6,0) -> 50 | X103: =ROUND(+$R103*X$6,0) -> 56 | AA103: =ROUND(+$R103*AA$6,0) -> 62 | AD103: =ROUND(+$R103*AD$6,0) -> 68
A104: 4B | B104: 75 | C104: =RANK($G104,$G$44:$G$152,1)+36 -> 127 | D104: M. Goggin | G104: 1400 | H104: =IF(G104<>"Scr",1/G104,"") -> 0.0007142857143 | I104: =IF(H104<>"",+H104/$H$153,0) -> 0.0006716424574 | J104: =(1-I104)*I104/(1-I104/92) -> 0.0006711962539 | K104: =IF(J104<>"",+J104/$J$153,0) -> 0.0007766477868 | L104: =(1-I104-K104)*(I104+K104)/(1-(I104+K104)/92) -> 0.001446215466 | M104: =IF(L104<>"",+L104/$L$153,0) -> 0.0009338480417 | N104: =(1-I104-K104-M104)*(I104+K104+M104)/(1-(I104+K104+M104)/92) -> 0.002376525238 | O104: =IF(N104<>"",+N104/$N$153,0) -> 0.001078040624 | P104: =(1-I104-K104-M104-O104)*(I104+K104+M104+O104)/(1-(I104+K104+M104+O104)/92) -> 0.003448335766 | Q104: =IF(P104<>"",+P104/$P$153,0) -> 0.001197561264 | R104: =+I$7*I104+K$7*K104+M$7*M104+O$7*O104+Q$7*Q104 -> 0.0008080903907 | T104: 0.0008080903907 | U104: =ROUND(+$R104*U$6,0) -> 32 | X104: =ROUND(+$R104*X$6,0) -> 36 | AA104: =ROUND(+$R104*AA$6,0) -> 40 | AD104: =ROUND(+$R104*AD$6,0) -> 44
A105: 4B | B105: 78 | C105: =RANK($G105,$G$44:$G$152,1)+36 -> 130 | D105: A. Hall | G105: 1500 | H105: =IF(G105<>"Scr",1/G105,"") -> 0.0006666666667 | I105: =IF(H105<>"",+H105/$H$153,0) -> 0.0006268662936 | J105: =(1-I105)*I105/(1-I105/92) -> 0.0006264776009 | K105: =IF(J105<>"",+J105/$J$153,0) -> 0.0007249033936 | L105: =(1-I105-K105)*(I105+K105)/(1-(I105+K105)/92) -> 0.001349962241 | M105: =IF(L105<>"",+L105/$L$153,0) -> 0.0008716955562 | N105: =(1-I105-K105-M105)*(I105+K105+M105)/(1-(I105+K105+M105)/92) -> 0.002218575064 | O105: =IF(N105<>"",+N105/$N$153,0) -> 0.001006391183 | P105: =(1-I105-K105-M105-O105)*(I105+K105+M105+O105)/(1-(I105+K105+M105+O105)/92) -> 0.003219537483 | Q105: =IF(P105<>"",+P105/$P$153,0) -> 0.001118102656 | R105: =+I$7*I105+K$7*K105+M$7*M105+O$7*O105+Q$7*Q105 -> 0.0007542840691 | T105: 0.0007542840691 | U105: =ROUND(+$R105*U$6,0) -> 30 | X105: =ROUND(+$R105*X$6,0) -> 34 | AA105: =ROUND(+$R105*AA$6,0) -> 38 | AD105: =ROUND(+$R105*AD$6,0) -> 41
A106: 4B | B106: 80 | C106: =RANK($G106,$G$44:$G$152,1)+36 -> 95 | D106: D. Hillier | G106: 1200 | H106: =IF(G106<>"Scr",1/G106,"") -> 0.0008333333333 | I106: =IF(H106<>"",+H106/$H$153,0) -> 0.000783582867 | J106: =(1-I106)*I106/(1-I106/92) -> 0.0007829755336 | K106: =IF(J106<>"",+J106/$J$153,0) -> 0.0009059886908 | L106: =(1-I106-K106)*(I106+K106)/(1-(I106+K106)/92) -> 0.001686747883 | M106: =IF(L106<>"",+L106/$L$153,0) -> 0.001089164266 | N106: =(1-I106-K106-M106)*(I106+K106+M106)/(1-(I106+K106+M106)/92) -> 0.002771098148 | O106: =IF(N106<>"",+N106/$N$153,0) -> 0.001257026994 | P106: =(1-I106-K106-M106-O106)*(I106+K106+M106+O106)/(1-(I106+K106+M106+O106)/92) -> 0.004019651767 | Q106: =IF(P106<>"",+P106/$P$153,0) -> 0.001395971732 | R106: =+I$7*I106+K$7*K106+M$7*M106+O$7*O106+Q$7*Q106 -> 0.0009425647782 | T106: 0.0009425647782 | U106: =ROUND(+$R106*U$6,0) -> 38 | X106: =ROUND(+$R106*X$6,0) -> 42 | AA106: =ROUND(+$R106*AA$6,0) -> 47 | AD106: =ROUND(+$R106*AD$6,0) -> 52
A107: 4B | B107: 81 | C107: =RANK($G107,$G$44:$G$152,1)+36 -> 95 | D107: T. Hart | G107: 1200 | H107: =IF(G107<>"Scr",1/G107,"") -> 0.0008333333333 | I107: =IF(H107<>"",+H107/$H$153,0) -> 0.000783582867 | J107: =(1-I107)*I107/(1-I107/92) -> 0.0007829755336 | K107: =IF(J107<>"",+J107/$J$153,0) -> 0.0009059886908 | L107: =(1-I107-K107)*(I107+K107)/(1-(I107+K107)/92) -> 0.001686747883 | M107: =IF(L107<>"",+L107/$L$153,0) -> 0.001089164266 | N107: =(1-I107-K107-M107)*(I107+K107+M107)/(1-(I107+K107+M107)/92) -> 0.002771098148 | O107: =IF(N107<>"",+N107/$N$153,0) -> 0.001257026994 | P107: =(1-I107-K107-M107-O107)*(I107+K107+M107+O107)/(1-(I107+K107+M107+O107)/92) -> 0.004019651767 | Q107: =IF(P107<>"",+P107/$P$153,0) -> 0.001395971732 | R107: =+I$7*I107+K$7*K107+M$7*M107+O$7*O107+Q$7*Q107 -> 0.0009425647782 | T107: 0.0009425647782 | U107: =ROUND(+$R107*U$6,0) -> 38 | X107: =ROUND(+$R107*X$6,0) -> 42 | AA107: =ROUND(+$R107*AA$6,0) -> 47 | AD107: =ROUND(+$R107*AD$6,0) -> 52
A108: 4B | B108: 82 | C108: =RANK($G108,$G$44:$G$152,1)+36 -> 95 | D108: M. Hensby | G108: 1200 | H108: =IF(G108<>"Scr",1/G108,"") -> 0.0008333333333 | I108: =IF(H108<>"",+H108/$H$153,0) -> 0.000783582867 | J108: =(1-I108)*I108/(1-I108/92) -> 0.0007829755336 | K108: =IF(J108<>"",+J108/$J$153,0) -> 0.0009059886908 | L108: =(1-I108-K108)*(I108+K108)/(1-(I108+K108)/92) -> 0.001686747883 | M108: =IF(L108<>"",+L108/$L$153,0) -> 0.001089164266 | N108: =(1-I108-K108-M108)*(I108+K108+M108)/(1-(I108+K108+M108)/92) -> 0.002771098148 | O108: =IF(N108<>"",+N108/$N$153,0) -> 0.001257026994 | P108: =(1-I108-K108-M108-O108)*(I108+K108+M108+O108)/(1-(I108+K108+M108+O108)/92) -> 0.004019651767 | Q108: =IF(P108<>"",+P108/$P$153,0) -> 0.001395971732 | R108: =+I$7*I108+K$7*K108+M$7*M108+O$7*O108+Q$7*Q108 -> 0.0009425647782 | T108: 0.0009425647782 | U108: =ROUND(+$R108*U$6,0) -> 38 | X108: =ROUND(+$R108*X$6,0) -> 42 | AA108: =ROUND(+$R108*AA$6,0) -> 47 | AD108: =ROUND(+$R108*AD$6,0) -> 52
A109: 4B | B109: 83 | C109: =RANK($G109,$G$44:$G$152,1)+36 -> 95 | D109: D. Jordan | G109: 1200 | H109: =IF(G109<>"Scr",1/G109,"") -> 0.0008333333333 | I109: =IF(H109<>"",+H109/$H$153,0) -> 0.000783582867 | J109: =(1-I109)*I109/(1-I109/92) -> 0.0007829755336 | K109: =IF(J109<>"",+J109/$J$153,0) -> 0.0009059886908 | L109: =(1-I109-K109)*(I109+K109)/(1-(I109+K109)/92) -> 0.001686747883 | M109: =IF(L109<>"",+L109/$L$153,0) -> 0.001089164266 | N109: =(1-I109-K109-M109)*(I109+K109+M109)/(1-(I109+K109+M109)/92) -> 0.002771098148 | O109: =IF(N109<>"",+N109/$N$153,0) -> 0.001257026994 | P109: =(1-I109-K109-M109-O109)*(I109+K109+M109+O109)/(1-(I109+K109+M109+O109)/92) -> 0.004019651767 | Q109: =IF(P109<>"",+P109/$P$153,0) -> 0.001395971732 | R109: =+I$7*I109+K$7*K109+M$7*M109+O$7*O109+Q$7*Q109 -> 0.0009425647782 | T109: 0.0009425647782 | U109: =ROUND(+$R109*U$6,0) -> 38 | X109: =ROUND(+$R109*X$6,0) -> 42 | AA109: =ROUND(+$R109*AA$6,0) -> 47 | AD109: =ROUND(+$R109*AD$6,0) -> 52
A110: 4B | B110: 84 | C110: =RANK($G110,$G$44:$G$152,1)+36 -> 95 | D110: S. Jeffress | G110: 1200 | H110: =IF(G110<>"Scr",1/G110,"") -> 0.0008333333333 | I110: =IF(H110<>"",+H110/$H$153,0) -> 0.000783582867 | J110: =(1-I110)*I110/(1-I110/92) -> 0.0007829755336 | K110: =IF(J110<>"",+J110/$J$153,0) -> 0.0009059886908 | L110: =(1-I110-K110)*(I110+K110)/(1-(I110+K110)/92) -> 0.001686747883 | M110: =IF(L110<>"",+L110/$L$153,0) -> 0.001089164266 | N110: =(1-I110-K110-M110)*(I110+K110+M110)/(1-(I110+K110+M110)/92) -> 0.002771098148 | O110: =IF(N110<>"",+N110/$N$153,0) -> 0.001257026994 | P110: =(1-I110-K110-M110-O110)*(I110+K110+M110+O110)/(1-(I110+K110+M110+O110)/92) -> 0.004019651767 | Q110: =IF(P110<>"",+P110/$P$153,0) -> 0.001395971732 | R110: =+I$7*I110+K$7*K110+M$7*M110+O$7*O110+Q$7*Q110 -> 0.0009425647782 | T110: 0.0009425647782 | U110: =ROUND(+$R110*U$6,0) -> 38 | X110: =ROUND(+$R110*X$6,0) -> 42 | AA110: =ROUND(+$R110*AA$6,0) -> 47 | AD110: =ROUND(+$R110*AD$6,0) -> 52
A111: 4B | B111: 86 | C111: =RANK($G111,$G$44:$G$152,1)+36 -> 82 | D111: R. Kulacz | G111: 850 | H111: =IF(G111<>"Scr",1/G111,"") -> 0.001176470588 | I111: =IF(H111<>"",+H111/$H$153,0) -> 0.001106234636 | J111: =(1-I111)*I111/(1-I111/92) -> 0.001105024168 | K111: =IF(J111<>"",+J111/$J$153,0) -> 0.001278634333 | L111: =(1-I111-K111)*(I111+K111)/(1-(I111+K111)/92) -> 0.002379243044 | M111: =IF(L111<>"",+L111/$L$153,0) -> 0.001536321184 | N111: =(1-I111-K111-M111)*(I111+K111+M111)/(1-(I111+K111+M111)/92) -> 0.0039059809 | O111: =IF(N111<>"",+N111/$N$153,0) -> 0.001771833103 | P111: =(1-I111-K111-M111-O111)*(I111+K111+M111+O111)/(1-(I111+K111+M111+O111)/92) -> 0.005660963046 | Q111: =IF(P111<>"",+P111/$P$153,0) -> 0.001965977364 | R111: =+I$7*I111+K$7*K111+M$7*M111+O$7*O111+Q$7*Q111 -> 0.001329836697 | T111: 0.001329836697 | U111: =ROUND(+$R111*U$6,0) -> 53 | X111: =ROUND(+$R111*X$6,0) -> 60 | AA111: =ROUND(+$R111*AA$6,0) -> 66 | AD111: =ROUND(+$R111*AD$6,0) -> 73
A112: 4B | B112: 87 | C112: =RANK($G112,$G$44:$G$152,1)+36 -> 95 | D112: T. Kanaya | G112: 1200 | H112: =IF(G112<>"Scr",1/G112,"") -> 0.0008333333333 | I112: =IF(H112<>"",+H112/$H$153,0) -> 0.000783582867 | J112: =(1-I112)*I112/(1-I112/92) -> 0.0007829755336 | K112: =IF(J112<>"",+J112/$J$153,0) -> 0.0009059886908 | L112: =(1-I112-K112)*(I112+K112)/(1-(I112+K112)/92) -> 0.001686747883 | M112: =IF(L112<>"",+L112/$L$153,0) -> 0.001089164266 | N112: =(1-I112-K112-M112)*(I112+K112+M112)/(1-(I112+K112+M112)/92) -> 0.002771098148 | O112: =IF(N112<>"",+N112/$N$153,0) -> 0.001257026994 | P112: =(1-I112-K112-M112-O112)*(I112+K112+M112+O112)/(1-(I112+K112+M112+O112)/92) -> 0.004019651767 | Q112: =IF(P112<>"",+P112/$P$153,0) -> 0.001395971732 | R112: =+I$7*I112+K$7*K112+M$7*M112+O$7*O112+Q$7*Q112 -> 0.0009425647782 | T112: 0.0009425647782 | U112: =ROUND(+$R112*U$6,0) -> 38 | X112: =ROUND(+$R112*X$6,0) -> 42 | AA112: =ROUND(+$R112*AA$6,0) -> 47 | AD112: =ROUND(+$R112*AD$6,0) -> 52
A113: 4C | B113: 88 | C113: =RANK($G113,$G$44:$G$152,1)+36 -> 95 | D113: P. Lonard | G113: 1200 | H113: =IF(G113<>"Scr",1/G113,"") -> 0.0008333333333 | I113: =IF(H113<>"",+H113/$H$153,0) -> 0.000783582867 | J113: =(1-I113)*I113/(1-I113/92) -> 0.0007829755336 | K113: =IF(J113<>"",+J113/$J$153,0) -> 0.0009059886908 | L113: =(1-I113-K113)*(I113+K113)/(1-(I113+K113)/92) -> 0.001686747883 | M113: =IF(L113<>"",+L113/$L$153,0) -> 0.001089164266 | N113: =(1-I113-K113-M113)*(I113+K113+M113)/(1-(I113+K113+M113)/92) -> 0.002771098148 | O113: =IF(N113<>"",+N113/$N$153,0) -> 0.001257026994 | P113: =(1-I113-K113-M113-O113)*(I113+K113+M113+O113)/(1-(I113+K113+M113+O113)/92) -> 0.004019651767 | Q113: =IF(P113<>"",+P113/$P$153,0) -> 0.001395971732 | R113: =+I$7*I113+K$7*K113+M$7*M113+O$7*O113+Q$7*Q113 -> 0.0009425647782 | T113: 0.0009425647782 | U113: =ROUND(+$R113*U$6,0) -> 38 | X113: =ROUND(+$R113*X$6,0) -> 42 | AA113: =ROUND(+$R113*AA$6,0) -> 47 | AD113: =ROUND(+$R113*AD$6,0) -> 52
A114: 4C | B114: 89 | C114: =RANK($G114,$G$44:$G$152,1)+36 -> 95 | D114: R. Lynch | G114: 1200 | H114: =IF(G114<>"Scr",1/G114,"") -> 0.0008333333333 | I114: =IF(H114<>"",+H114/$H$153,0) -> 0.000783582867 | J114: =(1-I114)*I114/(1-I114/92) -> 0.0007829755336 | K114: =IF(J114<>"",+J114/$J$153,0) -> 0.0009059886908 | L114: =(1-I114-K114)*(I114+K114)/(1-(I114+K114)/92) -> 0.001686747883 | M114: =IF(L114<>"",+L114/$L$153,0) -> 0.001089164266 | N114: =(1-I114-K114-M114)*(I114+K114+M114)/(1-(I114+K114+M114)/92) -> 0.002771098148 | O114: =IF(N114<>"",+N114/$N$153,0) -> 0.001257026994 | P114: =(1-I114-K114-M114-O114)*(I114+K114+M114+O114)/(1-(I114+K114+M114+O114)/92) -> 0.004019651767 | Q114: =IF(P114<>"",+P114/$P$153,0) -> 0.001395971732 | R114: =+I$7*I114+K$7*K114+M$7*M114+O$7*O114+Q$7*Q114 -> 0.0009425647782 | T114: 0.0009425647782 | U114: =ROUND(+$R114*U$6,0) -> 38 | X114: =ROUND(+$R114*X$6,0) -> 42 | AA114: =ROUND(+$R114*AA$6,0) -> 47 | AD114: =ROUND(+$R114*AD$6,0) -> 52
A115: 4C | B115: 89 | C115: =RANK($G115,$G$44:$G$152,1)+36 -> 95 | D115: M. Lisk | G115: 1200 | H115: =IF(G115<>"Scr",1/G115,"") -> 0.0008333333333 | I115: =IF(H115<>"",+H115/$H$153,0) -> 0.000783582867 | J115: =(1-I115)*I115/(1-I115/92) -> 0.0007829755336 | K115: =IF(J115<>"",+J115/$J$153,0) -> 0.0009059886908 | L115: =(1-I115-K115)*(I115+K115)/(1-(I115+K115)/92) -> 0.001686747883 | M115: =IF(L115<>"",+L115/$L$153,0) -> 0.001089164266 | N115: =(1-I115-K115-M115)*(I115+K115+M115)/(1-(I115+K115+M115)/92) -> 0.002771098148 | O115: =IF(N115<>"",+N115/$N$153,0) -> 0.001257026994 | P115: =(1-I115-K115-M115-O115)*(I115+K115+M115+O115)/(1-(I115+K115+M115+O115)/92) -> 0.004019651767 | Q115: =IF(P115<>"",+P115/$P$153,0) -> 0.001395971732 | R115: =+I$7*I115+K$7*K115+M$7*M115+O$7*O115+Q$7*Q115 -> 0.0009425647782 | T115: 0.0009425647782 | U115: =ROUND(+$R115*U$6,0) -> 38 | X115: =ROUND(+$R115*X$6,0) -> 42 | AA115: =ROUND(+$R115*AA$6,0) -> 47 | AD115: =ROUND(+$R115*AD$6,0) -> 52
A116: 4C | B116: 90 | C116: =RANK($G116,$G$44:$G$152,1)+36 -> 79 | D116: S. Lee | G116: 830 | H116: =IF(G116<>"Scr",1/G116,"") -> 0.001204819277 | I116: =IF(H116<>"",+H116/$H$153,0) -> 0.001132890892 | J116: =(1-I116)*I116/(1-I116/92) -> 0.001131621385 | K116: =IF(J116<>"",+J116/$J$153,0) -> 0.001309410235 | L116: =(1-I116-K116)*(I116+K116)/(1-(I116+K116)/92) -> 0.00243640097 | M116: =IF(L116<>"",+L116/$L$153,0) -> 0.001573229113 | N116: =(1-I116-K116-M116)*(I116+K116+M116)/(1-(I116+K116+M116)/92) -> 0.003999580326 | O116: =IF(N116<>"",+N116/$N$153,0) -> 0.001814291724 | P116: =(1-I116-K116-M116-O116)*(I116+K116+M116+O116)/(1-(I116+K116+M116+O116)/92) -> 0.00579620243 | Q116: =IF(P116<>"",+P116/$P$153,0) -> 0.002012944208 | R116: =+I$7*I116+K$7*K116+M$7*M116+O$7*O116+Q$7*Q116 -> 0.001361809682 | T116: 0.001361809682 | U116: =ROUND(+$R116*U$6,0) -> 54 | X116: =ROUND(+$R116*X$6,0) -> 61 | AA116: =ROUND(+$R116*AA$6,0) -> 68 | AD116: =ROUND(+$R116*AD$6,0) -> 75
A117: 4C | B117: 91 | C117: =RANK($G117,$G$44:$G$152,1)+36 -> 93 | D117: J. Morgan | G117: 1150 | H117: =IF(G117<>"Scr",1/G117,"") -> 0.0008695652174 | I117: =IF(H117<>"",+H117/$H$153,0) -> 0.0008176516873 | J117: =(1-I117)*I117/(1-I117/92) -> 0.000816990394 | K117: =IF(J117<>"",+J117/$J$153,0) -> 0.0009453476203 | L117: =(1-I117-K117)*(I117+K117)/(1-(I117+K117)/92) -> 0.001759924866 | M117: =IF(L117<>"",+L117/$L$153,0) -> 0.001136415996 | N117: =(1-I117-K117-M117)*(I117+K117+M117)/(1-(I117+K117+M117)/92) -> 0.002891099809 | O117: =IF(N117<>"",+N117/$N$153,0) -> 0.00131146221 | P117: =(1-I117-K117-M117-O117)*(I117+K117+M117+O117)/(1-(I117+K117+M117+O117)/92) -> 0.004193337956 | Q117: =IF(P117<>"",+P117/$P$153,0) -> 0.001456290641 | R117: =+I$7*I117+K$7*K117+M$7*M117+O$7*O117+Q$7*Q117 -> 0.0009834800263 | T117: 0.0009834800263 | U117: =ROUND(+$R117*U$6,0) -> 39 | X117: =ROUND(+$R117*X$6,0) -> 44 | AA117: =ROUND(+$R117*AA$6,0) -> 49 | AD117: =ROUND(+$R117*AD$6,0) -> 54
A118: 4C | B118: 93 | C118: =RANK($G118,$G$44:$G$152,1)+36 -> 95 | D118: A. Marchesani | G118: 1200 | H118: =IF(G118<>"Scr",1/G118,"") -> 0.0008333333333 | I118: =IF(H118<>"",+H118/$H$153,0) -> 0.000783582867 | J118: =(1-I118)*I118/(1-I118/92) -> 0.0007829755336 | K118: =IF(J118<>"",+J118/$J$153,0) -> 0.0009059886908 | L118: =(1-I118-K118)*(I118+K118)/(1-(I118+K118)/92) -> 0.001686747883 | M118: =IF(L118<>"",+L118/$L$153,0) -> 0.001089164266 | N118: =(1-I118-K118-M118)*(I118+K118+M118)/(1-(I118+K118+M118)/92) -> 0.002771098148 | O118: =IF(N118<>"",+N118/$N$153,0) -> 0.001257026994 | P118: =(1-I118-K118-M118-O118)*(I118+K118+M118+O118)/(1-(I118+K118+M118+O118)/92) -> 0.004019651767 | Q118: =IF(P118<>"",+P118/$P$153,0) -> 0.001395971732 | R118: =+I$7*I118+K$7*K118+M$7*M118+O$7*O118+Q$7*Q118 -> 0.0009425647782 | T118: 0.0009425647782 | U118: =ROUND(+$R118*U$6,0) -> 38 | X118: =ROUND(+$R118*X$6,0) -> 42 | AA118: =ROUND(+$R118*AA$6,0) -> 47 | AD118: =ROUND(+$R118*AD$6,0) -> 52
A119: 4C | B119: 95 | C119: =RANK($G119,$G$44:$G$152,1)+36 -> 90 | D119: T. Macdonald | G119: 935 | H119: =IF(G119<>"Scr",1/G119,"") -> 0.001069518717 | I119: =IF(H119<>"",+H119/$H$153,0) -> 0.001005667851 | J119: =(1-I119)*I119/(1-I119/92) -> 0.001004667465 | K119: =IF(J119<>"",+J119/$J$153,0) -> 0.001162510605 | L119: =(1-I119-K119)*(I119+K119)/(1-(I119+K119)/92) -> 0.002163528446 | M119: =IF(L119<>"",+L119/$L$153,0) -> 0.001397030283 | N119: =(1-I119-K119-M119)*(I119+K119+M119)/(1-(I119+K119+M119)/92) -> 0.003552635698 | O119: =IF(N119<>"",+N119/$N$153,0) -> 0.001611548467 | P119: =(1-I119-K119-M119-O119)*(I119+K119+M119+O119)/(1-(I119+K119+M119+O119)/92) -> 0.005150248191 | Q119: =IF(P119<>"",+P119/$P$153,0) -> 0.001788612871 | R119: =+I$7*I119+K$7*K119+M$7*M119+O$7*O119+Q$7*Q119 -> 0.001209181209 | T119: 0.001209181209 | U119: =ROUND(+$R119*U$6,0) -> 48 | X119: =ROUND(+$R119*X$6,0) -> 54 | AA119: =ROUND(+$R119*AA$6,0) -> 60 | AD119: =ROUND(+$R119*AD$6,0) -> 67
A120: 4C | B120: 96 | C120: =RANK($G120,$G$44:$G$152,1)+36 -> 130 | D120: K. Muir | G120: 1500 | H120: =IF(G120<>"Scr",1/G120,"") -> 0.0006666666667 | I120: =IF(H120<>"",+H120/$H$153,0) -> 0.0006268662936 | J120: =(1-I120)*I120/(1-I120/92) -> 0.0006264776009 | K120: =IF(J120<>"",+J120/$J$153,0) -> 0.0007249033936 | L120: =(1-I120-K120)*(I120+K120)/(1-(I120+K120)/92) -> 0.001349962241 | M120: =IF(L120<>"",+L120/$L$153,0) -> 0.0008716955562 | N120: =(1-I120-K120-M120)*(I120+K120+M120)/(1-(I120+K120+M120)/92) -> 0.002218575064 | O120: =IF(N120<>"",+N120/$N$153,0) -> 0.001006391183 | P120: =(1-I120-K120-M120-O120)*(I120+K120+M120+O120)/(1-(I120+K120+M120+O120)/92) -> 0.003219537483 | Q120: =IF(P120<>"",+P120/$P$153,0) -> 0.001118102656 | R120: =+I$7*I120+K$7*K120+M$7*M120+O$7*O120+Q$7*Q120 -> 0.0007542840691 | T120: 0.0007542840691 | U120: =ROUND(+$R120*U$6,0) -> 30 | X120: =ROUND(+$R120*X$6,0) -> 34 | AA120: =ROUND(+$R120*AA$6,0) -> 38 | AD120: =ROUND(+$R120*AD$6,0) -> 41
A121: 4C | B121: 97 | C121: =RANK($G121,$G$44:$G$152,1)+36 -> 130 | D121: J. Mullaney | G121: 1500 | H121: =IF(G121<>"Scr",1/G121,"") -> 0.0006666666667 | I121: =IF(H121<>"",+H121/$H$153,0) -> 0.0006268662936 | J121: =(1-I121)*I121/(1-I121/92) -> 0.0006264776009 | K121: =IF(J121<>"",+J121/$J$153,0) -> 0.0007249033936 | L121: =(1-I121-K121)*(I121+K121)/(1-(I121+K121)/92) -> 0.001349962241 | M121: =IF(L121<>"",+L121/$L$153,0) -> 0.0008716955562 | N121: =(1-I121-K121-M121)*(I121+K121+M121)/(1-(I121+K121+M121)/92) -> 0.002218575064 | O121: =IF(N121<>"",+N121/$N$153,0) -> 0.001006391183 | P121: =(1-I121-K121-M121-O121)*(I121+K121+M121+O121)/(1-(I121+K121+M121+O121)/92) -> 0.003219537483 | Q121: =IF(P121<>"",+P121/$P$153,0) -> 0.001118102656 | R121: =+I$7*I121+K$7*K121+M$7*M121+O$7*O121+Q$7*Q121 -> 0.0007542840691 | T121: 0.0007542840691 | U121: =ROUND(+$R121*U$6,0) -> 30 | X121: =ROUND(+$R121*X$6,0) -> 34 | AA121: =ROUND(+$R121*AA$6,0) -> 38 | AD121: =ROUND(+$R121*AD$6,0) -> 41
A122: 4C | B122: 98 | C122: =RANK($G122,$G$44:$G$152,1)+36 -> 130 | D122: J. Munro | G122: 1500 | H122: =IF(G122<>"Scr",1/G122,"") -> 0.0006666666667 | I122: =IF(H122<>"",+H122/$H$153,0) -> 0.0006268662936 | J122: =(1-I122)*I122/(1-I122/92) -> 0.0006264776009 | K122: =IF(J122<>"",+J122/$J$153,0) -> 0.0007249033936 | L122: =(1-I122-K122)*(I122+K122)/(1-(I122+K122)/92) -> 0.001349962241 | M122: =IF(L122<>"",+L122/$L$153,0) -> 0.0008716955562 | N122: =(1-I122-K122-M122)*(I122+K122+M122)/(1-(I122+K122+M122)/92) -> 0.002218575064 | O122: =IF(N122<>"",+N122/$N$153,0) -> 0.001006391183 | P122: =(1-I122-K122-M122-O122)*(I122+K122+M122+O122)/(1-(I122+K122+M122+O122)/92) -> 0.003219537483 | Q122: =IF(P122<>"",+P122/$P$153,0) -> 0.001118102656 | R122: =+I$7*I122+K$7*K122+M$7*M122+O$7*O122+Q$7*Q122 -> 0.0007542840691 | T122: 0.0007542840691 | U122: =ROUND(+$R122*U$6,0) -> 30 | X122: =ROUND(+$R122*X$6,0) -> 34 | AA122: =ROUND(+$R122*AA$6,0) -> 38 | AD122: =ROUND(+$R122*AD$6,0) -> 41
A123: 4C | B123: 100 | C123: =RANK($G123,$G$44:$G$152,1)+36 -> 90 | D123: M. McCardle | G123: 935 | H123: =IF(G123<>"Scr",1/G123,"") -> 0.001069518717 | I123: =IF(H123<>"",+H123/$H$153,0) -> 0.001005667851 | J123: =(1-I123)*I123/(1-I123/92) -> 0.001004667465 | K123: =IF(J123<>"",+J123/$J$153,0) -> 0.001162510605 | L123: =(1-I123-K123)*(I123+K123)/(1-(I123+K123)/92) -> 0.002163528446 | M123: =IF(L123<>"",+L123/$L$153,0) -> 0.001397030283 | N123: =(1-I123-K123-M123)*(I123+K123+M123)/(1-(I123+K123+M123)/92) -> 0.003552635698 | O123: =IF(N123<>"",+N123/$N$153,0) -> 0.001611548467 | P123: =(1-I123-K123-M123-O123)*(I123+K123+M123+O123)/(1-(I123+K123+M123+O123)/92) -> 0.005150248191 | Q123: =IF(P123<>"",+P123/$P$153,0) -> 0.001788612871 | R123: =+I$7*I123+K$7*K123+M$7*M123+O$7*O123+Q$7*Q123 -> 0.001209181209 | T123: 0.001209181209 | U123: =ROUND(+$R123*U$6,0) -> 48 | X123: =ROUND(+$R123*X$6,0) -> 54 | AA123: =ROUND(+$R123*AA$6,0) -> 60 | AD123: =ROUND(+$R123*AD$6,0) -> 67
A124: 4C | B124: 102 | C124: =RANK($G124,$G$44:$G$152,1)+36 -> 95 | D124: D. Micheluzzi | G124: 1200 | H124: =IF(G124<>"Scr",1/G124,"") -> 0.0008333333333 | I124: =IF(H124<>"",+H124/$H$153,0) -> 0.000783582867 | J124: =(1-I124)*I124/(1-I124/92) -> 0.0007829755336 | K124: =IF(J124<>"",+J124/$J$153,0) -> 0.0009059886908 | L124: =(1-I124-K124)*(I124+K124)/(1-(I124+K124)/92) -> 0.001686747883 | M124: =IF(L124<>"",+L124/$L$153,0) -> 0.001089164266 | N124: =(1-I124-K124-M124)*(I124+K124+M124)/(1-(I124+K124+M124)/92) -> 0.002771098148 | O124: =IF(N124<>"",+N124/$N$153,0) -> 0.001257026994 | P124: =(1-I124-K124-M124-O124)*(I124+K124+M124+O124)/(1-(I124+K124+M124+O124)/92) -> 0.004019651767 | Q124: =IF(P124<>"",+P124/$P$153,0) -> 0.001395971732 | R124: =+I$7*I124+K$7*K124+M$7*M124+O$7*O124+Q$7*Q124 -> 0.0009425647782 | T124: 0.0009425647782 | U124: =ROUND(+$R124*U$6,0) -> 38 | X124: =ROUND(+$R124*X$6,0) -> 42 | AA124: =ROUND(+$R124*AA$6,0) -> 47 | AD124: =ROUND(+$R124*AD$6,0) -> 52
A125: 4C | B125: 103 | C125: =RANK($G125,$G$44:$G$152,1)+36 -> 95 | D125: J. Marchesani | G125: 1200 | H125: =IF(G125<>"Scr",1/G125,"") -> 0.0008333333333 | I125: =IF(H125<>"",+H125/$H$153,0) -> 0.000783582867 | J125: =(1-I125)*I125/(1-I125/92) -> 0.0007829755336 | K125: =IF(J125<>"",+J125/$J$153,0) -> 0.0009059886908 | L125: =(1-I125-K125)*(I125+K125)/(1-(I125+K125)/92) -> 0.001686747883 | M125: =IF(L125<>"",+L125/$L$153,0) -> 0.001089164266 | N125: =(1-I125-K125-M125)*(I125+K125+M125)/(1-(I125+K125+M125)/92) -> 0.002771098148 | O125: =IF(N125<>"",+N125/$N$153,0) -> 0.001257026994 | P125: =(1-I125-K125-M125-O125)*(I125+K125+M125+O125)/(1-(I125+K125+M125+O125)/92) -> 0.004019651767 | Q125: =IF(P125<>"",+P125/$P$153,0) -> 0.001395971732 | R125: =+I$7*I125+K$7*K125+M$7*M125+O$7*O125+Q$7*Q125 -> 0.0009425647782 | T125: 0.0009425647782 | U125: =ROUND(+$R125*U$6,0) -> 38 | X125: =ROUND(+$R125*X$6,0) -> 42 | AA125: =ROUND(+$R125*AA$6,0) -> 47 | AD125: =ROUND(+$R125*AD$6,0) -> 52
A126: 4C | B126: 104 | C126: =RANK($G126,$G$44:$G$152,1)+36 -> 95 | D126: A. Martin | G126: 1200 | H126: =IF(G126<>"Scr",1/G126,"") -> 0.0008333333333 | I126: =IF(H126<>"",+H126/$H$153,0) -> 0.000783582867 | J126: =(1-I126)*I126/(1-I126/92) -> 0.0007829755336 | K126: =IF(J126<>"",+J126/$J$153,0) -> 0.0009059886908 | L126: =(1-I126-K126)*(I126+K126)/(1-(I126+K126)/92) -> 0.001686747883 | M126: =IF(L126<>"",+L126/$L$153,0) -> 0.001089164266 | N126: =(1-I126-K126-M126)*(I126+K126+M126)/(1-(I126+K126+M126)/92) -> 0.002771098148 | O126: =IF(N126<>"",+N126/$N$153,0) -> 0.001257026994 | P126: =(1-I126-K126-M126-O126)*(I126+K126+M126+O126)/(1-(I126+K126+M126+O126)/92) -> 0.004019651767 | Q126: =IF(P126<>"",+P126/$P$153,0) -> 0.001395971732 | R126: =+I$7*I126+K$7*K126+M$7*M126+O$7*O126+Q$7*Q126 -> 0.0009425647782 | T126: 0.0009425647782 | U126: =ROUND(+$R126*U$6,0) -> 38 | X126: =ROUND(+$R126*X$6,0) -> 42 | AA126: =ROUND(+$R126*AA$6,0) -> 47 | AD126: =ROUND(+$R126*AD$6,0) -> 52
A127: 4C | B127: 105 | C127: =RANK($G127,$G$44:$G$152,1)+36 -> 95 | D127: D. Nisbet | G127: 1200 | H127: =IF(G127<>"Scr",1/G127,"") -> 0.0008333333333 | I127: =IF(H127<>"",+H127/$H$153,0) -> 0.000783582867 | J127: =(1-I127)*I127/(1-I127/92) -> 0.0007829755336 | K127: =IF(J127<>"",+J127/$J$153,0) -> 0.0009059886908 | L127: =(1-I127-K127)*(I127+K127)/(1-(I127+K127)/92) -> 0.001686747883 | M127: =IF(L127<>"",+L127/$L$153,0) -> 0.001089164266 | N127: =(1-I127-K127-M127)*(I127+K127+M127)/(1-(I127+K127+M127)/92) -> 0.002771098148 | O127: =IF(N127<>"",+N127/$N$153,0) -> 0.001257026994 | P127: =(1-I127-K127-M127-O127)*(I127+K127+M127+O127)/(1-(I127+K127+M127+O127)/92) -> 0.004019651767 | Q127: =IF(P127<>"",+P127/$P$153,0) -> 0.001395971732 | R127: =+I$7*I127+K$7*K127+M$7*M127+O$7*O127+Q$7*Q127 -> 0.0009425647782 | T127: 0.0009425647782 | U127: =ROUND(+$R127*U$6,0) -> 38 | X127: =ROUND(+$R127*X$6,0) -> 42 | AA127: =ROUND(+$R127*AA$6,0) -> 47 | AD127: =ROUND(+$R127*AD$6,0) -> 52
A128: 4C | B128: 107 | C128: =RANK($G128,$G$44:$G$152,1)+36 -> 130 | D128: J. Nitties | G128: 1500 | H128: =IF(G128<>"Scr",1/G128,"") -> 0.0006666666667 | I128: =IF(H128<>"",+H128/$H$153,0) -> 0.0006268662936 | J128: =(1-I128)*I128/(1-I128/92) -> 0.0006264776009 | K128: =IF(J128<>"",+J128/$J$153,0) -> 0.0007249033936 | L128: =(1-I128-K128)*(I128+K128)/(1-(I128+K128)/92) -> 0.001349962241 | M128: =IF(L128<>"",+L128/$L$153,0) -> 0.0008716955562 | N128: =(1-I128-K128-M128)*(I128+K128+M128)/(1-(I128+K128+M128)/92) -> 0.002218575064 | O128: =IF(N128<>"",+N128/$N$153,0) -> 0.001006391183 | P128: =(1-I128-K128-M128-O128)*(I128+K128+M128+O128)/(1-(I128+K128+M128+O128)/92) -> 0.003219537483 | Q128: =IF(P128<>"",+P128/$P$153,0) -> 0.001118102656 | R128: =+I$7*I128+K$7*K128+M$7*M128+O$7*O128+Q$7*Q128 -> 0.0007542840691 | T128: 0.0007542840691 | U128: =ROUND(+$R128*U$6,0) -> 30 | X128: =ROUND(+$R128*X$6,0) -> 34 | AA128: =ROUND(+$R128*AA$6,0) -> 38 | AD128: =ROUND(+$R128*AD$6,0) -> 41
A129: 4D | B129: 115 | C129: =RANK($G129,$G$44:$G$152,1)+36 -> 93 | D129: G. Paddison | G129: 1150 | H129: =IF(G129<>"Scr",1/G129,"") -> 0.0008695652174 | I129: =IF(H129<>"",+H129/$H$153,0) -> 0.0008176516873 | J129: =(1-I129)*I129/(1-I129/92) -> 0.000816990394 | K129: =IF(J129<>"",+J129/$J$153,0) -> 0.0009453476203 | L129: =(1-I129-K129)*(I129+K129)/(1-(I129+K129)/92) -> 0.001759924866 | M129: =IF(L129<>"",+L129/$L$153,0) -> 0.001136415996 | N129: =(1-I129-K129-M129)*(I129+K129+M129)/(1-(I129+K129+M129)/92) -> 0.002891099809 | O129: =IF(N129<>"",+N129/$N$153,0) -> 0.00131146221 | P129: =(1-I129-K129-M129-O129)*(I129+K129+M129+O129)/(1-(I129+K129+M129+O129)/92) -> 0.004193337956 | Q129: =IF(P129<>"",+P129/$P$153,0) -> 0.001456290641 | R129: =+I$7*I129+K$7*K129+M$7*M129+O$7*O129+Q$7*Q129 -> 0.0009834800263 | T129: 0.0009834800263 | U129: =ROUND(+$R129*U$6,0) -> 39 | X129: =ROUND(+$R129*X$6,0) -> 44 | AA129: =ROUND(+$R129*AA$6,0) -> 49 | AD129: =ROUND(+$R129*AD$6,0) -> 54
A130: 4D | B130: 116 | C130: =RANK($G130,$G$44:$G$152,1)+36 -> 78 | D130: D. Pearce | G130: 825 | H130: =IF(G130<>"Scr",1/G130,"") -> 0.001212121212 | I130: =IF(H130<>"",+H130/$H$153,0) -> 0.001139756897 | J130: =(1-I130)*I130/(1-I130/92) -> 0.001138471956 | K130: =IF(J130<>"",+J130/$J$153,0) -> 0.001317337097 | L130: =(1-I130-K130)*(I130+K130)/(1-(I130+K130)/92) -> 0.002451122147 | M130: =IF(L130<>"",+L130/$L$153,0) -> 0.001582734849 | N130: =(1-I130-K130-M130)*(I130+K130+M130)/(1-(I130+K130+M130)/92) -> 0.004023685311 | O130: =IF(N130<>"",+N130/$N$153,0) -> 0.001825226239 | P130: =(1-I130-K130-M130-O130)*(I130+K130+M130+O130)/(1-(I130+K130+M130+O130)/92) -> 0.005831027943 | Q130: =IF(P130<>"",+P130/$P$153,0) -> 0.002025038647 | R130: =+I$7*I130+K$7*K130+M$7*M130+O$7*O130+Q$7*Q130 -> 0.001370044606 | T130: 0.001370044606 | U130: =ROUND(+$R130*U$6,0) -> 55 | X130: =ROUND(+$R130*X$6,0) -> 62 | AA130: =ROUND(+$R130*AA$6,0) -> 69 | AD130: =ROUND(+$R130*AD$6,0) -> 75
A131: 4D | B131: 118 | C131: =RANK($G131,$G$44:$G$152,1)+36 -> 79 | D131: D. Perry | G131: 830 | H131: =IF(G131<>"Scr",1/G131,"") -> 0.001204819277 | I131: =IF(H131<>"",+H131/$H$153,0) -> 0.001132890892 | J131: =(1-I131)*I131/(1-I131/92) -> 0.001131621385 | K131: =IF(J131<>"",+J131/$J$153,0) -> 0.001309410235 | L131: =(1-I131-K131)*(I131+K131)/(1-(I131+K131)/92) -> 0.00243640097 | M131: =IF(L131<>"",+L131/$L$153,0) -> 0.001573229113 | N131: =(1-I131-K131-M131)*(I131+K131+M131)/(1-(I131+K131+M131)/92) -> 0.003999580326 | O131: =IF(N131<>"",+N131/$N$153,0) -> 0.001814291724 | P131: =(1-I131-K131-M131-O131)*(I131+K131+M131+O131)/(1-(I131+K131+M131+O131)/92) -> 0.00579620243 | Q131: =IF(P131<>"",+P131/$P$153,0) -> 0.002012944208 | R131: =+I$7*I131+K$7*K131+M$7*M131+O$7*O131+Q$7*Q131 -> 0.001361809682 | T131: 0.001361809682 | U131: =ROUND(+$R131*U$6,0) -> 54 | X131: =ROUND(+$R131*X$6,0) -> 61 | AA131: =ROUND(+$R131*AA$6,0) -> 68 | AD131: =ROUND(+$R131*AD$6,0) -> 75
A132: 4D | B132: 119 | C132: =RANK($G132,$G$44:$G$152,1)+36 -> 76 | D132: B. Proverbs | G132: 815 | H132: =IF(G132<>"Scr",1/G132,"") -> 0.001226993865 | I132: =IF(H132<>"",+H132/$H$153,0) -> 0.001153741645 | J132: =(1-I132)*I132/(1-I132/92) -> 0.001152424977 | K132: =IF(J132<>"",+J132/$J$153,0) -> 0.001333482275 | L132: =(1-I132-K132)*(I132+K132)/(1-(I132+K132)/92) -> 0.002481104714 | M132: =IF(L132<>"",+L132/$L$153,0) -> 0.001602095146 | N132: =(1-I132-K132-M132)*(I132+K132+M132)/(1-(I132+K132+M132)/92) -> 0.004072777567 | O132: =IF(N132<>"",+N132/$N$153,0) -> 0.001847495494 | P132: =(1-I132-K132-M132-O132)*(I132+K132+M132+O132)/(1-(I132+K132+M132+O132)/92) -> 0.005901949649 | Q132: =IF(P132<>"",+P132/$P$153,0) -> 0.002049668815 | R132: =+I$7*I132+K$7*K132+M$7*M132+O$7*O132+Q$7*Q132 -> 0.001386816893 | T132: 0.001386816893 | U132: =ROUND(+$R132*U$6,0) -> 55 | X132: =ROUND(+$R132*X$6,0) -> 62 | AA132: =ROUND(+$R132*AA$6,0) -> 69 | AD132: =ROUND(+$R132*AD$6,0) -> 76
A133: 4D | B133: 120 | C133: =RANK($G133,$G$44:$G$152,1)+36 -> 130 | D133: A. Pike | G133: 1500 | H133: =IF(G133<>"Scr",1/G133,"") -> 0.0006666666667 | I133: =IF(H133<>"",+H133/$H$153,0) -> 0.0006268662936 | J133: =(1-I133)*I133/(1-I133/92) -> 0.0006264776009 | K133: =IF(J133<>"",+J133/$J$153,0) -> 0.0007249033936 | L133: =(1-I133-K133)*(I133+K133)/(1-(I133+K133)/92) -> 0.001349962241 | M133: =IF(L133<>"",+L133/$L$153,0) -> 0.0008716955562 | N133: =(1-I133-K133-M133)*(I133+K133+M133)/(1-(I133+K133+M133)/92) -> 0.002218575064 | O133: =IF(N133<>"",+N133/$N$153,0) -> 0.001006391183 | P133: =(1-I133-K133-M133-O133)*(I133+K133+M133+O133)/(1-(I133+K133+M133+O133)/92) -> 0.003219537483 | Q133: =IF(P133<>"",+P133/$P$153,0) -> 0.001118102656 | R133: =+I$7*I133+K$7*K133+M$7*M133+O$7*O133+Q$7*Q133 -> 0.0007542840691 | T133: 0.0007542840691 | U133: =ROUND(+$R133*U$6,0) -> 30 | X133: =ROUND(+$R133*X$6,0) -> 34 | AA133: =ROUND(+$R133*AA$6,0) -> 38 | AD133: =ROUND(+$R133*AD$6,0) -> 41
A134: 4D | B134: 121 | C134: =RANK($G134,$G$44:$G$152,1)+36 -> 87 | D134: A. Price | G134: 869 | H134: =IF(G134<>"Scr",1/G134,"") -> 0.001150747986 | I134: =IF(H134<>"",+H134/$H$153,0) -> 0.001082047687 | J134: =(1-I134)*I134/(1-I134/92) -> 0.001080889573 | K134: =IF(J134<>"",+J134/$J$153,0) -> 0.001250707956 | L134: =(1-I134-K134)*(I134+K134)/(1-(I134+K134)/92) -> 0.002327372907 | M134: =IF(L134<>"",+L134/$L$153,0) -> 0.001502827678 | N134: =(1-I134-K134-M134)*(I134+K134+M134)/(1-(I134+K134+M134)/92) -> 0.003821030925 | O134: =IF(N134<>"",+N134/$N$153,0) -> 0.001733298051 | P134: =(1-I134-K134-M134-O134)*(I134+K134+M134+O134)/(1-(I134+K134+M134+O134)/92) -> 0.005538204168 | Q134: =IF(P134<>"",+P134/$P$153,0) -> 0.001923344834 | R134: =+I$7*I134+K$7*K134+M$7*M134+O$7*O134+Q$7*Q134 -> 0.00130082264 | T134: 0.00130082264 | U134: =ROUND(+$R134*U$6,0) -> 52 | X134: =ROUND(+$R134*X$6,0) -> 59 | AA134: =ROUND(+$R134*AA$6,0) -> 65 | AD134: =ROUND(+$R134*AD$6,0) -> 72
A135: 4D | B135: 123 | C135: =RANK($G135,$G$44:$G$152,1)+36 -> 74 | D135: R. Sondjaja | G135: 800 | H135: =IF(G135<>"Scr",1/G135,"") -> 0.00125 | I135: =IF(H135<>"",+H135/$H$153,0) -> 0.0011753743 | J135: =(1-I135)*I135/(1-I135/92) -> 0.001174007795 | K135: =IF(J135<>"",+J135/$J$153,0) -> 0.001358455966 | L135: =(1-I135-K135)*(I135+K135)/(1-(I135+K135)/92) -> 0.002527479581 | M135: =IF(L135<>"",+L135/$L$153,0) -> 0.001632040254 | N135: =(1-I135-K135-M135)*(I135+K135+M135)/(1-(I135+K135+M135)/92) -> 0.004148703902 | O135: =IF(N135<>"",+N135/$N$153,0) -> 0.001881937238 | P135: =(1-I135-K135-M135-O135)*(I135+K135+M135+O135)/(1-(I135+K135+M135+O135)/92) -> 0.006011626967 | Q135: =IF(P135<>"",+P135/$P$153,0) -> 0.002087758292 | R135: =+I$7*I135+K$7*K135+M$7*M135+O$7*O135+Q$7*Q135 -> 0.00141275971 | T135: 0.00141275971 | U135: =ROUND(+$R135*U$6,0) -> 57 | X135: =ROUND(+$R135*X$6,0) -> 64 | AA135: =ROUND(+$R135*AA$6,0) -> 71 | AD135: =ROUND(+$R135*AD$6,0) -> 78
A136: 4D | B136: 125 | C136: =RANK($G136,$G$44:$G$152,1)+36 -> 88 | D136: M. Sim | G136: 906 | H136: =IF(G136<>"Scr",1/G136,"") -> 0.001103752759 | I136: =IF(H136<>"",+H136/$H$153,0) -> 0.001037858102 | J136: =(1-I136)*I136/(1-I136/92) -> 0.001036792649 | K136: =IF(J136<>"",+J136/$J$153,0) -> 0.001199682971 | L136: =(1-I136-K136)*(I136+K136)/(1-(I136+K136)/92) -> 0.002232588782 | M136: =IF(L136<>"",+L136/$L$153,0) -> 0.001441623818 | N136: =(1-I136-K136-M136)*(I136+K136+M136)/(1-(I136+K136+M136)/92) -> 0.003665775234 | O136: =IF(N136<>"",+N136/$N$153,0) -> 0.001662870883 | P136: =(1-I136-K136-M136-O136)*(I136+K136+M136+O136)/(1-(I136+K136+M136+O136)/92) -> 0.005313806977 | Q136: =IF(P136<>"",+P136/$P$153,0) -> 0.001845414667 | R136: =+I$7*I136+K$7*K136+M$7*M136+O$7*O136+Q$7*Q136 -> 0.001247806804 | T136: 0.001247806804 | U136: =ROUND(+$R136*U$6,0) -> 50 | X136: =ROUND(+$R136*X$6,0) -> 56 | AA136: =ROUND(+$R136*AA$6,0) -> 62 | AD136: =ROUND(+$R136*AD$6,0) -> 69
A137: 4D | B137: 126 | C137: =RANK($G137,$G$44:$G$152,1)+36 -> 130 | D137: P. Senior | G137: 1500 | H137: =IF(G137<>"Scr",1/G137,"") -> 0.0006666666667 | I137: =IF(H137<>"",+H137/$H$153,0) -> 0.0006268662936 | J137: =(1-I137)*I137/(1-I137/92) -> 0.0006264776009 | K137: =IF(J137<>"",+J137/$J$153,0) -> 0.0007249033936 | L137: =(1-I137-K137)*(I137+K137)/(1-(I137+K137)/92) -> 0.001349962241 | M137: =IF(L137<>"",+L137/$L$153,0) -> 0.0008716955562 | N137: =(1-I137-K137-M137)*(I137+K137+M137)/(1-(I137+K137+M137)/92) -> 0.002218575064 | O137: =IF(N137<>"",+N137/$N$153,0) -> 0.001006391183 | P137: =(1-I137-K137-M137-O137)*(I137+K137+M137+O137)/(1-(I137+K137+M137+O137)/92) -> 0.003219537483 | Q137: =IF(P137<>"",+P137/$P$153,0) -> 0.001118102656 | R137: =+I$7*I137+K$7*K137+M$7*M137+O$7*O137+Q$7*Q137 -> 0.0007542840691 | T137: =+R137+S137 -> 0.0007542840691 | U137: =ROUND(+$R137*U$6,0) -> 30 | X137: =ROUND(+$R137*X$6,0) -> 34 | AA137: =ROUND(+$R137*AA$6,0) -> 38 | AD137: =ROUND(+$R137*AD$6,0) -> 41
A138: 4D | B138: 127 | C138: =RANK($G138,$G$44:$G$152,1)+36 -> 95 | D138: M. Stieger | G138: 1200 | H138: =IF(G138<>"Scr",1/G138,"") -> 0.0008333333333 | I138: =IF(H138<>"",+H138/$H$153,0) -> 0.000783582867 | J138: =(1-I138)*I138/(1-I138/92) -> 0.0007829755336 | K138: =IF(J138<>"",+J138/$J$153,0) -> 0.0009059886908 | L138: =(1-I138-K138)*(I138+K138)/(1-(I138+K138)/92) -> 0.001686747883 | M138: =IF(L138<>"",+L138/$L$153,0) -> 0.001089164266 | N138: =(1-I138-K138-M138)*(I138+K138+M138)/(1-(I138+K138+M138)/92) -> 0.002771098148 | O138: =IF(N138<>"",+N138/$N$153,0) -> 0.001257026994 | P138: =(1-I138-K138-M138-O138)*(I138+K138+M138+O138)/(1-(I138+K138+M138+O138)/92) -> 0.004019651767 | Q138: =IF(P138<>"",+P138/$P$153,0) -> 0.001395971732 | R138: =+I$7*I138+K$7*K138+M$7*M138+O$7*O138+Q$7*Q138 -> 0.0009425647782 | T138: 0.0009425647782 | U138: =ROUND(+$R138*U$6,0) -> 38 | X138: =ROUND(+$R138*X$6,0) -> 42 | AA138: =ROUND(+$R138*AA$6,0) -> 47 | AD138: =ROUND(+$R138*AD$6,0) -> 52
A139: 4D | B139: 128 | C139: =RANK($G139,$G$44:$G$152,1)+36 -> 130 | D139: S. Strange | G139: 1500 | H139: =IF(G144<>"Scr",1/G144,"") -> 0.0008333333333 | I139: =IF(H144<>"",+H144/$H$153,0) -> 0.000783582867 | J139: =(1-I144)*I144/(1-I144/92) -> 0.0007829755336 | K139: =IF(J144<>"",+J144/$J$153,0) -> 0.0009059886908 | L139: =(1-I144-K144)*(I144+K144)/(1-(I144+K144)/92) -> 0.001686747883 | M139: =IF(L144<>"",+L144/$L$153,0) -> 0.001089164266 | N139: =(1-I144-K144-M144)*(I144+K144+M144)/(1-(I144+K144+M144)/92) -> 0.002771098148 | O139: =IF(N144<>"",+N144/$N$153,0) -> 0.001257026994 | P139: =(1-I144-K144-M144-O144)*(I144+K144+M144+O144)/(1-(I144+K144+M144+O144)/92) -> 0.004019651767 | Q139: =IF(P144<>"",+P144/$P$153,0) -> 0.001395971732 | R139: =+I$7*I144+K$7*K144+M$7*M144+O$7*O144+Q$7*Q144 -> 0.0009425647782 | T139: 0.0009425647782 | U139: =ROUND(+$R144*U$6,0) -> 38 | X139: =ROUND(+$R144*X$6,0) -> 42 | AA139: =ROUND(+$R144*AA$6,0) -> 47 | AD139: =ROUND(+$R144*AD$6,0) -> 52
A140: 4D | B140: 129 | C140: =RANK($G140,$G$44:$G$152,1)+36 -> 95 | D140: T. Sinnott | G140: 1200 | H140: =IF(G140<>"Scr",1/G140,"") -> 0.0008333333333 | I140: =IF(H140<>"",+H140/$H$153,0) -> 0.000783582867 | J140: =(1-I140)*I140/(1-I140/92) -> 0.0007829755336 | K140: =IF(J140<>"",+J140/$J$153,0) -> 0.0009059886908 | L140: =(1-I140-K140)*(I140+K140)/(1-(I140+K140)/92) -> 0.001686747883 | M140: =IF(L140<>"",+L140/$L$153,0) -> 0.001089164266 | N140: =(1-I140-K140-M140)*(I140+K140+M140)/(1-(I140+K140+M140)/92) -> 0.002771098148 | O140: =IF(N140<>"",+N140/$N$153,0) -> 0.001257026994 | P140: =(1-I140-K140-M140-O140)*(I140+K140+M140+O140)/(1-(I140+K140+M140+O140)/92) -> 0.004019651767 | Q140: =IF(P140<>"",+P140/$P$153,0) -> 0.001395971732 | R140: =+I$7*I140+K$7*K140+M$7*M140+O$7*O140+Q$7*Q140 -> 0.0009425647782 | T140: 0.0009425647782 | U140: =ROUND(+$R140*U$6,0) -> 38 | X140: =ROUND(+$R140*X$6,0) -> 42 | AA140: =ROUND(+$R140*AA$6,0) -> 47 | AD140: =ROUND(+$R140*AD$6,0) -> 52
A141: 4D | B141: 130 | C141: =RANK($G141,$G$44:$G$152,1)+36 -> 73 | D141: T. Stewart | G141: 795 | H141: =IF(G141<>"Scr",1/G141,"") -> 0.001257861635 | I141: =IF(H141<>"",+H141/$H$153,0) -> 0.001182766592 | J141: =(1-I141)*I141/(1-I141/92) -> 0.001181382843 | K141: =IF(J141<>"",+J141/$J$153,0) -> 0.001366989707 | L141: =(1-I141-K141)*(I141+K141)/(1-(I141+K141)/92) -> 0.002543325529 | M141: =IF(L141<>"",+L141/$L$153,0) -> 0.001642272275 | N141: =(1-I141-K141-M141)*(I141+K141+M141)/(1-(I141+K141+M141)/92) -> 0.00417464569 | O141: =IF(N141<>"",+N141/$N$153,0) -> 0.001893704966 | P141: =(1-I141-K141-M141-O141)*(I141+K141+M141+O141)/(1-(I141+K141+M141+O141)/92) -> 0.00604909753 | Q141: =IF(P141<>"",+P141/$P$153,0) -> 0.002100771321 | R141: =+I$7*I141+K$7*K141+M$7*M141+O$7*O141+Q$7*Q141 -> 0.001421624361 | T141: 0.001421624361 | U141: =ROUND(+$R141*U$6,0) -> 57 | X141: =ROUND(+$R141*X$6,0) -> 64 | AA141: =ROUND(+$R141*AA$6,0) -> 71 | AD141: =ROUND(+$R141*AD$6,0) -> 78
A142: 4D | B142: 131 | C142: =RANK($G142,$G$44:$G$152,1)+36 -> 95 | D142: A. Stephens | G142: 1200 | H142: =IF(G142<>"Scr",1/G142,"") -> 0.0008333333333 | I142: =IF(H142<>"",+H142/$H$153,0) -> 0.000783582867 | J142: =(1-I142)*I142/(1-I142/92) -> 0.0007829755336 | K142: =IF(J142<>"",+J142/$J$153,0) -> 0.0009059886908 | L142: =(1-I142-K142)*(I142+K142)/(1-(I142+K142)/92) -> 0.001686747883 | M142: =IF(L142<>"",+L142/$L$153,0) -> 0.001089164266 | N142: =(1-I142-K142-M142)*(I142+K142+M142)/(1-(I142+K142+M142)/92) -> 0.002771098148 | O142: =IF(N142<>"",+N142/$N$153,0) -> 0.001257026994 | P142: =(1-I142-K142-M142-O142)*(I142+K142+M142+O142)/(1-(I142+K142+M142+O142)/92) -> 0.004019651767 | Q142: =IF(P142<>"",+P142/$P$153,0) -> 0.001395971732 | R142: =+I$7*I142+K$7*K142+M$7*M142+O$7*O142+Q$7*Q142 -> 0.0009425647782 | T142: 0.0009425647782 | U142: =ROUND(+$R142*U$6,0) -> 38 | X142: =ROUND(+$R142*X$6,0) -> 42 | AA142: =ROUND(+$R142*AA$6,0) -> 47 | AD142: =ROUND(+$R142*AD$6,0) -> 52
A143: 4D | B143: 133 | C143: =RANK($G143,$G$44:$G$152,1)+36 -> 127 | D143: J. Thompson | G143: 1400 | H143: =IF(G143<>"Scr",1/G143,"") -> 0.0007142857143 | I143: =IF(H143<>"",+H143/$H$153,0) -> 0.0006716424574 | J143: =(1-I143)*I143/(1-I143/92) -> 0.0006711962539 | K143: =IF(J143<>"",+J143/$J$153,0) -> 0.0007766477868 | L143: =(1-I143-K143)*(I143+K143)/(1-(I143+K143)/92) -> 0.001446215466 | M143: =IF(L143<>"",+L143/$L$153,0) -> 0.0009338480417 | N143: =(1-I143-K143-M143)*(I143+K143+M143)/(1-(I143+K143+M143)/92) -> 0.002376525238 | O143: =IF(N143<>"",+N143/$N$153,0) -> 0.001078040624 | P143: =(1-I143-K143-M143-O143)*(I143+K143+M143+O143)/(1-(I143+K143+M143+O143)/92) -> 0.003448335766 | Q143: =IF(P143<>"",+P143/$P$153,0) -> 0.001197561264 | R143: =+I$7*I143+K$7*K143+M$7*M143+O$7*O143+Q$7*Q143 -> 0.0008080903907 | T143: 0.0008080903907 | U143: =ROUND(+$R143*U$6,0) -> 32 | X143: =ROUND(+$R143*X$6,0) -> 36 | AA143: =ROUND(+$R143*AA$6,0) -> 40 | AD143: =ROUND(+$R143*AD$6,0) -> 44
A144: 4D | B144: 134 | C144: =RANK($G144,$G$44:$G$152,1)+36 -> 95 | D144: A. Townsend | G144: 1200 | H144: =IF(G144<>"Scr",1/G144,"") -> 0.0008333333333 | I144: =IF(H144<>"",+H144/$H$153,0) -> 0.000783582867 | J144: =(1-I144)*I144/(1-I144/92) -> 0.0007829755336 | K144: =IF(J144<>"",+J144/$J$153,0) -> 0.0009059886908 | L144: =(1-I144-K144)*(I144+K144)/(1-(I144+K144)/92) -> 0.001686747883 | M144: =IF(L144<>"",+L144/$L$153,0) -> 0.001089164266 | N144: =(1-I144-K144-M144)*(I144+K144+M144)/(1-(I144+K144+M144)/92) -> 0.002771098148 | O144: =IF(N144<>"",+N144/$N$153,0) -> 0.001257026994 | P144: =(1-I144-K144-M144-O144)*(I144+K144+M144+O144)/(1-(I144+K144+M144+O144)/92) -> 0.004019651767 | Q144: =IF(P144<>"",+P144/$P$153,0) -> 0.001395971732 | R144: =+I$7*I144+K$7*K144+M$7*M144+O$7*O144+Q$7*Q144 -> 0.0009425647782 | T144: 0.0009425647782 | U144: =ROUND(+$R144*U$6,0) -> 38 | X144: =ROUND(+$R144*X$6,0) -> 42 | AA144: =ROUND(+$R144*AA$6,0) -> 47 | AD144: =ROUND(+$R144*AD$6,0) -> 52
A145: 4D | B145: 135 | C145: =RANK($G145,$G$44:$G$152,1)+36 -> 130 | D145: D. Williamson | G145: 1500 | H145: =IF(G145<>"Scr",1/G145,"") -> 0.0006666666667 | I145: =IF(H145<>"",+H145/$H$153,0) -> 0.0006268662936 | J145: =(1-I145)*I145/(1-I145/92) -> 0.0006264776009 | K145: =IF(J145<>"",+J145/$J$153,0) -> 0.0007249033936 | L145: =(1-I145-K145)*(I145+K145)/(1-(I145+K145)/92) -> 0.001349962241 | M145: =IF(L145<>"",+L145/$L$153,0) -> 0.0008716955562 | N145: =(1-I145-K145-M145)*(I145+K145+M145)/(1-(I145+K145+M145)/92) -> 0.002218575064 | O145: =IF(N145<>"",+N145/$N$153,0) -> 0.001006391183 | P145: =(1-I145-K145-M145-O145)*(I145+K145+M145+O145)/(1-(I145+K145+M145+O145)/92) -> 0.003219537483 | Q145: =IF(P145<>"",+P145/$P$153,0) -> 0.001118102656 | R145: =+I$7*I145+K$7*K145+M$7*M145+O$7*O145+Q$7*Q145 -> 0.0007542840691 | T145: 0.0007542840691 | U145: =ROUND(+$R145*U$6,0) -> 30 | X145: =ROUND(+$R145*X$6,0) -> 34 | AA145: =ROUND(+$R145*AA$6,0) -> 38 | AD145: =ROUND(+$R145*AD$6,0) -> 41
A146: 4D | B146: 136 | C146: =RANK($G146,$G$44:$G$152,1)+36 -> 85 | D146: A. Wilkin | G146: 865 | H146: =IF(G146<>"Scr",1/G146,"") -> 0.001156069364 | I146: =IF(H146<>"",+H146/$H$153,0) -> 0.001087051376 | J146: =(1-I146)*I146/(1-I146/92) -> 0.001085882526 | K146: =IF(J146<>"",+J146/$J$153,0) -> 0.001256485351 | L146: =(1-I146-K146)*(I146+K146)/(1-(I146+K146)/92) -> 0.002338104122 | M146: =IF(L146<>"",+L146/$L$153,0) -> 0.001509757022 | N146: =(1-I146-K146-M146)*(I146+K146+M146)/(1-(I146+K146+M146)/92) -> 0.003838606651 | O146: =IF(N146<>"",+N146/$N$153,0) -> 0.001741270761 | P146: =(1-I146-K146-M146-O146)*(I146+K146+M146+O146)/(1-(I146+K146+M146+O146)/92) -> 0.005563603683 | Q146: =IF(P146<>"",+P146/$P$153,0) -> 0.001932165749 | R146: =+I$7*I146+K$7*K146+M$7*M146+O$7*O146+Q$7*Q146 -> 0.001306825166 | T146: 0.001306825166 | U146: =ROUND(+$R146*U$6,0) -> 52 | X146: =ROUND(+$R146*X$6,0) -> 59 | AA146: =ROUND(+$R146*AA$6,0) -> 65 | AD146: =ROUND(+$R146*AD$6,0) -> 72
A147: 4D | B147: 137 | C147: =RANK($G147,$G$44:$G$152,1)+36 -> 77 | D147: P. Wilson | G147: 824 | H147: =IF(G147<>"Scr",1/G147,"") -> 0.001213592233 | I147: =IF(H147<>"",+H147/$H$153,0) -> 0.001141140098 | J147: =(1-I147)*I147/(1-I147/92) -> 0.001139852035 | K147: =IF(J147<>"",+J147/$J$153,0) -> 0.001318934001 | L147: =(1-I147-K147)*(I147+K147)/(1-(I147+K147)/92) -> 0.002454087756 | M147: =IF(L147<>"",+L147/$L$153,0) -> 0.001584649797 | N147: =(1-I147-K147-M147)*(I147+K147+M147)/(1-(I147+K147+M147)/92) -> 0.004028541216 | O147: =IF(N147<>"",+N147/$N$153,0) -> 0.001827428978 | P147: =(1-I147-K147-M147-O147)*(I147+K147+M147+O147)/(1-(I147+K147+M147+O147)/92) -> 0.005838043323 | Q147: =IF(P147<>"",+P147/$P$153,0) -> 0.002027474995 | R147: =+I$7*I147+K$7*K147+M$7*M147+O$7*O147+Q$7*Q147 -> 0.001371703556 | T147: 0.001371703556 | U147: =ROUND(+$R147*U$6,0) -> 55 | X147: =ROUND(+$R147*X$6,0) -> 62 | AA147: =ROUND(+$R147*AA$6,0) -> 69 | AD147: =ROUND(+$R147*AD$6,0) -> 75
A148: 4D | B148: 138 | C148: =RANK($G148,$G$44:$G$152,1)+36 -> 85 | D148: M. Wright | G148: 865 | H148: =IF(G148<>"Scr",1/G148,"") -> 0.001156069364 | I148: =IF(H148<>"",+H148/$H$153,0) -> 0.001087051376 | J148: =(1-I148)*I148/(1-I148/92) -> 0.001085882526 | K148: =IF(J148<>"",+J148/$J$153,0) -> 0.001256485351 | L148: =(1-I148-K148)*(I148+K148)/(1-(I148+K148)/92) -> 0.002338104122 | M148: =IF(L148<>"",+L148/$L$153,0) -> 0.001509757022 | N148: =(1-I148-K148-M148)*(I148+K148+M148)/(1-(I148+K148+M148)/92) -> 0.003838606651 | O148: =IF(N148<>"",+N148/$N$153,0) -> 0.001741270761 | P148: =(1-I148-K148-M148-O148)*(I148+K148+M148+O148)/(1-(I148+K148+M148+O148)/92) -> 0.005563603683 | Q148: =IF(P148<>"",+P148/$P$153,0) -> 0.001932165749 | R148: =+I$7*I148+K$7*K148+M$7*M148+O$7*O148+Q$7*Q148 -> 0.001306825166 | T148: 0.001306825166 | U148: =ROUND(+$R148*U$6,0) -> 52 | X148: =ROUND(+$R148*X$6,0) -> 59 | AA148: =ROUND(+$R148*AA$6,0) -> 65 | AD148: =ROUND(+$R148*AD$6,0) -> 72
A149: 4D | B149: 139 | C149: =RANK($G149,$G$44:$G$152,1)+36 -> 126 | D149: S. Wools-Cobb | G149: 1220 | H149: =IF(G149<>"Scr",1/G149,"") -> 0.0008196721311 | I149: =IF(H149<>"",+H149/$H$153,0) -> 0.0007707372462 | J149: =(1-I149)*I149/(1-I149/92) -> 0.0007701496623 | K149: =IF(J149<>"",+J149/$J$153,0) -> 0.0008911477489 | L149: =(1-I149-K149)*(I149+K149)/(1-(I149+K149)/92) -> 0.001659153104 | M149: =IF(L149<>"",+L149/$L$153,0) -> 0.001071345808 | N149: =(1-I149-K149-M149)*(I149+K149+M149)/(1-(I149+K149+M149)/92) -> 0.002725841235 | O149: =IF(N149<>"",+N149/$N$153,0) -> 0.001236497529 | P149: =(1-I149-K149-M149-O149)*(I149+K149+M149+O149)/(1-(I149+K149+M149+O149)/92) -> 0.003954140207 | Q149: =IF(P149<>"",+P149/$P$153,0) -> 0.001373220436 | R149: =+I$7*I149+K$7*K149+M$7*M149+O$7*O149+Q$7*Q149 -> 0.0009271362954 | T149: 0.0009271362954 | U149: =ROUND(+$R149*U$6,0) -> 37 | X149: =ROUND(+$R149*X$6,0) -> 42 | AA149: =ROUND(+$R149*AA$6,0) -> 46 | AD149: =ROUND(+$R149*AD$6,0) -> 51
A150: 4D | B150: 140 | C150: =RANK($G150,$G$44:$G$152,1)+36 -> 81 | D150: J. Wilson | G150: 835 | H150: =IF(G150<>"Scr",1/G150,"") -> 0.00119760479 | I150: =IF(H150<>"",+H150/$H$153,0) -> 0.001126107114 | J150: =(1-I150)*I150/(1-I150/92) -> 0.001124852766 | K150: =IF(J150<>"",+J150/$J$153,0) -> 0.001301578198 | L150: =(1-I150-K150)*(I150+K150)/(1-(I150+K150)/92) -> 0.002421855564 | M150: =IF(L150<>"",+L150/$L$153,0) -> 0.001563836875 | N150: =(1-I150-K150-M150)*(I150+K150+M150)/(1-(I150+K150+M150)/92) -> 0.003975762431 | O150: =IF(N150<>"",+N150/$N$153,0) -> 0.001803487438 | P150: =(1-I150-K150-M150-O150)*(I150+K150+M150+O150)/(1-(I150+K150+M150+O150)/92) -> 0.00576179042 | Q150: =IF(P150<>"",+P150/$P$153,0) -> 0.002000993374 | R150: =+I$7*I150+K$7*K150+M$7*M150+O$7*O150+Q$7*Q150 -> 0.001353673162 | T150: 0.001353673162 | U150: =ROUND(+$R150*U$6,0) -> 54 | X150: =ROUND(+$R150*X$6,0) -> 61 | AA150: =ROUND(+$R150*AA$6,0) -> 68 | AD150: =ROUND(+$R150*AD$6,0) -> 74
A151: 4D | B151: 143 | C151: =RANK($G151,$G$44:$G$152,1)+36 -> 127 | D151: J. Younger | G151: 1400 | H151: =IF(G151<>"Scr",1/G151,"") -> 0.0007142857143 | I151: =IF(H151<>"",+H151/$H$153,0) -> 0.0006716424574 | J151: =(1-I151)*I151/(1-I151/92) -> 0.0006711962539 | K151: =IF(J151<>"",+J151/$J$153,0) -> 0.0007766477868 | L151: =(1-I151-K151)*(I151+K151)/(1-(I151+K151)/92) -> 0.001446215466 | M151: =IF(L151<>"",+L151/$L$153,0) -> 0.0009338480417 | N151: =(1-I151-K151-M151)*(I151+K151+M151)/(1-(I151+K151+M151)/92) -> 0.002376525238 | O151: =IF(N151<>"",+N151/$N$153,0) -> 0.001078040624 | P151: =(1-I151-K151-M151-O151)*(I151+K151+M151+O151)/(1-(I151+K151+M151+O151)/92) -> 0.003448335766 | Q151: =IF(P151<>"",+P151/$P$153,0) -> 0.001197561264 | R151: =+I$7*I151+K$7*K151+M$7*M151+O$7*O151+Q$7*Q151 -> 0.0008080903907 | T151: 0.0008080903907 | U151: =ROUND(+$R151*U$6,0) -> 32 | X151: =ROUND(+$R151*X$6,0) -> 36 | AA151: =ROUND(+$R151*AA$6,0) -> 40 | AD151: =ROUND(+$R151*AD$6,0) -> 44
D153: Totals | F153: =H153 -> 1.063491008 | H153: =SUM(H8:H152)-IF($F8,H8,0) -> 1.063491008 | I153: =SUM(I8:I152)-IF($F8,I8,0) -> 1 | J153: =SUM(J8:J152)-IF($F8,J8,0) -> 0.8642221935 | K153: =SUM(K8:K152)-IF($F8,K8,0) -> 1 | L153: =SUM(L8:L152)-IF($F8,L8,0) -> 1.548662525 | M153: =SUM(M8:M152)-IF($F8,M8,0) -> 1 | N153: =SUM(N8:N152)-IF($F8,N8,0) -> 2.204485792 | O153: =SUM(O8:O152)-IF($F8,O8,0) -> 1 | P153: =SUM(P8:P152)-IF($F8,P8,0) -> 2.879465018 | Q153: =SUM(Q8:Q152)-IF($F8,Q8,0) -> 1 | R153: =SUM(R8:R152) -> 1 | T153: =SUM(T8:T43)+SUM(T80:T152) -> 1 | U153: =SUM(U8:U152) -> 40005 | X153: =SUM(X8:X152) -> 44986 | AA153: =SUM(AA8:AA152) -> 49997 | AD153: =SUM(AD8:AD152) -> 55003
W155: SUMMARY
D156: 2012 | E156: 2013 | F156: 2014 | G156: 2015 | U156: 2018
A157: 1 | B157: =COUNTIF($A$8:$A$19,$A157) -> 12 | D157: 27650 | E157: 32850 | F157: 26500 | G157: 28100 | U157: =SUM(U8:U19) -> 25842 | V157: =SUM(V8:V19) -> 702 | W157: =SUM(W8:W19) -> 26544 | X157: =SUM(X8:X19) -> 29072 | Y157: =SUM(Y8:Y19) -> 787 | Z157: =SUM(Z8:Z19) -> 29859 | AA157: =SUM(AA8:AA19) -> 32302 | AB157: =SUM(AB8:AB19) -> 876 | AC157: =SUM(AC8:AC19) -> 33178 | AD157: =SUM(AD8:AD19) -> 35535 | AE157: =SUM(AE8:AE19) -> 966 | AF157: =SUM(AF8:AF19) -> 36501
A158: 2 | B158: =COUNTIF($A$20:$A$31,$A158) -> 12 | D158: 6600 | E158: 6150 | F158: 6150 | G158: 6775 | U158: =+SUM(U20:U31) -> 6098 | V158: 770 | W158: 6868 | X158: 6860 | Y158: 866 | Z158: 7726 | AA158: 7622 | AB158: 961 | AC158: 8583 | AD158: 8383 | AE158: 1058 | AF158: 9441
A159: 3 | B159: =COUNTIF($A$32:$A$43,$A159) -> 12 | D159: 5150 | E159: 3750 | F159: 4050 | G159: 4025 | U159: =SUM(U32:U43) -> 1978 | V159: 1719 | W159: 3697 | X159: 2227 | Y159: 1934 | Z159: 4161 | AA159: 2472 | AB159: 2153 | AC159: 4625 | AD159: 2720 | AE159: 2367 | AF159: 5087
B160: =SUM(B157:B159) -> 36 | D160: =SUM(D157:D159) -> 39400 | E160: =SUM(E157:E159) -> 42750 | F160: =SUM(F157:F159) -> 36700 | G160: =SUM(G157:G159) -> 38900 | U160: =SUM(U157:U159) -> 33918 | V160: =SUM(U44:U79) -> 3191 | W160: =SUM(W157:W159) -> 37109 | X160: =SUM(X157:X159) -> 38159 | Y160: =SUM(X44:X79) -> 3587 | Z160: =SUM(Z157:Z159) -> 41746 | AA160: =SUM(AA157:AA159) -> 42396 | AB160: =SUM(AA44:AA79) -> 3990 | AC160: =SUM(AC157:AC159) -> 46386 | AD160: =SUM(AD157:AD159) -> 46638 | AE160: =SUM(AD44:AD79) -> 4391 | AF160: =SUM(AF157:AF159) -> 51029
A161: 4A | B161: =COUNTIF($A$8:$A$152,$A161) -> 27 | C161: =COUNTIF($A$80:$A$152,$A161) -> 20 | D161: 700 | E161: 600 | F161: 400 | G161: 500 | U161: =SUMIF($A$80:$A$152,$A161,U$80:U$152) -> 768 | W161: =U161 -> 768 | X161: =SUMIF($A$80:$A$152,$A161,X$80:X$152) -> 856 | Z161: =X161 -> 856 | AA161: =SUMIF($A$80:$A$152,$A161,AA$80:AA$152) -> 956 | AC161: =AA161 -> 956 | AD161: =SUMIF($A$80:$A$152,$A161,AD$80:AD$152) -> 1051 | AF161: =AD161 -> 1051
A162: 4B | B162: =COUNTIF($A$8:$A$152,$A162) -> 24 | C162: =COUNTIF($A$80:$A$152,$A162) -> 13 | D162: 650 | E162: 600 | F162: 500 | G162: 700 | U162: =SUMIF($A$80:$A$152,$A162,U$80:U$152) -> 502 | W162: =U162 -> 502 | X162: 560 | Z162: =X162 -> 560 | AA162: 624 | AC162: =AA162 -> 624 | AD162: 688 | AF162: =AD162 -> 688
A163: 4C | B163: =COUNTIF($A$8:$A$152,$A163) -> 27 | C163: =COUNTIF($A$80:$A$152,$A163) -> 16 | D163: 550 | E163: 600 | F163: 550 | G163: 700 | U163: 613 | W163: 613 | X163: 685 | Z163: 685 | AA163: 765 | AC163: 765 | AD163: 843 | AF163: 843
A164: 4D | B164: =COUNTIF($A$8:$A$152,$A164) -> 30 | C164: =COUNTIF($A$80:$A$152,$A164) -> 23 | D164: 650 | E164: 600 | F164: 400 | G164: 800 | U164: 1013 | W164: 1013 | X164: 1139 | Z164: 1139 | AA164: 1266 | AC164: 1266 | AD164: 1392 | AF164: 1392
A165: 4 | B165: =SUM(B161:B164) -> 108 | C165: 72 | D165: =SUM(D161:D164) -> 2550 | E165: =SUM(E161:E164) -> 2400 | F165: =SUM(F161:F164) -> 1850 | G165: =SUM(G161:G164) -> 2700 | U165: =SUM(U161:U164) -> 2896 | W165: 2896 | X165: =SUM(X161:X164) -> 3240 | Z165: 3240 | AA165: =SUM(AA161:AA164) -> 3611 | AC165: 3611 | AD165: =SUM(AD161:AD164) -> 3974 | AF165: 3974
B166: =B160+B165 -> 144 | D166: =D160+D165 -> 41950 | E166: =E160+E165 -> 45150 | F166: =F160+F165 -> 38550 | G166: =G160+G165 -> 41600 | U166: =SUM(U157:U159)+U165 -> 36814 | V166: =SUM(V157:V159)+V165 -> 3191 | W166: 40005 | X166: 41399 | Y166: 3587 | Z166: 44986 | AA166: 46007 | AB166: 3990 | AC166: 49997 | AD166: 50612 | AE166: 4391 | AF166: 55003
A167: People | D167: 7 | E167: 10 | F167: 10 | G167: 13
